Body Name,Supplier Name,Account Number,Invoice Date,Document File Name,Cost Centre / Project Code,Cost Centre/Project Description,Subjective Account,Subjective description,Invoice Amount (Excluding VAT)
Cambridge City Council,1 Colmore Square,10039100,07/04/22,106519,1651,Grand Arcade Car Park,60401,Service Charges,"26,238.25"
Cambridge City Council,10:AM,10302900,15/04/22,107274,780003,,62400,Consultancy Fees,800.00
Cambridge City Council,A Greener Festival Limited,10304200,09/03/22,107856,780003,,62400,Consultancy Fees,"1,400.00"
Cambridge City Council,A T Bone & Sons Ltd,10116000,18/03/22,104697,1865,Lettings & Events on Open Spaces,63900,Miscellaneous Expenses,"1,525.00"
Cambridge City Council,Abacus Sport & Golf UK Ltd,10150300,11/04/22,106895,1862,Open Space Asset Management,60207,Health And Safety Supplies And Services,948.86
Cambridge City Council,Abacus Stagetech,10900900,28/03/22,106280,1001,Cambridge Crematorium,61703,"Purchase - Equipment, Furniture And Materials","3,442.00"
Cambridge City Council,Abbey People CIO,10001300,01/04/22,105942,1057,Community Development Voluntary Support,64600,Grants And Contributions,"8,387.50"
Cambridge City Council,Accordia Residents Association,10358900,26/04/22,107791,1057,Community Development Voluntary Support,64600,Grants And Contributions,"1,000.00"
Cambridge City Council,Accordia Residents Association,10358900,19/04/22,107374,1057,Community Development Voluntary Support,64600,Grants And Contributions,500.00
Cambridge City Council,Aeg Presents Ltd,10304000,06/03/22,106509,9900,General Fund Balance Sheet,20118,Receipts In Advance - Other Entities And Individuals,"19,348.05"
Cambridge City Council,Agrovista UK Ltd,10070100,08/04/22,106739,1002,Bereavement Services - Burials & Grounds,60503,Grounds Maintenance,537.15
Cambridge City Council,Ainsworth Area Residents Association,10963400,05/04/22,106223,1057,Community Development Voluntary Support,64600,Grants And Contributions,500.00
Cambridge City Council,Ainsworth Area Residents Association,10963400,05/04/22,106223,1057,Community Development Voluntary Support,64600,Grants And Contributions,500.00
Cambridge City Council,Albert Bareham & Son Complete Flooring Services,10841500,01/04/22,105818,6207,Repairs Day to Day,60233,Housing Repairs - Work Given To External Contractors,780.00
Cambridge City Council,Albert Bareham & Son Complete Flooring Services,10841500,01/04/22,105817,6207,Repairs Day to Day,60233,Housing Repairs - Work Given To External Contractors,702.00
Cambridge City Council,Albert Bareham & Son Complete Flooring Services,10841500,14/04/22,107142,6207,Repairs Day to Day,60233,Housing Repairs - Work Given To External Contractors,"1,420.00"
Cambridge City Council,Alboro Developments Ltd,10133300,31/03/22,107275,1031,Fleet Management - Operational,60303,Electricity,"1,291.29"
Cambridge City Council,Alboro Developments Ltd,10133300,01/04/22,107317,1031,Fleet Management - Operational,60400,Rents Payable,"15,124.00"
Cambridge City Council,Alistair Stray,10945000,04/04/22,105980,300105,New Build - Aylesborough Close,70010,CAPEX - Other Professional Fees,"6,950.00"
Cambridge City Council,Allia Ltd,10196200,28/04/22,108007,1057,Community Development Voluntary Support,64600,Grants And Contributions,"7,000.00"
Cambridge City Council,Altone Limited,10004700,18/03/22,106213,6002,Resident Involvement,62001,Printing,"1,422.00"
Cambridge City Council,Ambroplastics Ltd,10770300,13/04/22,107237,1353,Elections,61703,"Purchase - Equipment, Furniture And Materials","1,430.00"
Cambridge City Council,Amulet (Churchill Security Solutions) Ltd,10220900,21/04/22,107529,5024,E_invoicing Suspense Accounts,69100,Expenditure In Holding Account Awaiting Allocation,710.01
Cambridge City Council,Amulet (Churchill Security Solutions) Ltd,10220900,31/03/22,107453,5024,E_invoicing Suspense Accounts,69100,Expenditure In Holding Account Awaiting Allocation,"11,018.43"
Cambridge City Council,Amulet (Churchill Security Solutions) Ltd,10220900,31/03/22,107463,5024,E_invoicing Suspense Accounts,69100,Expenditure In Holding Account Awaiting Allocation,"9,887.76"
Cambridge City Council,Anglian Water Business (National) Ltd T/A Wave,10006400,17/02/22,106386,6109,City Homes Estate Caretaking,60302,Water And Sewerage,658.61
Cambridge City Council,Anglian Water Business (National) Ltd T/A Wave,10006400,17/01/22,106400,8015,Guildhall,60302,Water And Sewerage,"2,644.31"
Cambridge City Council,Anglian Water Business (National) Ltd T/A Wave,10006400,24/03/22,106355,1762,Barnwell Drive-excl Barnwell House,60302,Water And Sewerage,742.01
Cambridge City Council,Anglian Water Business (National) Ltd T/A Wave,10006400,17/02/22,106447,1102,Leisure Contract Client Costs,60302,Water And Sewerage,"1,421.66"
Cambridge City Council,Anglian Water Business (National) Ltd T/A Wave,10006400,17/01/22,106454,1102,Leisure Contract Client Costs,60302,Water And Sewerage,"3,440.01"
Cambridge City Council,Anglian Water Business (National) Ltd T/A Wave,10006400,01/01/22,106446,8025,Cowley Road Compound,60302,Water And Sewerage,572.67
Cambridge City Council,Anglian Water Business (National) Ltd T/A Wave,10006400,28/01/22,106445,1100,Sport & Recreation Administration,60302,Water And Sewerage,"2,122.20"
Cambridge City Council,Anglian Water Business (National) Ltd T/A Wave,10006400,17/01/22,107832,1752,Dales Brewery,60302,Water And Sewerage,710.09
Cambridge City Council,AON UK Limited,10006800,04/04/22,107806,8009,Insurance Fund,67302,Insurance Claim,"2,000.00"
Cambridge City Council,AON UK Limited,10006800,04/04/22,107813,8009,Insurance Fund,67302,Insurance Claim,"1,532.70"
Cambridge City Council,AON UK Limited,10006800,04/04/22,107804,8009,Insurance Fund,67302,Insurance Claim,"1,988.00"
Cambridge City Council,AON UK Limited,10006800,04/04/22,107810,8009,Insurance Fund,67302,Insurance Claim,"4,521.44"
Cambridge City Council,AON UK Limited,10006800,04/04/22,107808,8009,Insurance Fund,67302,Insurance Claim,"60,559.50"
Cambridge City Council,AON UK Limited,10006800,04/04/22,107809,8009,Insurance Fund,67302,Insurance Claim,"18,480.00"
Cambridge City Council,AON UK Limited,10006800,04/04/22,107805,8009,Insurance Fund,67302,Insurance Claim,"1,120.00"
Cambridge City Council,AON UK Limited,10006800,04/04/22,107807,8009,Insurance Fund,67302,Insurance Claim,"187,083.28"
Cambridge City Council,AON UK Limited,10006800,04/04/22,107811,8009,Insurance Fund,67302,Insurance Claim,"55,587.95"
Cambridge City Council,AON UK Limited,10006800,04/04/22,107815,8009,Insurance Fund,67302,Insurance Claim,501.14
Cambridge City Council,APT Skidata Ltd,10115700,01/04/22,106145,1654,Grafton Centre East Car Park,61703,"Purchase - Equipment, Furniture And Materials","1,843.43"
Cambridge City Council,APT Skidata Ltd,10115700,04/04/22,106260,1655,Queen Anne Terrace Car Park,61702,"Maintenance - Equipment, Furniture And Materials","3,319.94"
Cambridge City Council,APT Skidata Ltd,10115700,04/04/22,106146,1661,Parking Administration,64073,ICT Maintenance and Support,"1,514.52"
Cambridge City Council,APT Skidata Ltd,10115700,04/04/22,106436,1651,Grand Arcade Car Park,61702,"Maintenance - Equipment, Furniture And Materials","9,971.27"
Cambridge City Council,APT Skidata Ltd,10115700,12/04/22,106985,1661,Parking Administration,64073,ICT Maintenance and Support,"1,514.52"
Cambridge City Council,APT Skidata Ltd,10115700,04/04/22,107113,1653,Grafton Centre West Car Park,61702,"Maintenance - Equipment, Furniture And Materials","3,288.90"
Cambridge City Council,APT Skidata Ltd,10115700,12/04/22,106981,1661,Parking Administration,64073,ICT Maintenance and Support,"1,514.52"
Cambridge City Council,APT Skidata Ltd,10115700,04/04/22,106437,1654,Grafton Centre East Car Park,61702,"Maintenance - Equipment, Furniture And Materials","5,535.60"
Cambridge City Council,APT Skidata Ltd,10115700,12/04/22,106984,1661,Parking Administration,64073,ICT Maintenance and Support,"1,514.52"
Cambridge City Council,Aran Insulation Limited,10392200,30/04/22,106438,300006,Insulation / Energy Efficiency,70002,CAPEX - Building Contractor/Works,"2,853.71"
Cambridge City Council,Aran Insulation Limited,10392200,21/03/22,106440,300006,Insulation / Energy Efficiency,70002,CAPEX - Building Contractor/Works,768.59
Cambridge City Council,Aran Insulation Limited,10392200,21/05/22,107459,300006,Insulation / Energy Efficiency,70002,CAPEX - Building Contractor/Works,754.29
Cambridge City Council,Aran Insulation Limited,10392200,28/04/22,108060,300006,Insulation / Energy Efficiency,70002,CAPEX - Building Contractor/Works,"4,778.42"
Cambridge City Council,Arts & Minds,10171200,06/04/22,106411,1057,Community Development Voluntary Support,64600,Grants And Contributions,"4,000.00"
Cambridge City Council,Arts Marketing Association,10304600,29/03/22,107551,1251,Culture and Community,62900,Events,917.02
Cambridge City Council,Ashco Building & Maintenance Services Ltd,10234000,20/04/22,108019,200000,Repairs Assistance (Owner Occupiers),70015,CAPEX - Grants Paid,"1,417.97"
Cambridge City Council,Banner Group Ltd,10011000,28/01/22,105180,1031,Fleet Management - Operational,62000,"Clothes, Uniform And Laundry",760.93
Cambridge City Council,Beacon Partnership LLP,10611300,06/04/22,106528,1506,Housing Development Agency,64800,Membership And Subscriptions,"4,558.00"
Cambridge City Council,BFS Group Ltd t/a Bidfood,10303000,05/04/22,106966,1260,Corn Exchange and Guildhalls,61900,Catering And Vending Supplies,"1,122.23"
Cambridge City Council,BFS Group Ltd t/a Bidfood,10303000,14/04/22,107857,1260,Corn Exchange and Guildhalls,61900,Catering And Vending Supplies,712.25
Cambridge City Council,BFS Group Ltd t/a Bidfood,10303000,21/04/22,107858,1260,Corn Exchange and Guildhalls,61900,Catering And Vending Supplies,"1,051.58"
Cambridge City Council,Big City Graphics & Signs Ltd,10130700,22/04/22,107613,1871,Allotments,60201,Cyclical/Planned Maintenance - Building,533.82
Cambridge City Council,Bioregional Development Group,10909300,01/04/22,106003,1208,Sustainable City,68300,Unallocated Budget,"9,583.24"
Cambridge City Council,Bioregional Development Group,10909300,01/04/22,106003,1410,Energy Officer,62005,"Advertising, Publicity And Marketing","9,583.26"
Cambridge City Council,Birdwood Area Residents Association,10013400,05/04/22,106272,1057,Community Development Voluntary Support,64600,Grants And Contributions,"1,000.00"
Cambridge City Council,Birdwood Area Residents Association,10013400,05/04/22,106272,1057,Community Development Voluntary Support,64600,Grants And Contributions,500.00
Cambridge City Council,Borley Brothers Engineering,10116600,25/04/22,107914,300088,Estate Investment,70002,CAPEX - Building Contractor/Works,"1,768.00"
Cambridge City Council,Boston Seeds Ltd,10914700,25/03/22,105851,100002,Environmental Improvements Programme - South Area,70013,CAPEX - Landscaping,"6,985.80"
Cambridge City Council,Boston Seeds Ltd,10914700,28/02/22,105849,100259,Environmental Improvements Programme,70013,CAPEX - Landscaping,"1,557.09"
Cambridge City Council,Boston Seeds Ltd,10914700,24/03/22,106556,100259,Environmental Improvements Programme,70013,CAPEX - Landscaping,742.92
Cambridge City Council,Boston Seeds Ltd,10914700,07/04/22,107915,1878,Local Nature Reserves,60503,Grounds Maintenance,"4,890.42"
Cambridge City Council,Bouygues Energies & Services FM UK Ltd,10126400,08/04/22,106775,100325,BEIS grant for Parkside pools decarbonisation works,70017,CAPEX - Purchase of Plant Machinery & Equipment,"115,637.94"
Cambridge City Council,Bouygues Energies & Services FM UK Ltd,10126400,08/04/22,106776,100326,BEIS grant for Abbey pool decarbonisation works,70017,CAPEX - Purchase of Plant Machinery & Equipment,"354,081.77"
Cambridge City Council,Bouygues Energies & Services FM UK Ltd,10126400,08/04/22,106776,100329,Carbon saving investments within the Leisure portfolio,70017,CAPEX - Purchase of Plant Machinery & Equipment,952.80
Cambridge City Council,Breckland Maintenance Services Ltd T/A Bury Pumps,10014900,04/04/22,106631,1872,River Frontage Management,61702,"Maintenance - Equipment, Furniture And Materials",500.00
Cambridge City Council,Breheny Civil Engineering Ltd,10116700,30/03/22,105780,1701,3C Building Control,63900,Miscellaneous Expenses,776.96
Cambridge City Council,Breheny Civil Engineering Ltd,10116700,30/03/22,105780,1701,3C Building Control,63900,Miscellaneous Expenses,801.42
Cambridge City Council,British Gas UK Business,10015200,19/04/22,107232,1065,Akeman Street Community House,60303,Electricity,556.63
Cambridge City Council,Bsg Property Services Ltd,10015900,26/04/22,108132,200002,Mandatory Disabled Facilities Grants (Owner Occupiers),70015,CAPEX - Grants Paid,"9,172.80"
Cambridge City Council,BSI Standards Ltd,10016100,01/03/22,106846,6203,Asset Management and Compliance,64800,Membership And Subscriptions,836.00
Cambridge City Council,Bucher Municipal Ltd,10062400,23/03/22,106778,1856,Streets & Open Spaces (Operations) - Indirect Costs,61703,"Purchase - Equipment, Furniture And Materials",996.60
Cambridge City Council,Businessclean (Cambridge) Ltd,10016800,31/03/22,105910,6208,Voids,60233,Housing Repairs - Work Given To External Contractors,"1,080.00"
Cambridge City Council,Businessclean (Cambridge) Ltd,10016800,31/03/22,105917,1502,Homelessness Costs,60501,Cleaning Services,628.00
Cambridge City Council,Businessclean (Cambridge) Ltd,10016800,31/03/22,105918,6102,Temporary Accommodation,60501,Cleaning Services,"1,640.00"
Cambridge City Council,Businessclean (Cambridge) Ltd,10016800,31/03/22,105906,6208,Voids,60220,Housing Repairs - Work To Void Properties,"1,346.00"
Cambridge City Council,Businessclean (Cambridge) Ltd,10016800,31/03/22,105911,6102,Temporary Accommodation,60501,Cleaning Services,566.00
Cambridge City Council,Businessclean (Cambridge) Ltd,10016800,31/03/22,105914,6102,Temporary Accommodation,60501,Cleaning Services,595.00
Cambridge City Council,Businessclean (Cambridge) Ltd,10016800,31/03/22,105905,6208,Voids,60220,Housing Repairs - Work To Void Properties,"1,181.00"
Cambridge City Council,Calfordseaden LLP,10339400,23/03/22,107003,300075,New Build - Kendal Way,70010,CAPEX - Other Professional Fees,630.00
Cambridge City Council,Calfordseaden LLP,10339400,28/04/22,108050,300090,New Build - Meadows and Buchan Street,70010,CAPEX - Other Professional Fees,"6,817.19"
Cambridge City Council,Calfordseaden LLP,10339400,26/04/22,107917,300008,Central Heating / Boilers,70002,CAPEX - Building Contractor/Works,"1,850.00"
Cambridge City Council,Cam Sight,10017400,19/04/22,107291,1057,Community Development Voluntary Support,64600,Grants And Contributions,"5,149.00"
Cambridge City Council,Cambridge & District Citizen's Advice Bureau,10017500,01/04/22,105961,1057,Community Development Voluntary Support,64600,Grants And Contributions,"73,750.00"
Cambridge City Council,Cambridge & District Citizen's Advice Bureau,10017500,01/04/22,105961,1509,Grants to Housing Agencies (CCC funded),64600,Grants And Contributions,"8,750.00"
Cambridge City Council,Cambridge & District Citizen's Advice Bureau,10017500,31/03/22,106298,1802,Housing Benefits,63900,Miscellaneous Expenses,"9,812.75"
Cambridge City Council,Cambridge African Network,10017700,01/04/22,105943,1057,Community Development Voluntary Support,64600,Grants And Contributions,"1,050.00"
Cambridge City Council,Cambridge China Hire Limited,10425200,18/04/22,107226,1350,Civic Affairs and Twinning,62900,Events,562.25
Cambridge City Council,Cambridge City Housing Company Ltd,10018100,06/04/22,106382,1526,Homelessness Prevention Grant,63900,Miscellaneous Expenses,"3,347.09"
Cambridge City Council,Cambridge City Housing Company Ltd,10018100,05/04/22,106150,1526,Homelessness Prevention Grant,63900,Miscellaneous Expenses,"11,652.98"
Cambridge City Council,Cambridge Community Arts,10018200,26/04/22,107792,1057,Community Development Voluntary Support,64600,Grants And Contributions,"4,000.00"
Cambridge City Council,Cambridge Community Arts,10018200,26/04/22,107792,1057,Community Development Voluntary Support,64600,Grants And Contributions,"3,325.00"
Cambridge City Council,Cambridge Cycling Campaign,10018600,10/03/22,106960,1877,Project Delivery (Cost Recovered)and( salaried),62900,Events,"2,000.00"
Cambridge City Council,Cambridge Cyrenians Ltd,10018700,27/04/22,108034,1526,Homelessness Prevention Grant,64600,Grants And Contributions,"10,000.00"
Cambridge City Council,Cambridge Disabled Kids Swimming Club,10177100,01/04/22,105949,1057,Community Development Voluntary Support,64600,Grants And Contributions,"2,500.00"
Cambridge City Council,Cambridge Ethnic Community Forum,10019300,07/04/22,106740,1079,Community Vaccine Champions Programme,62900,Events,"22,282.00"
Cambridge City Council,Cambridge Ethnic Community Forum,10019300,28/04/22,108036,1057,Community Development Voluntary Support,64600,Grants And Contributions,"9,375.00"
Cambridge City Council,Cambridge Friends of the Earth,10307200,05/04/22,106224,1057,Community Development Voluntary Support,64600,Grants And Contributions,500.00
Cambridge City Council,Cambridge Gateway Club,10019500,27/04/22,108033,1057,Community Development Voluntary Support,64600,Grants And Contributions,"1,346.00"
Cambridge City Council,Cambridge Handel Opera Company,10500500,06/04/22,106721,9900,General Fund Balance Sheet,20118,Receipts In Advance - Other Entities And Individuals,"3,919.74"
Cambridge City Council,Cambridge Handel Opera Company,10500500,08/04/22,106724,9900,General Fund Balance Sheet,20118,Receipts In Advance - Other Entities And Individuals,"5,343.41"
Cambridge City Council,Cambridge Handel Opera Company,10500500,05/04/22,106718,9900,General Fund Balance Sheet,20118,Receipts In Advance - Other Entities And Individuals,"3,185.57"
Cambridge City Council,Cambridge Handel Opera Company,10500500,09/04/22,106727,9900,General Fund Balance Sheet,20118,Receipts In Advance - Other Entities And Individuals,"5,643.18"
Cambridge City Council,Cambridge Investment Partnership LLP,10145700,30/03/22,105938,6007,Departmental Overheads-Client,63300,Professional Services - General,"77,798.22"
Cambridge City Council,Cambridge Investment Partnership LLP,10145700,11/04/22,106806,300103,New Build - Borrowdale,70002,CAPEX - Building Contractor/Works,"3,002.09"
Cambridge City Council,Cambridge Investment Partnership LLP,10145700,11/04/22,106810,300099,New Build - Fen Road,70002,CAPEX - Building Contractor/Works,"5,735.58"
Cambridge City Council,Cambridge Investment Partnership LLP,10145700,11/04/22,106808,300105,New Build - Aylesborough Close,70010,CAPEX - Other Professional Fees,"28,053.21"
Cambridge City Council,Cambridge Investment Partnership LLP,10145700,11/04/22,106809,300105,New Build - Aylesborough Close,70010,CAPEX - Other Professional Fees,"15,592.57"
Cambridge City Council,Cambridge Investment Partnership LLP,10145700,12/04/22,106848,300101,New Build - Aragon Close,70002,CAPEX - Building Contractor/Works,"9,765.04"
Cambridge City Council,Cambridge Investment Partnership LLP,10145700,11/04/22,106807,300103,New Build - Borrowdale,70002,CAPEX - Building Contractor/Works,"6,104.00"
Cambridge City Council,Cambridge Investment Partnership LLP,10145700,11/04/22,106811,300099,New Build - Fen Road,70002,CAPEX - Building Contractor/Works,"46,061.93"
Cambridge City Council,Cambridge Investment Partnership LLP,10145700,12/04/22,107009,6007,Departmental Overheads-Client,63300,Professional Services - General,"77,798.22"
Cambridge City Council,Cambridge Lifts Ltd,10930700,05/04/22,106216,1102,Leisure Contract Client Costs,60201,Cyclical/Planned Maintenance - Building,"4,566.28"
Cambridge City Council,Cambridge Master Locksmiths,10020000,26/04/22,107828,6000,Housing Revenue Account - Net Cost of Service,61703,"Purchase - Equipment, Furniture And Materials","1,918.80"
Cambridge City Council,Cambridge Money Advice Centre,10510000,01/04/22,105951,1057,Community Development Voluntary Support,64600,Grants And Contributions,"5,000.00"
Cambridge City Council,Cambridge Online,10154400,01/04/22,105953,1057,Community Development Voluntary Support,64600,Grants And Contributions,"10,000.00"
Cambridge City Council,Cambridge Online,10154400,07/03/22,106530,1079,Community Vaccine Champions Programme,62900,Events,"3,075.00"
Cambridge City Council,Cambridge Online Trading Ltd,10020400,14/12/21,106309,6002,Resident Involvement,64600,Grants And Contributions,992.83
Cambridge City Council,Cambridge Sport Lakes Trust,10021300,13/03/22,106049,1106,Active Lifestyles - Projects,62404,Instructors/Tutors,620.00
Cambridge City Council,Cambridge Sports Hall Trust Ltd T/A Kelsey Kerridge,10021400,01/04/22,105955,1057,Community Development Voluntary Support,64600,Grants And Contributions,"3,500.00"
Cambridge City Council,Cambridge Sustainable Food,10162900,05/04/22,106149,1208,Sustainable City,64600,Grants And Contributions,"5,000.00"
Cambridge City Council,Cambridge Vineyard Church,10965100,05/04/22,106325,1057,Community Development Voluntary Support,64600,Grants And Contributions,810.00
Cambridge City Council,Cambridge Womens Aid,10022300,27/04/22,108032,1526,Homelessness Prevention Grant,64600,Grants And Contributions,"10,000.00"
Cambridge City Council,Cambridge Womens Resource Centre,10022400,27/04/22,108038,1057,Community Development Voluntary Support,64600,Grants And Contributions,"8,250.00"
Cambridge City Council,Cambridgeshire & Peterborough Fire Authority,10022500,12/04/22,107287,1205,Quality/Health & Safety Management - Indirect,62400,Consultancy Fees,"5,775.79"
Cambridge City Council,Cambridgeshire Community Foundation,10263800,01/04/22,105947,1509,Grants to Housing Agencies (CCC funded),64600,Grants And Contributions,"7,500.00"
Cambridge City Council,Cambridgeshire County Council,10022802,01/04/22,105945,1509,Grants to Housing Agencies (CCC funded),64600,Grants And Contributions,"10,000.00"
Cambridge City Council,Cambridgeshire County Council,10022802,31/03/22,106479,1512,Sub-Regional Housing Strategy Co-ordinator,64060,Shared Service Contribution,"12,000.00"
Cambridge City Council,Cambridgeshire County Council,10022802,07/04/22,106766,1888,Open Space Mgt Salaries,60011,Agency Staff,"2,894.00"
Cambridge City Council,Carter Jonas LLP,10141403,31/03/22,106311,1750,Property Services,62400,Consultancy Fees,750.00
Cambridge City Council,Catalyst Housing Ltd,10957900,23/03/22,105237,300097,New Build - Colville Road III,70010,CAPEX - Other Professional Fees,"7,000.00"
Cambridge City Council,CBG Consultants Ltd,10911300,31/01/22,107140,300106,New Build - St Thomas's Road,70010,CAPEX - Other Professional Fees,"2,250.00"
Cambridge City Council,CBG Consultants Ltd,10911300,31/01/22,107140,300107,New Build - Paget Road,70010,CAPEX - Other Professional Fees,"2,250.00"
Cambridge City Council,CCPM Ltd,10283000,11/03/22,107023,100300,Park Street car park development,70010,CAPEX - Other Professional Fees,"1,375.00"
Cambridge City Council,CCPM Ltd,10283000,11/03/22,107023,1779,Market Square Project,62400,Consultancy Fees,"3,575.00"
Cambridge City Council,Centre 33,10025400,01/04/22,105956,1057,Community Development Voluntary Support,64600,Grants And Contributions,"9,125.00"
Cambridge City Council,Centre 33,10025400,01/04/22,105956,1509,Grants to Housing Agencies (CCC funded),64600,Grants And Contributions,"10,000.00"
Cambridge City Council,Centre For Governance  & Scrutiny,10142900,25/04/22,107748,1354,Committee Management,62400,Consultancy Fees,"2,000.00"
Cambridge City Council,CFH Docmail Ltd,10025900,12/04/22,106972,1352,Electoral Registration,62001,Printing,761.30
Cambridge City Council,CFH Docmail Ltd,10025900,27/04/22,107940,1352,Electoral Registration,62001,Printing,"1,251.55"
Cambridge City Council,CG LEE LTD t/a LEES Chartered Certified Accountants & Registered Auditors,10443400,10/01/22,107368,1890,2 Seas,62400,Consultancy Fees,"1,300.00"
Cambridge City Council,CGM Group (East Anglia) Ltd,10117300,22/04/22,107589,1885,Reverse Agency (formerly Unclassified Routine),64040,Tree Works,"2,050.00"
Cambridge City Council,CGM Group (East Anglia) Ltd,10117300,22/04/22,107589,1876,Arboriculture,64040,Tree Works,"2,050.00"
Cambridge City Council,CGM Group (East Anglia) Ltd,10117300,22/04/22,107750,6110,City Homes Estate Management,60506,Gardening Supplies,750.00
Cambridge City Council,Changing Directions,10176800,01/04/22,105963,1057,Community Development Voluntary Support,64600,Grants And Contributions,500.00
Cambridge City Council,Chassis Cab Ltd,10027000,31/03/22,106283,1032,Garage- External Work,61703,"Purchase - Equipment, Furniture And Materials",542.61
Cambridge City Council,Chassis Cab Ltd,10027000,01/04/22,106283,1032,Garage- External Work,61703,"Purchase - Equipment, Furniture And Materials",981.23
Cambridge City Council,Chassis Cab Ltd,10027000,22/04/22,108079,1031,Fleet Management - Operational,61703,"Purchase - Equipment, Furniture And Materials",517.53
Cambridge City Council,Chassis Cab Ltd,10027000,12/04/22,107340,1031,Fleet Management - Operational,61703,"Purchase - Equipment, Furniture And Materials",867.21
Cambridge City Council,Chassis Cab Ltd,10027000,12/04/22,107340,1031,Fleet Management - Operational,61703,"Purchase - Equipment, Furniture And Materials",867.21
Cambridge City Council,Chassis Cab Ltd,10027000,01/04/22,107596,1031,Fleet Management - Operational,61703,"Purchase - Equipment, Furniture And Materials",620.00
Cambridge City Council,Cheffins,10451900,20/04/22,107456,9900,General Fund Balance Sheet,30004,Capital Receipts Reserve,"5,212.50"
Cambridge City Council,Cheffins,10451900,19/04/22,107407,1758,Other Commercial Properties,62400,Consultancy Fees,"6,000.00"
Cambridge City Council,Cheffins,10451900,19/04/22,107407,1758,Other Commercial Properties,62400,Consultancy Fees,"1,375.00"
Cambridge City Council,Cherry Hinton Residents Association,10232600,05/04/22,106275,1057,Community Development Voluntary Support,64600,Grants And Contributions,"1,320.00"
Cambridge City Council,Chesterton Festival Committee,10028000,26/04/22,107793,1057,Community Development Voluntary Support,64600,Grants And Contributions,"2,500.00"
Cambridge City Council,Childcare Vouchers Limited,10028300,07/04/22,106701,5000,Salary Sacrifice Schemes Holding Account,60106,Childcare Admin Vouchers,"3,368.00"
Cambridge City Council,Churchill Contract Services Ltd,10029300,31/03/22,106914,5024,E_invoicing Suspense Accounts,69100,Expenditure In Holding Account Awaiting Allocation,"35,621.47"
Cambridge City Council,Churchill Contract Services Ltd,10029300,31/03/22,106914,5024,E_invoicing Suspense Accounts,69100,Expenditure In Holding Account Awaiting Allocation,"7,124.29"
Cambridge City Council,CIP (Cromwell Road) LLP,10366900,31/03/22,105852,300085,New Build - Cromwell Road Redevelopment (HRA),70002,CAPEX - Building Contractor/Works,"276,300.23"
Cambridge City Council,CIP (Cromwell Road) LLP,10366900,31/03/22,105852,100225,Cromwell Road Redevelopment (GF),70001,CAPEX - Acquisition of Land & Existing Building,"231,764.77"
Cambridge City Council,CIPFA Business Limited,10029700,16/02/22,105853,8006,Accountancy and Support Services,62003,"Books, Publications And Resources","3,860.00"
Cambridge City Council,CIPFA Business Limited,10029700,16/02/22,105854,8006,Accountancy and Support Services,62003,"Books, Publications And Resources","3,100.00"
Cambridge City Council,CitizenLab NV,10954200,25/03/22,107789,1202,Corporate Marketing,64071,ICT Software,"15,000.00"
Cambridge City Council,City Signs Cambridge,10030100,31/03/22,106583,300088,Estate Investment,70002,CAPEX - Building Contractor/Works,"2,391.00"
Cambridge City Council,City Signs Cambridge,10030100,08/04/22,106612,6215,Risk and Compliance,60205,Fire Assessment And Safety,930.00
Cambridge City Council,City View Digital Media Ltd,10030200,01/04/22,106660,1862,Open Space Asset Management,62005,"Advertising, Publicity And Marketing","2,500.00"
Cambridge City Council,Clare Hopkins,10169100,16/04/22,107268,6203,Asset Management and Compliance,62400,Consultancy Fees,"7,901.67"
Cambridge City Council,Clarkes Of Walsham Ltd,10209700,22/04/22,107632,5045,Cambridge Live Set Up costs,58820,B/F (Surplus)/Deficit (B),"2,793.04"
Cambridge City Council,Clay Farm Community Garden Group,10242800,05/04/22,106148,1057,Community Development Voluntary Support,64600,Grants And Contributions,500.00
Cambridge City Council,CN Security Ltd,10291400,07/04/22,106687,700207,,63800,Security Services (Excluding Premises),"1,032.50"
Cambridge City Council,CN Security Ltd,10291400,07/04/22,106686,700210,,63800,Security Services (Excluding Premises),919.38
Cambridge City Council,CN Security Ltd,10291400,25/04/22,107718,700309,,63800,Security Services (Excluding Premises),946.25
Cambridge City Council,COFARM Cambridge,10546300,05/04/22,106157,1208,Sustainable City,64600,Grants And Contributions,"10,000.00"
Cambridge City Council,Coldhams Lane Romsey Residents Association,10963600,05/04/22,106227,1057,Community Development Voluntary Support,64600,Grants And Contributions,500.00
Cambridge City Council,Comensura Ltd,10031900,06/04/22,106502,5024,E_invoicing Suspense Accounts,69100,Expenditure In Holding Account Awaiting Allocation,"59,749.09"
Cambridge City Council,Comensura Ltd,10031900,13/04/22,107363,5024,E_invoicing Suspense Accounts,69100,Expenditure In Holding Account Awaiting Allocation,"41,218.98"
Cambridge City Council,Comensura Ltd,10031900,20/04/22,107364,5024,E_invoicing Suspense Accounts,69100,Expenditure In Holding Account Awaiting Allocation,"35,457.90"
Cambridge City Council,Compton & Casburn Ltd,10117600,06/04/22,106461,6207,Repairs Day to Day,60233,Housing Repairs - Work Given To External Contractors,685.00
Cambridge City Council,Compton & Casburn Ltd,10117600,06/04/22,106463,6207,Repairs Day to Day,60233,Housing Repairs - Work Given To External Contractors,745.00
Cambridge City Council,Conscious Communications Ltd,10619200,31/03/22,105784,1253,Cambridgeshire and Peterborough Region of Learning,62005,"Advertising, Publicity And Marketing","5,800.00"
Cambridge City Council,Content Design London Ltd,10959300,06/04/22,106480,1202,Corporate Marketing,60115,Staff Development And Training,695.00
Cambridge City Council,Cooleraid Ltd,10033001,21/04/22,107465,8018,Admin Building Allocation,64200,Subsistence,689.52
Cambridge City Council,Cornerstone (East Anglia) Ltd,10033600,07/04/22,106584,300006,Insulation / Energy Efficiency,70002,CAPEX - Building Contractor/Works,"106,758.25"
Cambridge City Council,Cornerstone (East Anglia) Ltd,10033600,07/04/22,106586,300006,Insulation / Energy Efficiency,70002,CAPEX - Building Contractor/Works,"49,612.03"
Cambridge City Council,Cornerstone (East Anglia) Ltd,10033600,07/04/22,106588,300012,External Doors,70002,CAPEX - Building Contractor/Works,"2,913.83"
Cambridge City Council,Countryside Properties (UK) Ltd,10033800,05/04/22,106313,100020,Development Of land at Clay Farm,70002,CAPEX - Building Contractor/Works,"1,137.80"
Cambridge City Council,Countryside Properties (UK) Ltd,10033800,05/04/22,106313,100020,Development Of land at Clay Farm,70002,CAPEX - Building Contractor/Works,"9,198.23"
Cambridge City Council,Countryside Properties (UK) Ltd,10033800,05/04/22,106313,100020,Development Of land at Clay Farm,70010,CAPEX - Other Professional Fees,"1,043.92"
Cambridge City Council,Countryside Properties (UK) Ltd,10033800,05/04/22,106313,100020,Development Of land at Clay Farm,70013,CAPEX - Landscaping,"3,014.63"
Cambridge City Council,Countrywide Group plc,10139100,31/03/22,105767,1529,HPG - Support for Vulnerable Renters,64600,Grants And Contributions,"3,750.00"
Cambridge City Council,Create Signs Ltd,10958800,04/04/22,107498,1870,Public Toilets,60201,Cyclical/Planned Maintenance - Building,630.00
Cambridge City Council,Crosstown Concerts,10309700,29/03/22,106039,9900,General Fund Balance Sheet,20118,Receipts In Advance - Other Entities And Individuals,"14,380.85"
Cambridge City Council,Croyland Building Surveyors Ltd,10034500,31/03/22,105952,1504,Housing Advice Service,62400,Consultancy Fees,650.00
Cambridge City Council,D Carman BSSR Ltd,10118100,26/04/22,107911,1870,Public Toilets,60201,Cyclical/Planned Maintenance - Building,"1,080.00"
Cambridge City Council,D Carman BSSR Ltd,10118100,19/04/22,107411,1758,Other Commercial Properties,60201,Cyclical/Planned Maintenance - Building,540.00
Cambridge City Council,Dalrod,10824600,31/03/22,105804,6207,Repairs Day to Day,60233,Housing Repairs - Work Given To External Contractors,"5,000.00"
Cambridge City Council,Dalrod,10824600,07/04/22,107038,6207,Repairs Day to Day,60233,Housing Repairs - Work Given To External Contractors,550.00
Cambridge City Council,David Powell t/a D J Kitchens,10137900,20/03/22,104607,6208,Voids,60233,Housing Repairs - Work Given To External Contractors,"6,345.00"
Cambridge City Council,Denis Wilson Court Social Club,10171700,19/04/22,107294,1057,Community Development Voluntary Support,64600,Grants And Contributions,825.00
Cambridge City Council,Dennis Eagle Ltd,10036900,07/03/22,106945,1031,Fleet Management - Operational,61703,"Purchase - Equipment, Furniture And Materials","1,086.79"
Cambridge City Council,Dennis Eagle Ltd,10036900,15/03/22,106945,1032,Garage- External Work,61703,"Purchase - Equipment, Furniture And Materials","1,171.12"
Cambridge City Council,Dennis Eagle Ltd,10036900,24/03/22,106945,1032,Garage- External Work,61703,"Purchase - Equipment, Furniture And Materials",738.14
Cambridge City Council,Dennis Eagle Ltd,10036900,24/03/22,106945,1031,Fleet Management - Operational,61703,"Purchase - Equipment, Furniture And Materials",592.09
Cambridge City Council,Dennis Eagle Ltd,10036900,24/03/22,106945,1031,Fleet Management - Operational,61703,"Purchase - Equipment, Furniture And Materials",647.39
Cambridge City Council,Dennis Eagle Ltd,10036900,06/04/22,106945,1031,Fleet Management - Operational,61703,"Purchase - Equipment, Furniture And Materials",617.58
Cambridge City Council,Dennis Eagle Ltd,10036900,06/04/22,106945,1032,Garage- External Work,61703,"Purchase - Equipment, Furniture And Materials",814.19
Cambridge City Council,Dennis Eagle Ltd,10036900,17/02/22,106283,1032,Garage- External Work,61703,"Purchase - Equipment, Furniture And Materials",560.39
Cambridge City Council,Dennis Eagle Ltd,10036900,17/02/22,106283,1032,Garage- External Work,61703,"Purchase - Equipment, Furniture And Materials",551.51
Cambridge City Council,Dennis Eagle Ltd,10036900,21/02/22,106283,1031,Fleet Management - Operational,61703,"Purchase - Equipment, Furniture And Materials",526.43
Cambridge City Council,Dennis Eagle Ltd,10036900,25/02/22,106283,1031,Fleet Management - Operational,61703,"Purchase - Equipment, Furniture And Materials",551.51
Cambridge City Council,Dennis Eagle Ltd,10036900,01/04/22,106283,1032,Garage- External Work,61703,"Purchase - Equipment, Furniture And Materials",505.60
Cambridge City Council,Dennis Eagle Ltd,10036900,31/03/22,107193,1032,Garage- External Work,61703,"Purchase - Equipment, Furniture And Materials","6,612.29"
Cambridge City Council,Dennis Eagle Ltd,10036900,22/04/22,108079,1032,Garage- External Work,61703,"Purchase - Equipment, Furniture And Materials","1,610.80"
Cambridge City Council,Department For Communities & Local Government,10037200,30/03/22,105831,9900,General Fund Balance Sheet,20102,Clg Nndr - Business Rates Creditor,"2,892,238.00"
Cambridge City Council,Department For Communities & Local Government,10037200,14/04/22,107094,9901,Housing Revenue Account Balance Sheet,30004,Capital Receipts Reserve,"1,133,957.90"
Cambridge City Council,Diana Minns,10972300,26/04/22,107871,300042,Acquisitions & Disposals,70001,CAPEX - Acquisition of Land & Existing Building,"1,250.00"
Cambridge City Council,Direct Healthcare Group Ltd,10199600,10/03/22,106520,300000,Disabled Adaptions,70004,CAPEX - Building Contractor/Works - OHT Installations (HRA),"1,100.00"
Cambridge City Council,Direct Healthcare Group Ltd,10199600,19/04/22,107342,300000,Disabled Adaptions,70004,CAPEX - Building Contractor/Works - OHT Installations (HRA),"2,054.50"
Cambridge City Council,Disability Cambridgeshire Ltd,10527600,27/04/22,108030,1057,Community Development Voluntary Support,64600,Grants And Contributions,"6,000.00"
Cambridge City Council,District Councils Network,10038000,28/04/22,108135,1200,Corporate Management,64800,Membership And Subscriptions,"3,314.00"
Cambridge City Council,DJ Evans (Bury) Ltd,10038100,19/04/22,107337,9900,General Fund Balance Sheet,11600,Consumable Stores,700.00
Cambridge City Council,DMD Environmental Ltd,10898800,31/03/22,107356,6207,Repairs Day to Day,60233,Housing Repairs - Work Given To External Contractors,"1,470.00"
Cambridge City Council,DMD Environmental Ltd,10898800,31/03/22,107357,6207,Repairs Day to Day,60233,Housing Repairs - Work Given To External Contractors,975.00
Cambridge City Council,DMD Environmental Ltd,10898800,31/03/22,107351,300007,Asbestos Removal,70003,CAPEX - Building Contractor/Works - Voids & Emergencies,770.00
Cambridge City Council,DMD Environmental Ltd,10898800,31/03/22,107358,6207,Repairs Day to Day,60233,Housing Repairs - Work Given To External Contractors,975.00
Cambridge City Council,DMD Environmental Ltd,10898800,31/03/22,107353,6207,Repairs Day to Day,60233,Housing Repairs - Work Given To External Contractors,975.00
Cambridge City Council,DMD Environmental Ltd,10898800,31/03/22,107355,300007,Asbestos Removal,70003,CAPEX - Building Contractor/Works - Voids & Emergencies,660.00
Cambridge City Council,DMD Environmental Ltd,10898800,22/04/22,107591,6207,Repairs Day to Day,60233,Housing Repairs - Work Given To External Contractors,"3,500.00"
Cambridge City Council,DMD Environmental Ltd,10898800,31/03/22,107359,6207,Repairs Day to Day,60233,Housing Repairs - Work Given To External Contractors,975.00
Cambridge City Council,Dr Karen Skinner,10187700,13/04/22,106977,1504,Housing Advice Service,63300,Professional Services - General,"2,240.00"
Cambridge City Council,Drainco Services Ltd,10038800,03/02/22,106316,1102,Leisure Contract Client Costs,60201,Cyclical/Planned Maintenance - Building,"10,000.00"
Cambridge City Council,Drainco Services Ltd,10038800,21/03/22,108063,1764,Ditton Lane Shops,60201,Cyclical/Planned Maintenance - Building,"1,595.00"
Cambridge City Council,DSB Engineering Supplies,10039000,21/04/22,107923,1031,Fleet Management - Operational,60907,Other Vehicle Costs,558.47
Cambridge City Council,Earthwatch Institute (Europe),10954400,11/04/22,106796,1876,Arboriculture,64040,Tree Works,"9,775.00"
Cambridge City Council,Earthwatch Institute (Europe),10954400,11/04/22,106796,1876,Arboriculture,64040,Tree Works,"7,253.00"
Cambridge City Council,East Anglian Chambers,10599000,18/03/22,106592,6103,Emergency Alarms,63200,Legal Fees,"3,550.00"
Cambridge City Council,East Anglian Chambers,10599000,29/04/22,108117,6207,Repairs Day to Day,63200,Legal Fees,850.00
Cambridge City Council,Eastfield Guest House Ltd,10262600,04/04/22,106080,1532,Bed & Breakfast (B&B) Costs,64401,B&B Accommodation,"1,820.00"
Cambridge City Council,Eastfield Guest House Ltd,10262600,21/03/22,104658,1502,Homelessness Costs,51406,Bed And Breakfast Income,"2,600.00"
Cambridge City Council,Eastfield Guest House Ltd,10262600,08/10/21,106321,1502,Homelessness Costs,64401,B&B Accommodation,"1,170.00"
Cambridge City Council,Eastfield Guest House Ltd,10262600,11/04/22,106834,1532,Bed & Breakfast (B&B) Costs,64401,B&B Accommodation,"3,710.00"
Cambridge City Council,Eastfield Guest House Ltd,10262600,04/04/22,106081,1532,Bed & Breakfast (B&B) Costs,64401,B&B Accommodation,"1,470.00"
Cambridge City Council,Eastfield Guest House Ltd,10262600,22/11/21,106323,1502,Homelessness Costs,64401,B&B Accommodation,"2,145.00"
Cambridge City Council,Eco Design Consultants Ltd,10926800,31/03/22,106992,6209,Energy Rating,63300,Professional Services - General,"1,955.00"
Cambridge City Council,Eddington Residents Association,10472000,05/04/22,106169,1057,Community Development Voluntary Support,64600,Grants And Contributions,"1,000.00"
Cambridge City Council,Eddisons Commercial Ltd,10420000,21/03/22,105810,1758,Other Commercial Properties,62400,Consultancy Fees,"5,162.00"
Cambridge City Council,Eden Tree Specialists Ltd,10858600,01/03/22,103104,6110,City Homes Estate Management,64040,Tree Works,"1,721.25"
Cambridge City Council,EDF Energy,10040501,20/04/22,107727,6102,Temporary Accommodation,60303,Electricity,652.04
Cambridge City Council,EDF Energy,10040501,20/04/22,107727,6102,Temporary Accommodation,60305,Gas,652.05
Cambridge City Council,Edmundson Electrical Ltd,10040600,23/03/22,107338,9900,General Fund Balance Sheet,11600,Consumable Stores,702.05
Cambridge City Council,Edmundson Electrical Ltd,10040600,28/03/22,106307,9900,General Fund Balance Sheet,11600,Consumable Stores,"1,211.70"
Cambridge City Council,Edmundson Electrical Ltd,10040600,04/04/22,107592,9900,General Fund Balance Sheet,11600,Consumable Stores,983.47
Cambridge City Council,ELA Active Ltd c/o Impington Sports Centre,10141201,25/04/22,107752,1104,Sport - Ex Ref,62404,Instructors/Tutors,690.00
Cambridge City Council,EMS Lifts Ltd,10041800,31/03/22,106471,6205,Citywide Schemes,60234,Housing Repairs - Servicing Specialist Disabled Equipment,933.05
Cambridge City Council,Ermine Construction Services Ltd,10462100,04/04/22,107380,100308,S106 Chesterton Rec pavilion,70001,CAPEX - Acquisition of Land & Existing Building,"5,541.85"
Cambridge City Council,Ermine Construction Services Ltd,10462100,04/04/22,107380,100308,S106 Chesterton Rec pavilion,70002,CAPEX - Building Contractor/Works,"1,234.05"
Cambridge City Council,Ernest Doe & Sons Ltd,10043400,11/04/22,106929,1856,Streets & Open Spaces (Operations) - Indirect Costs,61703,"Purchase - Equipment, Furniture And Materials","2,994.00"
Cambridge City Council,Ernest Doe & Sons Ltd,10043400,31/03/22,107480,1871,Allotments,60201,Cyclical/Planned Maintenance - Building,989.98
Cambridge City Council,Ernst & Young LLP,10043500,22/04/22,107663,1453,Finance General Recharges,62100,Audit Fees,"12,622.25"
Cambridge City Council,ESPO,10043700,07/04/22,106798,1260,Corn Exchange and Guildhalls,61300,Cleaning Materials,"1,078.30"
Cambridge City Council,ESPO,10043700,11/04/22,106838,6109,City Homes Estate Caretaking,60502,Cleaning Contract,954.00
Cambridge City Council,ESPO,10043700,30/03/22,106777,5024,E_invoicing Suspense Accounts,69100,Expenditure In Holding Account Awaiting Allocation,"26,450.30"
Cambridge City Council,ET Law Ltd,10969900,11/04/22,107583,300104,RSAP Acquisitions,70001,CAPEX - Acquisition of Land & Existing Building,"205,000.00"
Cambridge City Council,Euclid Limited,10044300,31/03/22,106110,1712,Taxicard Service,62001,Printing,959.76
Cambridge City Council,European Union Chamber Orchestra,10311600,17/03/22,105596,700379,,61910,Artist Fees,"7,500.00"
Cambridge City Council,Evolve Guards Ltd,10506900,03/04/22,105997,1528,Winter Emergency Provision for Rough Sleepers,51104,Other Contributions & Reimbursements (Income),"3,780.00"
Cambridge City Council,Facultatieve Technologies Ltd,10118300,14/04/22,107110,1001,Cambridge Crematorium,60202,Cyclical/Planned Maintenance - Fixed Plant,816.22
Cambridge City Council,Fenland District Council,10449300,04/04/22,106258,5118,Integrated Lifestyles Service,61800,Contract Charges,"10,071.25"
Cambridge City Council,Fenland District Council,10449300,04/04/22,106257,5118,Integrated Lifestyles Service,61800,Contract Charges,"10,071.25"
Cambridge City Council,Fenland District Council,10449300,21/03/22,107307,100366,Green Homes Grant (GF),70024,CAPEX - Other Capital Expenditure,"9,000.00"
Cambridge City Council,Fenners Chambers,10045600,13/04/22,107031,1758,Other Commercial Properties,63200,Legal Fees,"2,000.00"
Cambridge City Council,Foster Building Services Ltd,10856700,21/12/21,105788,200001,Mandatory Disabled Facilities Grants (Tenants),70015,CAPEX - Grants Paid,"5,073.49"
Cambridge City Council,Foster Property Maintenance Ltd,10046700,25/03/22,105204,6208,Voids,60233,Housing Repairs - Work Given To External Contractors,"58,607.35"
Cambridge City Council,Foster Property Maintenance Ltd,10046700,01/03/22,106399,6208,Voids,60233,Housing Repairs - Work Given To External Contractors,"57,484.85"
Cambridge City Council,Foster Property Maintenance Ltd,10046700,08/04/22,106665,5024,E_invoicing Suspense Accounts,69100,Expenditure In Holding Account Awaiting Allocation,"924,083.74"
Cambridge City Council,Freeths LLP,10128502,23/03/22,106011,300097,New Build - Colville Road III,70010,CAPEX - Other Professional Fees,969.00
Cambridge City Council,Freeths LLP,10128502,24/03/22,107304,1454,Cambridge Northern Fringe East (CNFE),63200,Legal Fees,650.00
Cambridge City Council,Freeths LLP,10128502,08/04/22,106619,300089,New Build - Clerk Maxwell Road,70010,CAPEX - Other Professional Fees,"26,334.00"
Cambridge City Council,Freeths LLP,10128502,31/01/22,107288,1935,Markets,63200,Legal Fees,527.00
Cambridge City Council,Friends of Histon Road Cemetery,10047100,05/04/22,106170,1057,Community Development Voluntary Support,64600,Grants And Contributions,800.00
Cambridge City Council,Friends of Logans Meadow,10963800,05/04/22,106229,1057,Community Development Voluntary Support,64600,Grants And Contributions,500.00
Cambridge City Council,Friends of Mitchams Corner,10963900,05/04/22,106285,1057,Community Development Voluntary Support,64600,Grants And Contributions,500.00
Cambridge City Council,"Friends, Families and Travellers",10290700,05/04/22,106314,1203,Corporate Policy,60115,Staff Development And Training,625.00
Cambridge City Council,Furniture@Work Ltd,10404200,14/04/22,107369,1935,Markets,62900,Events,832.50
Cambridge City Council,G2 Recruitment Solutions,10207400,06/04/22,106401,6014,Voids and Lettings Administration,60011,Agency Staff,"1,065.00"
Cambridge City Council,G2 Recruitment Solutions,10207400,12/04/22,106877,6014,Voids and Lettings Administration,60011,Agency Staff,"1,125.00"
Cambridge City Council,G2 Recruitment Solutions,10207400,27/04/22,107942,6014,Voids and Lettings Administration,60011,Agency Staff,"1,620.00"
Cambridge City Council,Gaskin Brothers Ltd,10118700,30/03/22,106082,1864,Closed Churchyards,60201,Cyclical/Planned Maintenance - Building,834.75
Cambridge City Council,GB Sport & Leisure UK Ltd,10048700,28/04/22,108022,1866,Open Space Asset Maintenance,61703,"Purchase - Equipment, Furniture And Materials","2,332.75"
Cambridge City Council,GCUK Propco Limited t/a Graduate Cambridge Hotel,10952800,28/04/22,106828,1890,2 Seas,60402,Premises Hire - Facilities,816.00
Cambridge City Council,Geoff Price,10354500,31/03/22,105789,1260,Corn Exchange and Guildhalls,62800,Design And Photographic Costs,"1,615.00"
Cambridge City Council,George Street Residents Association,10964000,05/04/22,106286,1057,Community Development Voluntary Support,64600,Grants And Contributions,500.00
Cambridge City Council,Glo-Bell London Ltd,10119000,21/04/22,107481,8025,Cowley Road Compound,60201,Cyclical/Planned Maintenance - Building,922.00
Cambridge City Council,Goodman Masson Ltd,10967500,14/04/22,107318,6007,Departmental Overheads-Client,63300,Professional Services - General,"4,950.00"
Cambridge City Council,Goodman Masson Ltd,10967500,27/04/22,108024,6007,Departmental Overheads-Client,63300,Professional Services - General,"1,650.00"
Cambridge City Council,Grant Thornton UK LLP,10954100,31/03/22,105958,1217,Our Cambridge Transformation Programme,64072,ICT Licences,"6,000.00"
Cambridge City Council,Greenwich Leisure Limited (GLL),10051900,14/02/22,106784,1101,Leisure Contract Management Fees,61800,Contract Charges,"42,366.80"
Cambridge City Council,Greenwich Leisure Ltd - Parkside Pools,10051901,18/03/22,106016,1103,Active Lifestyles - Communities (ex Sports Development),62404,Instructors/Tutors,600.00
Cambridge City Council,Ground Control Ltd,10264600,26/04/22,107992,1774,"Cambridge Road Retail Park, Haverhill",60503,Grounds Maintenance,"1,044.47"
Cambridge City Council,Gwydir Street Friends,10964100,05/04/22,106287,1057,Community Development Voluntary Support,64600,Grants And Contributions,500.00
Cambridge City Council,Hako Machines Ltd,10052800,12/04/22,106987,1856,Streets & Open Spaces (Operations) - Indirect Costs,61703,"Purchase - Equipment, Furniture And Materials","2,045.00"
Cambridge City Council,Hako Machines Ltd,10052800,08/04/22,107499,1856,Streets & Open Spaces (Operations) - Indirect Costs,61703,"Purchase - Equipment, Furniture And Materials","1,098.07"
Cambridge City Council,Harrison Clark Rickerbys Ltd,10870701,28/03/22,105694,300075,New Build - Kendal Way,70010,CAPEX - Other Professional Fees,"2,318.70"
Cambridge City Council,Heales Health Services Ltd,10054100,31/03/22,106259,8001,Human Resources Operations (Staff-General),60111,Occupational Health,"1,221.10"
Cambridge City Council,Hemingford Street Party,10349600,05/04/22,106171,1057,Community Development Voluntary Support,64600,Grants And Contributions,500.00
Cambridge City Council,Henry Riley LLP,10288400,16/12/21,107593,1506,Housing Development Agency,62400,Consultancy Fees,750.00
Cambridge City Council,Herts Property Solutions Ltd,10832100,21/02/22,108027,200002,Mandatory Disabled Facilities Grants (Owner Occupiers),70015,CAPEX - Grants Paid,"9,357.54"
Cambridge City Council,Hill Partnerships Limited,10214300,15/03/22,106830,300087,New Build Colville Road (Phase 2),70002,CAPEX - Building Contractor/Works,"795,196.18"
Cambridge City Council,Hill Partnerships Limited,10214300,07/04/22,106537,300087,New Build Colville Road (Phase 2),70002,CAPEX - Building Contractor/Works,"369,219.78"
Cambridge City Council,Hill Partnerships Limited,10214300,07/04/22,107681,300091,New Build - Campkin Road Phase 2,70002,CAPEX - Building Contractor/Works,"441,106.82"
Cambridge City Council,Hill Partnerships Limited,10214300,06/04/22,107692,300090,New Build - Meadows and Buchan Street,70002,CAPEX - Building Contractor/Works,"294,890.31"
Cambridge City Council,Hill Partnerships Limited,10214300,06/04/22,107689,100258,Meadows Community Hub and Buchan St retail outlet,70001,CAPEX - Acquisition of Land & Existing Building,"298,928.26"
Cambridge City Council,Hi-Spec Services Ltd,10793000,01/03/22,107039,5024,E_invoicing Suspense Accounts,69100,Expenditure In Holding Account Awaiting Allocation,"2,020.00"
Cambridge City Council,Hi-Spec Services Ltd,10793000,01/03/22,107037,5024,E_invoicing Suspense Accounts,69100,Expenditure In Holding Account Awaiting Allocation,"1,942.53"
Cambridge City Council,Hi-Spec Services Ltd,10793000,01/03/22,107037,5024,E_invoicing Suspense Accounts,69100,Expenditure In Holding Account Awaiting Allocation,"9,712.63"
Cambridge City Council,HM Revenue & Customs (SDLT),10144205,31/03/22,105982,300104,RSAP Acquisitions,70001,CAPEX - Acquisition of Land & Existing Building,"8,500.00"
Cambridge City Council,HM Revenue & Customs (SDLT),10144205,19/04/22,107579,300104,RSAP Acquisitions,70001,CAPEX - Acquisition of Land & Existing Building,"7,750.00"
Cambridge City Council,Hollis Global Ltd,10216900,28/04/22,108015,1758,Other Commercial Properties,62400,Consultancy Fees,"4,170.00"
Cambridge City Council,Home Group Ltd,10055400,06/04/22,107002,1533,Emergency / Temporary Accommodation (GF),60400,Rents Payable,"38,870.04"
Cambridge City Council,Home-Start Cambridgeshire,10055700,01/04/22,105966,1057,Community Development Voluntary Support,64600,Grants And Contributions,"5,000.00"
Cambridge City Council,Hometrack Data Systems Limited,10055800,31/03/22,106538,1512,Sub-Regional Housing Strategy Co-ordinator,64800,Membership And Subscriptions,"14,500.00"
Cambridge City Council,Houghton & Son Ltd,10908100,31/03/22,107879,200001,Mandatory Disabled Facilities Grants (Tenants),70015,CAPEX - Grants Paid,"1,670.00"
Cambridge City Council,House of Flags Ltd,10621000,14/04/22,107111,8018,Admin Building Allocation,61703,"Purchase - Equipment, Furniture And Materials",979.08
Cambridge City Council,Housing Reviews Ltd,10056100,11/04/22,106831,1504,Housing Advice Service,62400,Consultancy Fees,500.00
Cambridge City Council,Huntingdonshire District Council,10056901,02/02/22,105792,1661,Parking Administration,64073,ICT Maintenance and Support,"8,323.98"
Cambridge City Council,Huntingdonshire District Council,10056901,30/03/22,107120,8008,Shared Payroll Service,64073,ICT Maintenance and Support,"2,160.00"
Cambridge City Council,Huntingdonshire District Council,10056901,30/03/22,106917,5062,3C ICT,64072,ICT Licences,"18,492.05"
Cambridge City Council,Huntingdonshire District Council,10056901,06/04/22,106690,9900,General Fund Balance Sheet,20119,Other Creditors - Other Entities And Individuals,"10,400.00"
Cambridge City Council,Huntingdonshire District Council,10056901,30/03/22,106919,5062,3C ICT,64072,ICT Licences,"12,595.10"
Cambridge City Council,Huntingdonshire District Council,10056901,24/03/22,106853,1661,Parking Administration,64073,ICT Maintenance and Support,"8,323.98"
Cambridge City Council,Hurst Park Estate Street Party,10964200,05/04/22,106289,1057,Community Development Voluntary Support,64600,Grants And Contributions,500.00
Cambridge City Council,Hussey Seatway Ltd,10314600,31/03/22,107240,1260,Corn Exchange and Guildhalls,60201,Cyclical/Planned Maintenance - Building,"1,469.00"
Cambridge City Council,Iliffe Media Publishing Ltd,10395200,31/03/22,105856,300097,New Build - Colville Road III,70011,CAPEX - Decant Costs,600.00
Cambridge City Council,Imontour LLP,10969200,14/04/22,107344,700322,,52240,Merchandise Commission,902.70
Cambridge City Council,IMWP (UK) Limited,10315500,31/03/22,105793,700315,,61910,Artist Fees,"21,071.70"
Cambridge City Council,Industrial Site Maintenance Ltd,10793100,31/03/22,106900,5024,E_invoicing Suspense Accounts,69100,Expenditure In Holding Account Awaiting Allocation,"18,911.98"
Cambridge City Council,Industrial Site Maintenance Ltd,10793100,31/03/22,106900,5024,E_invoicing Suspense Accounts,69100,Expenditure In Holding Account Awaiting Allocation,"3,782.39"
Cambridge City Council,Inform CPI Ltd,10164200,01/04/22,106680,1801,Local Taxation,64073,ICT Maintenance and Support,"3,500.00"
Cambridge City Council,Inform CPI Ltd,10164200,01/04/22,106680,8006,Accountancy and Support Services,64073,ICT Maintenance and Support,"3,500.00"
Cambridge City Council,InterQuest Group (UK) Ltd,10930800,31/03/22,106539,1217,Our Cambridge Transformation Programme,62400,Consultancy Fees,"13,000.00"
Cambridge City Council,InterQuest Group (UK) Ltd,10930800,31/03/22,106600,1217,Our Cambridge Transformation Programme,62400,Consultancy Fees,"8,400.00"
Cambridge City Council,InterQuest Group (UK) Ltd,10930800,31/03/22,106603,1217,Our Cambridge Transformation Programme,62400,Consultancy Fees,600.00
Cambridge City Council,Intracat Ltd,10954700,30/03/22,105794,1073,Community Development - Admin,61901,Catering Equipment,683.00
Cambridge City Council,Intracat Ltd,10954700,30/03/22,105794,1073,Community Development - Admin,61901,Catering Equipment,625.00
Cambridge City Council,Intracat Ltd,10954700,30/03/22,105794,1073,Community Development - Admin,61901,Catering Equipment,"2,190.00"
Cambridge City Council,Intracat Ltd,10954700,30/03/22,105794,1073,Community Development - Admin,61901,Catering Equipment,"4,837.00"
Cambridge City Council,Intracat Ltd,10954700,30/03/22,105794,1073,Community Development - Admin,61901,Catering Equipment,766.00
Cambridge City Council,It Takes a City (Cambridge),10452200,19/04/22,107295,1526,Homelessness Prevention Grant,64600,Grants And Contributions,"15,000.00"
Cambridge City Council,Jacobs,10060300,21/03/22,106696,9900,General Fund Balance Sheet,11708,Vat Debtor (Input Tax),539.00
Cambridge City Council,Jacobs,10060300,11/04/22,107660,9900,General Fund Balance Sheet,11708,Vat Debtor (Input Tax),550.23
Cambridge City Council,Jade Security Services Ltd,10060400,31/03/22,107006,5024,E_invoicing Suspense Accounts,69100,Expenditure In Holding Account Awaiting Allocation,933.40
Cambridge City Council,James Button & Co,,29/03/22,105464,1419,Environmental Health Operational Support,64800,Membership And Subscriptions,765.00
Cambridge City Council,Jimmys Cambridge,10061600,06/04/22,106413,1509,Grants to Housing Agencies (CCC funded),64600,Grants And Contributions,"7,500.00"
Cambridge City Council,Junction CDC Ltd,10062700,27/04/22,108028,1057,Community Development Voluntary Support,64600,Grants And Contributions,"12,500.00"
Cambridge City Council,Kestrel Fencing,10119900,30/03/22,105860,1871,Allotments,60201,Cyclical/Planned Maintenance - Building,"2,360.20"
Cambridge City Council,Kestrel Fencing,10119900,30/03/22,105857,1866,Open Space Asset Maintenance,61702,"Maintenance - Equipment, Furniture And Materials","1,425.20"
Cambridge City Council,Khidmat Sisters,10165500,01/04/22,105969,1057,Community Development Voluntary Support,64600,Grants And Contributions,800.00
Cambridge City Council,Kompan Ltd,10120100,03/04/22,106441,1868,Play Maintenance,61703,"Purchase - Equipment, Furniture And Materials","4,738.20"
Cambridge City Council,Kompan Ltd,10120100,29/03/22,107412,1102,Leisure Contract Client Costs,68412,MIRS - Direct Revenue Financing,"10,856.57"
Cambridge City Council,Kompan Ltd,10120100,22/04/22,107662,1868,Play Maintenance,61702,"Maintenance - Equipment, Furniture And Materials",850.26
Cambridge City Council,Landlord Furniture Packages UK Ltd,,22/11/21,103982,1517,Syrian Resettlement,60700,Fixtures & Fittings,"5,673.83"
Cambridge City Council,Lanpro Services Ltd,10890900,31/03/22,106604,8030,Depot Relocation Project,62400,Consultancy Fees,"1,150.00"
Cambridge City Council,Lanpro Services Ltd,10890900,31/03/22,106602,100358,Depot Relocation programme to create Operational Hub,70010,CAPEX - Other Professional Fees,"2,550.00"
Cambridge City Council,LAVAT Consulting Limited,10065800,31/03/22,106802,6007,Departmental Overheads-Client,62400,Consultancy Fees,"1,600.00"
Cambridge City Council,LAVAT Consulting Limited,10065800,31/03/22,106407,8006,Accountancy and Support Services,62400,Consultancy Fees,"2,300.00"
Cambridge City Council,LDA Design Consulting Ltd,10066000,31/03/22,105764,100324,City centre recovery - Combined Authority grant funding,70002,CAPEX - Building Contractor/Works,"2,100.00"
Cambridge City Council,Live Nation (Music) Uk Ltd,10332300,11/04/22,107252,9900,General Fund Balance Sheet,20118,Receipts In Advance - Other Entities And Individuals,"14,700.41"
Cambridge City Council,Local Government Association,10067300,07/04/22,106540,1351,Members Support,64300,Conference Expenses,545.00
Cambridge City Council,Locata (Housing Services) Ltd,10067500,31/03/22,106590,1503,CCC Choice Based Lettings (Revenue),64073,ICT Maintenance and Support,500.00
Cambridge City Council,LPL Construction Services,10617700,07/04/22,106822,1000,City Cambridge Cemeteries,60201,Cyclical/Planned Maintenance - Building,"1,087.90"
Cambridge City Council,M K A Ecology Ltd,10364300,28/04/22,108138,100203,S106 To the River - artist in residence,70010,CAPEX - Other Professional Fees,560.00
Cambridge City Council,M Watson Construction Ltd,10122200,31/03/22,105886,300000,Disabled Adaptions,70002,CAPEX - Building Contractor/Works,"5,043.62"
Cambridge City Council,M Watson Construction Ltd,10122200,31/03/22,105887,300000,Disabled Adaptions,70002,CAPEX - Building Contractor/Works,845.62
Cambridge City Council,Mackays of Cambridge Ltd,10068200,17/11/21,106084,300085,New Build - Cromwell Road Redevelopment (HRA),70010,CAPEX - Other Professional Fees,"1,005.08"
Cambridge City Council,"Make, Do and Mend",10962700,01/04/22,106117,1057,Community Development Voluntary Support,64600,Grants And Contributions,"3,000.00"
Cambridge City Council,Manchetts Ltd - Rescue & Recovery,10068801,13/04/22,107052,1858,Public Realm Enforcement,62401,Subcontractors,570.00
Cambridge City Council,Manchetts Ltd - Rescue & Recovery,10068801,21/04/22,107530,1858,Public Realm Enforcement,62401,Subcontractors,570.00
Cambridge City Council,Marick Management Ltd,10885500,06/04/22,107582,100300,Park Street car park development,70002,CAPEX - Building Contractor/Works,"400,341.61"
Cambridge City Council,Marshall Motor Group Ltd,10069502,16/02/22,106283,1031,Fleet Management - Operational,61703,"Purchase - Equipment, Furniture And Materials",525.00
Cambridge City Council,Martech Technical Services Ltd,10896200,25/04/22,107927,1102,Leisure Contract Client Costs,60201,Cyclical/Planned Maintenance - Building,"3,705.00"
Cambridge City Council,Maskearaid Industrial Supplies,10069900,14/04/22,107590,9900,General Fund Balance Sheet,11600,Consumable Stores,675.00
Cambridge City Council,Mass Timber Academy Ltd,10969100,01/04/22,107263,1701,3C Building Control,64300,Conference Expenses,"4,000.00"
Cambridge City Council,McNamara Consulting Ltd,10921800,05/04/22,106532,1701,3C Building Control,64300,Conference Expenses,"4,000.00"
Cambridge City Council,Meadows Children & Family Wing,10070500,01/04/22,105975,1057,Community Development Voluntary Support,64600,Grants And Contributions,"9,122.50"
Cambridge City Council,Meadows Children & Family Wing,10070500,01/04/22,105975,1057,Community Development Voluntary Support,64600,Grants And Contributions,"3,875.00"
Cambridge City Council,Mears Ltd,10121400,30/03/22,105659,6211,Heat and Hot Water Servicing,60225,Housing Repairs - Gas Maintenance Contract,"71,379.79"
Cambridge City Council,Mears Ltd,10121400,30/03/22,105659,6211,Heat and Hot Water Servicing,60225,Housing Repairs - Gas Maintenance Contract,"2,847.21"
Cambridge City Council,Mercer Tree Services Ltd,10071200,03/04/22,106017,1890,2 Seas,64040,Tree Works,825.00
Cambridge City Council,Mercer Tree Services Ltd,10071200,05/04/22,106409,6208,Voids,60233,Housing Repairs - Work Given To External Contractors,"1,125.00"
Cambridge City Council,Mercer Tree Services Ltd,10071200,05/04/22,106409,6208,Voids,60233,Housing Repairs - Work Given To External Contractors,750.00
Cambridge City Council,Metric Media Ltd,10401200,30/03/22,106085,1661,Parking Administration,60300,Signs Erecting & Removal,"1,012.00"
Cambridge City Council,Mick Perrin Worldwide Ltd,10317700,04/02/22,106158,700171,,61910,Artist Fees,"12,316.42"
Cambridge City Council,Mick Perrin Worldwide Ltd,10317700,31/03/22,106347,700367,,61910,Artist Fees,"13,323.57"
Cambridge City Council,Mid Suffolk Construction & Maintenance,10942300,14/03/22,106398,1100,Sport & Recreation Administration,60201,Cyclical/Planned Maintenance - Building,"1,415.00"
Cambridge City Council,Mid Suffolk Construction & Maintenance,10942300,16/03/22,106402,1102,Leisure Contract Client Costs,68412,MIRS - Direct Revenue Financing,"6,020.00"
Cambridge City Council,Mid Suffolk Construction & Maintenance,10942300,31/03/22,105967,100326,BEIS grant for Abbey pool decarbonisation works,70017,CAPEX - Purchase of Plant Machinery & Equipment,"6,215.00"
Cambridge City Council,Mid Suffolk Construction & Maintenance,10942300,07/04/22,106489,9900,General Fund Balance Sheet,21003,Construction Industry Tax (Cis),"1,243.00"
Cambridge City Council,MJ Partnership Ltd,10955100,31/03/22,106587,1073,Community Development - Admin,60115,Staff Development And Training,600.00
Cambridge City Council,Morgan Lambert Ltd,10620300,31/03/22,106368,6211,Heat and Hot Water Servicing,60225,Housing Repairs - Gas Maintenance Contract,"1,051.20"
Cambridge City Council,Motus Truck and Van,10078700,26/04/22,108079,1032,Garage- External Work,61703,"Purchase - Equipment, Furniture And Materials",991.89
Cambridge City Council,Motus Truck and Van,10078700,20/04/22,107596,1032,Garage- External Work,61703,"Purchase - Equipment, Furniture And Materials",817.70
Cambridge City Council,Motus Truck and Van,10078700,19/04/22,107596,1032,Garage- External Work,61703,"Purchase - Equipment, Furniture And Materials",991.89
Cambridge City Council,Mowell & Co Ltd,10121800,19/04/22,107320,1100,Sport & Recreation Administration,60201,Cyclical/Planned Maintenance - Building,"2,350.00"
Cambridge City Council,Mushroom Lighting Technology Ltd,10839000,28/03/22,106609,1938,Reopening of the High Street Grant,62401,Subcontractors,"2,388.40"
Cambridge City Council,NABMA Ltd,10074400,28/03/22,106006,1779,Market Square Project,62400,Consultancy Fees,"2,000.00"
Cambridge City Council,Navigatr Limited,10851000,27/04/22,107993,1253,Cambridgeshire and Peterborough Region of Learning,69150,Other Services,"9,449.72"
Cambridge City Council,Navigatr Limited,10851000,27/04/22,107993,1253,Cambridgeshire and Peterborough Region of Learning,69150,Other Services,"1,417.47"
Cambridge City Council,Navigatr Limited,10851000,27/04/22,107993,1253,Cambridgeshire and Peterborough Region of Learning,62400,Consultancy Fees,"1,667.00"
Cambridge City Council,Navigatr Limited,10851000,20/04/22,107444,1253,Cambridgeshire and Peterborough Region of Learning,69150,Other Services,"6,646.65"
Cambridge City Council,Navigatr Limited,10851000,20/04/22,107444,1253,Cambridgeshire and Peterborough Region of Learning,69150,Other Services,997.00
Cambridge City Council,NEC Software Solutions UK Ltd,10076700,31/03/22,105868,1801,Local Taxation,60011,Agency Staff,"6,930.00"
Cambridge City Council,NEC Software Solutions UK Ltd,10076700,20/04/22,107507,1504,Housing Advice Service,64072,ICT Licences,568.17
Cambridge City Council,NEC Software Solutions UK Ltd,10076700,31/03/22,106858,1803,Revenue Overheads,60011,Agency Staff,"1,080.00"
Cambridge City Council,NEC Software Solutions UK Ltd,10076700,31/03/22,106858,1803,Revenue Overheads,60011,Agency Staff,"7,000.00"
Cambridge City Council,Nemco Utilities Ltd,10075300,25/04/22,107755,1260,Corn Exchange and Guildhalls,60207,Health And Safety Supplies And Services,"2,068.50"
Cambridge City Council,Neopost Ltd,10137601,05/04/22,106319,5063,Postal Franking,64100,Postage And Courier Services,"10,000.00"
Cambridge City Council,New International Encounter,10161400,29/03/22,107143,1251,Culture and Community,62900,Events,800.00
Cambridge City Council,Newlyn PLC,10075600,26/03/22,106569,9900,General Fund Balance Sheet,11708,Vat Debtor (Input Tax),924.00
Cambridge City Council,Newlyn PLC,10075600,26/03/22,106570,9900,General Fund Balance Sheet,11708,Vat Debtor (Input Tax),866.61
Cambridge City Council,Norse Commercial Services Ltd t/a N-Able,10130000,31/03/22,106050,300000,Disabled Adaptions,70007,CAPEX - Building Contractor/Works - Major Adaptations (HRA),"4,638.25"
Cambridge City Council,Norse Commercial Services Ltd t/a N-Able,10130000,31/03/22,106048,300000,Disabled Adaptions,70007,CAPEX - Building Contractor/Works - Major Adaptations (HRA),"4,457.00"
Cambridge City Council,North Cambridge Community Partnership,10131301,01/04/22,105984,1057,Community Development Voluntary Support,64600,Grants And Contributions,"8,145.00"
Cambridge City Council,Northgate Vehicle Hire Ltd,10076800,07/04/22,106714,1052,Children & Young People's Service,60909,Vehicle Hire,502.88
Cambridge City Council,Noveus Ltd,10471600,30/03/22,105869,8030,Depot Relocation Project,62400,Consultancy Fees,500.00
Cambridge City Council,Nurture Landscapes Ltd,10132000,31/03/22,105605,1774,"Cambridge Road Retail Park, Haverhill",60503,Grounds Maintenance,851.89
Cambridge City Council,Nurture Landscapes Ltd,10132000,01/04/22,106903,1768,Other Industrial Properties,60503,Grounds Maintenance,856.65
Cambridge City Council,OASIS - Offsite Storage & Integrated Services UK Ltd,10155800,31/03/22,106534,8023,Business Support - Centralised Overheads,63700,Removal Services,585.82
Cambridge City Council,Oasis Hotel Harlow Ltd,10195300,29/03/22,106682,1502,Homelessness Costs,64401,B&B Accommodation,"1,080.00"
Cambridge City Council,Oblique Arts,10159100,27/04/22,108026,1057,Community Development Voluntary Support,64600,Grants And Contributions,"4,590.00"
Cambridge City Council,OD Change Consulting Ltd,10966600,22/04/22,107928,1217,Our Cambridge Transformation Programme,60115,Staff Development And Training,"1,428.00"
Cambridge City Council,Outspoken Delivery LLP,10078900,31/03/22,105891,8023,Business Support - Centralised Overheads,64100,Postage And Courier Services,"1,711.95"
Cambridge City Council,P J C Consultancy Ltd,10212300,21/03/22,104711,300086,New Build - Teddar Way,70020,CAPEX - Feasibility/investigatory work,880.00
Cambridge City Council,PAC Electrical Services Ltd t/a PA Collacott & Co,10832300,31/01/22,108125,8015,Guildhall,60202,Cyclical/Planned Maintenance - Fixed Plant,"1,140.78"
Cambridge City Council,Panther Taxis Ltd,10079600,31/03/22,106395,1712,Taxicard Service,63900,Miscellaneous Expenses,"1,364.00"
Cambridge City Council,Parktennis Cic,10079900,08/04/22,106683,1100,Sport & Recreation Administration,62900,Events,850.00
Cambridge City Council,Pearce Sound & Lighting Ltd,10321200,27/04/22,107905,1260,Corn Exchange and Guildhalls,61700,Hire - Equipment Furniture And Materials,"1,250.00"
Cambridge City Council,Pearce Sound & Lighting Ltd,10321200,26/04/22,107882,1260,Corn Exchange and Guildhalls,61700,Hire - Equipment Furniture And Materials,503.50
Cambridge City Council,Penna PLC,10080400,14/04/22,107199,1419,Environmental Health Operational Support,60116,Staff Recruitment Costs,"1,553.00"
Cambridge City Council,Penna PLC,10080400,16/03/22,106885,6203,Asset Management and Compliance,60116,Staff Recruitment Costs,"1,072.81"
Cambridge City Council,Penna PLC,10080400,16/03/22,106887,6203,Asset Management and Compliance,60116,Staff Recruitment Costs,"1,072.81"
Cambridge City Council,Penna PLC,10080400,16/03/22,106879,6203,Asset Management and Compliance,60116,Staff Recruitment Costs,970.00
Cambridge City Council,Pennon Water Services Ltd t/a Source for Business,10080500,04/04/22,106192,5024,E_invoicing Suspense Accounts,69100,Expenditure In Holding Account Awaiting Allocation,"4,006.61"
Cambridge City Council,People Asset Management Ltd,10145100,31/03/22,106012,8001,Human Resources Operations (Staff-General),60111,Occupational Health,828.50
Cambridge City Council,People Asset Management Ltd,10145100,31/03/22,106012,8001,Human Resources Operations (Staff-General),60111,Occupational Health,"1,721.75"
Cambridge City Council,Petersfield Area Community Trust PACT,10197000,26/04/22,107795,1057,Community Development Voluntary Support,64600,Grants And Contributions,750.00
Cambridge City Council,PHS Group Ltd,10082000,25/02/22,105248,1001,Cambridge Crematorium,60501,Cleaning Services,664.06
Cambridge City Council,PHS Group Ltd,10082000,26/03/22,105253,1001,Cambridge Crematorium,60501,Cleaning Services,"1,475.36"
Cambridge City Council,PHS Group Ltd,10082000,27/04/22,107907,1001,Cambridge Crematorium,60501,Cleaning Services,696.22
Cambridge City Council,Plan B Management Solutions Ltd,10905500,14/04/22,107414,1850,Grounds Maintenance & Street Cleaning,64050,Waste Disposal Costs,"3,485.00"
Cambridge City Council,Plan B Management Solutions Ltd,10905500,14/04/22,107414,8030,Depot Relocation Project,62400,Consultancy Fees,"5,200.00"
Cambridge City Council,Plan B Management Solutions Ltd,10905500,14/04/22,107414,100358,Depot Relocation programme to create Operational Hub,70002,CAPEX - Building Contractor/Works,"3,250.00"
Cambridge City Council,Pocock & Shaw Ltd,10138301,20/04/22,107383,6004,Leasehold Property Management,62400,Consultancy Fees,805.00
Cambridge City Council,PortalPlanQuest Ltd,10239400,07/04/22,106882,100358,Depot Relocation programme to create Operational Hub,70010,CAPEX - Other Professional Fees,"3,074.20"
Cambridge City Council,Post office Ltd,10082800,12/04/22,106891,6200,Building Maintenance Response - Direct,60905,Vehicle Licensing,825.00
Cambridge City Council,Post office Ltd,10082800,12/04/22,106891,1850,Grounds Maintenance & Street Cleaning,60905,Vehicle Licensing,575.00
Cambridge City Council,Potter Raper Partnership,10294300,31/03/22,105865,300091,New Build - Campkin Road Phase 2,70010,CAPEX - Other Professional Fees,"2,812.50"
Cambridge City Council,Potter Raper Partnership,10294300,31/03/22,105864,300087,New Build Colville Road (Phase 2),70010,CAPEX - Other Professional Fees,"3,250.00"
Cambridge City Council,Potter Raper Partnership,10294300,31/03/22,105861,300047,[Completed] New Build - Colville Road (Phase 1),70010,CAPEX - Other Professional Fees,"5,640.00"
Cambridge City Council,Potter Raper Partnership,10294300,31/03/22,106263,1506,Housing Development Agency,62400,Consultancy Fees,750.00
Cambridge City Council,Potter Raper Partnership,10294300,31/03/22,105863,300087,New Build Colville Road (Phase 2),70010,CAPEX - Other Professional Fees,"2,935.28"
Cambridge City Council,Potter Raper Partnership,10294300,31/03/22,105866,300091,New Build - Campkin Road Phase 2,70010,CAPEX - Other Professional Fees,"3,238.72"
Cambridge City Council,PPG Architectural Coatings UK Ltd,10083000,26/04/22,108091,6200,Building Maintenance Response - Direct,61703,"Purchase - Equipment, Furniture And Materials",635.29
Cambridge City Council,PPK Services Limited,10083100,22/02/22,106283,1032,Garage- External Work,61703,"Purchase - Equipment, Furniture And Materials",795.00
Cambridge City Council,PPL PRS Ltd,10274200,07/04/22,106715,700336,,60415,PRS,986.27
Cambridge City Council,PPL PRS Ltd,10274200,07/04/22,106715,700324,,60415,PRS,"1,313.13"
Cambridge City Council,PPL PRS Ltd,10274200,07/04/22,106715,700326,,60415,PRS,"2,049.54"
Cambridge City Council,PPL PRS Ltd,10274200,07/04/22,106715,700347,,60415,PRS,666.58
Cambridge City Council,PPL PRS Ltd,10274200,07/04/22,106715,700364,,60415,PRS,"2,540.16"
Cambridge City Council,PPL PRS Ltd,10274200,07/04/22,106715,700251,,60415,PRS,"1,437.97"
Cambridge City Council,PPL PRS Ltd,10274200,07/04/22,106715,700226,,60415,PRS,772.68
Cambridge City Council,PPL PRS Ltd,10274200,07/04/22,106715,700334,,60415,PRS,"1,399.49"
Cambridge City Council,PPL PRS Ltd,10274200,07/04/22,106715,700275,,60415,PRS,"1,934.97"
Cambridge City Council,PPL PRS Ltd,10274200,07/04/22,106715,700233,,60415,PRS,"1,357.20"
Cambridge City Council,PPL PRS Ltd,10274200,07/04/22,106715,700274,,60415,PRS,"1,197.64"
Cambridge City Council,PPL PRS Ltd,10274200,07/04/22,106715,700332,,60415,PRS,"1,684.40"
Cambridge City Council,PPL PRS Ltd,10274200,07/04/22,106715,700276,,60415,PRS,"2,560.85"
Cambridge City Council,PPL PRS Ltd,10274200,07/04/22,106715,700310,,60415,PRS,"1,080.40"
Cambridge City Council,PPL PRS Ltd,10274200,07/04/22,106715,700225,,60415,PRS,"1,617.25"
Cambridge City Council,PPL PRS Ltd,10274200,07/04/22,106715,700269,,60415,PRS,"1,345.18"
Cambridge City Council,PPL PRS Ltd,10274200,07/04/22,106715,700242,,60415,PRS,"1,553.31"
Cambridge City Council,PPL PRS Ltd,10274200,07/04/22,106715,700263,,60415,PRS,"2,532.37"
Cambridge City Council,PPL PRS Ltd,10274200,07/04/22,106715,700287,,60415,PRS,"1,880.65"
Cambridge City Council,PPL PRS Ltd,10274200,07/04/22,106715,700187,,60415,PRS,975.18
Cambridge City Council,PPL PRS Ltd,10274200,07/04/22,106715,700209,,60415,PRS,547.71
Cambridge City Council,PPL PRS Ltd,10274200,07/04/22,106715,700208,,60415,PRS,"1,815.47"
Cambridge City Council,PPL PRS Ltd,10274200,07/04/22,106715,700223,,60415,PRS,"1,699.78"
Cambridge City Council,PPL PRS Ltd,10274200,07/04/22,106715,700264,,60415,PRS,866.00
Cambridge City Council,PPL PRS Ltd,10274200,07/04/22,106715,700330,,60415,PRS,"2,580.19"
Cambridge City Council,PPL PRS Ltd,10274200,07/04/22,106715,700202,,60415,PRS,"1,268.12"
Cambridge City Council,PPL PRS Ltd,10274200,07/04/22,106715,700316,,60415,PRS,"1,566.07"
Cambridge City Council,PPL PRS Ltd,10274200,07/04/22,106715,700257,,60415,PRS,"1,440.48"
Cambridge City Council,Print.UK.Com,10083800,31/03/22,106029,1353,Elections,62001,Printing,"2,511.03"
Cambridge City Council,Print.UK.Com,10083800,31/03/22,106023,1353,Elections,62001,Printing,"1,377.50"
Cambridge City Council,Print.UK.Com,10083800,31/03/22,106026,1353,Elections,64100,Postage And Courier Services,"37,773.30"
Cambridge City Council,Priority Hire Ltd,10084100,28/03/22,106756,6110,City Homes Estate Management,60909,Vehicle Hire,684.00
Cambridge City Council,Priority Hire Ltd,10084100,14/04/22,107135,6110,City Homes Estate Management,60909,Vehicle Hire,605.00
Cambridge City Council,Proactive Personnel Ltd,10367100,09/03/22,107020,1031,Fleet Management - Operational,60011,Agency Staff,680.00
Cambridge City Council,Prompt Glazing Ltd,10283900,25/03/22,105317,300012,External Doors,70003,CAPEX - Building Contractor/Works - Voids & Emergencies,769.00
Cambridge City Council,Prompt Glazing Ltd,10283900,07/04/22,106469,300012,External Doors,70003,CAPEX - Building Contractor/Works - Voids & Emergencies,712.50
Cambridge City Council,Prompt Glazing Ltd,10283900,30/03/22,105550,300012,External Doors,70003,CAPEX - Building Contractor/Works - Voids & Emergencies,769.00
Cambridge City Council,Prompt Glazing Ltd,10283900,30/03/22,105552,300012,External Doors,70003,CAPEX - Building Contractor/Works - Voids & Emergencies,712.50
Cambridge City Council,Prompt Glazing Ltd,10283900,08/04/22,106572,6208,Voids,60233,Housing Repairs - Work Given To External Contractors,533.00
Cambridge City Council,Prompt Glazing Ltd,10283900,07/04/22,106466,300012,External Doors,70003,CAPEX - Building Contractor/Works - Voids & Emergencies,769.00
Cambridge City Council,Prompt Glazing Ltd,10283900,07/04/22,106468,6012,City Homes Expenditure,60271,Security Of Premises,769.00
Cambridge City Council,Prompt Glazing Ltd,10283900,13/04/22,106957,300012,External Doors,70003,CAPEX - Building Contractor/Works - Voids & Emergencies,"1,453.78"
Cambridge City Council,Prompt Glazing Ltd,10283900,14/04/22,107147,300012,External Doors,70003,CAPEX - Building Contractor/Works - Voids & Emergencies,769.00
Cambridge City Council,Prompt Glazing Ltd,10283900,16/04/22,107256,300012,External Doors,70003,CAPEX - Building Contractor/Works - Voids & Emergencies,769.00
Cambridge City Council,Prompt Glazing Ltd,10283900,16/04/22,107256,300012,External Doors,70003,CAPEX - Building Contractor/Works - Voids & Emergencies,917.78
Cambridge City Council,Prompt Glazing Ltd,10283900,22/04/22,107562,300012,External Doors,70003,CAPEX - Building Contractor/Works - Voids & Emergencies,"1,453.78"
Cambridge City Council,Prompt Glazing Ltd,10283900,22/04/22,107567,300012,External Doors,70003,CAPEX - Building Contractor/Works - Voids & Emergencies,"1,481.50"
Cambridge City Council,Prompt Glazing Ltd,10283900,22/04/22,107568,6207,Repairs Day to Day,60233,Housing Repairs - Work Given To External Contractors,795.00
Cambridge City Council,Prompt Glazing Ltd,10283900,22/04/22,107565,300012,External Doors,70003,CAPEX - Building Contractor/Works - Voids & Emergencies,712.50
Cambridge City Council,Queen Edith's Community Forum,10086000,27/04/22,108025,1057,Community Development Voluntary Support,64600,Grants And Contributions,500.00
Cambridge City Council,R J Warren Ltd,10123500,25/04/22,107962,1868,Play Maintenance,61702,"Maintenance - Equipment, Furniture And Materials","1,137.00"
Cambridge City Council,R J Warren Ltd,10123500,25/04/22,107776,1866,Open Space Asset Maintenance,61702,"Maintenance - Equipment, Furniture And Materials","1,600.00"
Cambridge City Council,Radoslaw Smutek,10935400,30/03/22,106123,1651,Grand Arcade Car Park,60207,Health And Safety Supplies And Services,"1,000.00"
Cambridge City Council,Radoslaw Smutek,10935400,30/03/22,106124,1653,Grafton Centre West Car Park,60201,Cyclical/Planned Maintenance - Building,"2,150.00"
Cambridge City Council,Raventree Ltd T/A Premiere Kitchens,10086700,26/04/22,108096,6200,Building Maintenance Response - Direct,61703,"Purchase - Equipment, Furniture And Materials",635.29
Cambridge City Council,Raymond Gubbay Ltd,10322700,03/03/22,106616,9900,General Fund Balance Sheet,20118,Receipts In Advance - Other Entities And Individuals,"18,238.50"
Cambridge City Council,Realife Trust,10086900,20/04/22,107418,1766,Orwell House Offices-Internal,62004,General Office Expenses,"1,520.84"
Cambridge City Council,Recite Me Ltd,10298600,31/03/22,105795,1203,Corporate Policy,64073,ICT Maintenance and Support,"2,060.00"
Cambridge City Council,Regency Aerials (Cambridge) Ltd,10123400,22/04/22,107570,6207,Repairs Day to Day,60233,Housing Repairs - Work Given To External Contractors,695.00
Cambridge City Council,Remembering Icons Ltd t/a The TCB Group,10968300,11/04/22,107556,700186,,52240,Merchandise Commission,533.33
Cambridge City Council,Richards Partington Architects Ltd T/A Studio Partington,10921200,31/03/22,106641,300106,New Build - St Thomas's Road,70010,CAPEX - Other Professional Fees,"10,665.00"
Cambridge City Council,Richards Partington Architects Ltd T/A Studio Partington,10921200,31/03/22,106641,300107,New Build - Paget Road,70010,CAPEX - Other Professional Fees,"10,665.00"
Cambridge City Council,Rightmove Group Ltd,10089400,20/04/22,107980,1516,CLG Supplementary Homelessness Grants,62005,"Advertising, Publicity And Marketing","1,095.00"
Cambridge City Council,Rightmove Group Ltd,10089400,20/04/22,107624,1758,Other Commercial Properties,62005,"Advertising, Publicity And Marketing",505.00
Cambridge City Council,Rock Solid Group Ltd,10883000,01/04/22,106035,700312,,60011,Agency Staff,985.00
Cambridge City Council,Rock Solid Group Ltd,10883000,01/04/22,106035,700346,,60011,Agency Staff,"1,433.80"
Cambridge City Council,Rock Solid Group Ltd,10883000,01/04/22,106035,700346,,60011,Agency Staff,"1,550.80"
Cambridge City Council,Rock-It Promotions,10377900,29/03/22,105798,1260,Corn Exchange and Guildhalls,62000,"Clothes, Uniform And Laundry","3,679.00"
Cambridge City Council,Rock-It Promotions,10377900,29/03/22,105797,1260,Corn Exchange and Guildhalls,62000,"Clothes, Uniform And Laundry",552.60
Cambridge City Council,Rock-It Promotions,10377900,29/03/22,105799,1261,City Events,62000,"Clothes, Uniform And Laundry","1,414.96"
Cambridge City Council,Romsey Mill Trust,10090200,29/03/22,106934,100247,S106 Romsey Mill community facility grant,70015,CAPEX - Grants Paid,753.79
Cambridge City Council,Romsey Mill Trust Ltd - Youth Centre,10090201,05/04/22,106176,1057,Community Development Voluntary Support,64600,Grants And Contributions,"8,625.00"
Cambridge City Council,Rossfield Design Ltd T/A Minuteman Press,10090300,30/03/22,105754,1421,Public Control - Taxis,62005,"Advertising, Publicity And Marketing",553.00
Cambridge City Council,Rossfield Design Ltd T/A Minuteman Press,10090300,07/03/22,106033,1260,Corn Exchange and Guildhalls,62002,Stationery,523.20
Cambridge City Council,Rowan Humberstone,10090401,05/04/22,106294,1057,Community Development Voluntary Support,64600,Grants And Contributions,"2,500.00"
Cambridge City Council,Rowan Humberstone,10090401,05/04/22,106294,1057,Community Development Voluntary Support,64600,Grants And Contributions,500.00
Cambridge City Council,Royal Mail Group Ltd,10128401,29/03/22,106091,8023,Business Support - Centralised Overheads,64100,Postage And Courier Services,"2,725.17"
Cambridge City Council,Royal Mail Group Ltd,10128401,12/04/22,107635,8023,Business Support - Centralised Overheads,64100,Postage And Courier Services,"1,253.70"
Cambridge City Council,Royal Mail Group Ltd,10128401,04/04/22,106345,8023,Business Support - Centralised Overheads,64100,Postage And Courier Services,"1,853.35"
Cambridge City Council,Royal Mail Group Ltd,10128401,05/04/22,106765,8023,Business Support - Centralised Overheads,64100,Postage And Courier Services,"2,078.42"
Cambridge City Council,Royal Mail Group Ltd,10128401,19/04/22,107636,8023,Business Support - Centralised Overheads,64100,Postage And Courier Services,"2,213.28"
Cambridge City Council,Royal Philharmonic Orchestra Ltd,10323600,31/03/22,106349,700345,,61910,Artist Fees,"35,571.77"
Cambridge City Council,RSA - Royal Society of Arts,10850900,28/03/22,107282,1253,Cambridgeshire and Peterborough Region of Learning,62400,Consultancy Fees,"2,156.42"
Cambridge City Council,RSA - Royal Society of Arts,10850900,28/03/22,107282,1253,Cambridgeshire and Peterborough Region of Learning,62400,Consultancy Fees,"1,078.21"
Cambridge City Council,RSA - Royal Society of Arts,10850900,28/03/22,107282,1253,Cambridgeshire and Peterborough Region of Learning,62400,Consultancy Fees,"1,078.21"
Cambridge City Council,Rubber Cheese Limited,10794000,31/03/22,105874,100324,City centre recovery - Combined Authority grant funding,70010,CAPEX - Other Professional Fees,"7,374.75"
Cambridge City Council,Rubber Cheese Limited,10794000,25/04/22,107963,100324,City centre recovery - Combined Authority grant funding,70010,CAPEX - Other Professional Fees,"2,792.00"
Cambridge City Council,Rustat Road Neighbourhood Association,10964400,05/04/22,106295,1057,Community Development Voluntary Support,64600,Grants And Contributions,500.00
Cambridge City Council,S P Landscapes & Tree Contractors Ltd,10124100,31/03/22,106220,1876,Arboriculture,64040,Tree Works,876.00
Cambridge City Council,S P Landscapes & Tree Contractors Ltd,10124100,15/03/22,106350,1876,Arboriculture,64040,Tree Works,"1,552.04"
Cambridge City Council,S P Landscapes & Tree Contractors Ltd,10124100,22/03/22,105755,1876,Arboriculture,64040,Tree Works,650.00
Cambridge City Council,S P Landscapes & Tree Contractors Ltd,10124100,31/03/22,106220,1885,Reverse Agency (formerly Unclassified Routine),64040,Tree Works,"1,021.00"
Cambridge City Council,S P Landscapes & Tree Contractors Ltd,10124100,15/02/22,106343,100353,S106 tree planting at Coleridge Rd rec and Lichfield Rd,70013,CAPEX - Landscaping,"2,650.00"
Cambridge City Council,S P Landscapes & Tree Contractors Ltd,10124100,31/03/22,106639,1883,Flood Risk Management,60501,Cleaning Services,"6,963.10"
Cambridge City Council,S P Landscapes & Tree Contractors Ltd,10124100,19/04/22,107309,1883,Flood Risk Management,60501,Cleaning Services,625.00
Cambridge City Council,S P Landscapes & Tree Contractors Ltd,10124100,25/04/22,107760,6012,City Homes Expenditure,64040,Tree Works,600.00
Cambridge City Council,S R Harradine Haulage Ltd,10437700,19/04/22,107410,1856,Streets & Open Spaces (Operations) - Indirect Costs,64050,Waste Disposal Costs,"1,100.00"
Cambridge City Council,Safe Soulmates,10964700,05/04/22,106336,1057,Community Development Voluntary Support,64600,Grants And Contributions,500.00
Cambridge City Council,Sharpe Pritchard LLP,10093300,31/01/22,106638,1253,Cambridgeshire and Peterborough Region of Learning,63200,Legal Fees,"5,000.00"
Cambridge City Council,Sharpe Pritchard LLP,10093300,31/03/22,106935,1071,Clay Farm Community Centre,63200,Legal Fees,819.50
Cambridge City Council,Sharpe Pritchard LLP,10093300,31/03/22,106860,1661,Parking Administration,62400,Consultancy Fees,"2,154.00"
Cambridge City Council,Sharpe Pritchard LLP,10093300,31/03/22,106837,300038,Wall Structure,70010,CAPEX - Other Professional Fees,570.00
Cambridge City Council,Shirlene Flowers,10972700,27/04/22,107899,300042,Acquisitions & Disposals,70011,CAPEX - Decant Costs,"1,250.00"
Cambridge City Council,Siemens Financial Services Limited,10093900,10/04/22,106772,1001,Cambridge Crematorium,61700,Hire - Equipment Furniture And Materials,788.00
Cambridge City Council,Signet Signs Ltd,10816800,22/04/22,107619,1353,Elections,61703,"Purchase - Equipment, Furniture And Materials","1,440.00"
Cambridge City Council,SIN Cru,10768900,26/04/22,107799,1057,Community Development Voluntary Support,64600,Grants And Contributions,"2,000.00"
Cambridge City Council,SIN Cru,10768900,26/04/22,107799,1057,Community Development Voluntary Support,64600,Grants And Contributions,500.00
Cambridge City Council,SJM Concerts Ltd,10324500,21/03/22,105976,9900,General Fund Balance Sheet,20118,Receipts In Advance - Other Entities And Individuals,"6,880.66"
Cambridge City Council,SJM Concerts Ltd,10324500,28/03/22,105978,9900,General Fund Balance Sheet,20118,Receipts In Advance - Other Entities And Individuals,"11,539.73"
Cambridge City Council,South Cambridgeshire District Council,10096103,16/03/22,104599,1519,Shared Home Improvement Agency,60400,Rents Payable,"5,000.00"
Cambridge City Council,South Cambridgeshire District Council,10096103,01/04/22,106543,1001,Cambridge Crematorium,60503,Grounds Maintenance,694.20
Cambridge City Council,South Cambridgeshire District Council,10096103,27/04/22,107978,9900,General Fund Balance Sheet,30001,Gf Earmarked Reserves Balance,"87,157.00"
Cambridge City Council,South Staffordshire Water PLC,10134701,28/02/22,106199,5024,E_invoicing Suspense Accounts,69100,Expenditure In Holding Account Awaiting Allocation,"22,019.82"
Cambridge City Council,South Staffordshire Water PLC,10134701,20/12/21,106193,5024,E_invoicing Suspense Accounts,69100,Expenditure In Holding Account Awaiting Allocation,"3,628.74"
Cambridge City Council,South Staffordshire Water PLC,10134701,31/12/21,106195,5024,E_invoicing Suspense Accounts,69100,Expenditure In Holding Account Awaiting Allocation,"3,626.51"
Cambridge City Council,South Staffordshire Water PLC,10134701,31/01/22,106197,5024,E_invoicing Suspense Accounts,69100,Expenditure In Holding Account Awaiting Allocation,"5,589.73"
Cambridge City Council,Spektrix Ltd,10325000,28/03/22,105800,1260,Corn Exchange and Guildhalls,64070,ICT Hardware,"6,465.50"
Cambridge City Council,Sports Surface Maintenance Ltd,10144600,30/03/22,105757,1102,Leisure Contract Client Costs,60201,Cyclical/Planned Maintenance - Building,808.00
Cambridge City Council,St Martins Church,10098300,19/04/22,107299,1057,Community Development Voluntary Support,64600,Grants And Contributions,500.00
Cambridge City Council,St Paul's Cambridge,10098201,27/04/22,108010,1057,Community Development Voluntary Support,64600,Grants And Contributions,500.00
Cambridge City Council,St Philips CE (A) Primary School PTA,10969700,19/04/22,107390,1057,Community Development Voluntary Support,64600,Grants And Contributions,500.00
Cambridge City Council,Stannah Lift Services,10124300,06/04/22,106483,300000,Disabled Adaptions,70002,CAPEX - Building Contractor/Works,"14,337.00"
Cambridge City Council,Stannah Lift Services,10124300,09/02/22,105802,200001,Mandatory Disabled Facilities Grants (Tenants),70015,CAPEX - Grants Paid,"14,423.00"
Cambridge City Council,Stepney Brothers Limited,10098600,31/03/22,106351,8009,Insurance Fund,67302,Insurance Claim,"3,510.54"
Cambridge City Council,Storeys Field Community Trust,10145000,31/03/22,106640,6203,Asset Management and Compliance,60402,Premises Hire - Facilities,592.58
Cambridge City Council,Stripe Consulting Limited,10099000,31/03/22,105805,1661,Parking Administration,62400,Consultancy Fees,"1,000.00"
Cambridge City Council,Student Community Action,10099200,01/04/22,105992,1057,Community Development Voluntary Support,64600,Grants And Contributions,"6,000.00"
Cambridge City Council,Studio 24 Ltd,10249400,01/04/22,108067,1260,Corn Exchange and Guildhalls,61930,Cultural Services and Events Website,"1,209.70"
Cambridge City Council,SW Health & Wellbeing CIC,10964900,05/04/22,106340,1057,Community Development Voluntary Support,64600,Grants And Contributions,"5,000.00"
Cambridge City Council,Swatch Group (UK) Ltd T/A Swiss Timing,10100500,05/04/22,106804,1102,Leisure Contract Client Costs,60201,Cyclical/Planned Maintenance - Building,"2,150.00"
Cambridge City Council,Switch2 Energy Ltd,10966400,23/03/22,106782,6208,Voids,60236,Housing Repairs - Void Utility Costs,"1,082.68"
Cambridge City Council,SWWB Ltd T/ACambridge Water,10134700,15/03/22,105601,1850,Grounds Maintenance & Street Cleaning,61700,Hire - Equipment Furniture And Materials,"2,138.90"
Cambridge City Council,Tanner & Hall Roofing & Solar Systems Ltd,10124500,31/03/22,106007,6207,Repairs Day to Day,60233,Housing Repairs - Work Given To External Contractors,750.00
Cambridge City Council,Tanner & Hall Roofing & Solar Systems Ltd,10124500,31/03/22,106428,6207,Repairs Day to Day,60233,Housing Repairs - Work Given To External Contractors,750.00
Cambridge City Council,TEG MJR Ltd,10332100,19/03/22,106512,9900,General Fund Balance Sheet,20118,Receipts In Advance - Other Entities And Individuals,"14,195.59"
Cambridge City Council,Tempo Time Credits Limited,10180600,01/04/22,105998,1057,Community Development Voluntary Support,64600,Grants And Contributions,"10,000.00"
Cambridge City Council,Thames Laboratories Ltd,,31/03/22,106020,6215,Risk and Compliance,60237,Asbestos Investigation/Surveys,"14,026.20"
Cambridge City Council,Thames Laboratories Ltd,,31/03/22,106095,6215,Risk and Compliance,60237,Asbestos Investigation/Surveys,"1,401.96"
Cambridge City Council,Thames Laboratories Ltd,,31/03/22,106222,6215,Risk and Compliance,60237,Asbestos Investigation/Surveys,"3,693.95"
Cambridge City Council,The Beck Co Ltd,10101800,06/04/22,106943,9900,General Fund Balance Sheet,11600,Consumable Stores,520.32
Cambridge City Council,The Bootleg Beatles,10306500,31/03/22,106014,700144,,61910,Artist Fees,"18,286.75"
Cambridge City Council,The Cambridge Russian Speaking Society,10515400,19/04/22,107377,1057,Community Development Voluntary Support,64600,Grants And Contributions,500.00
Cambridge City Council,The Chamifealion Charitable Trust,10963500,05/04/22,106225,1057,Community Development Voluntary Support,64600,Grants And Contributions,500.00
Cambridge City Council,The Directory of Social Change,10961900,01/04/22,106053,1251,Culture and Community,62900,Events,915.00
Cambridge City Council,The GET Group,10103000,06/04/22,106412,1057,Community Development Voluntary Support,64600,Grants And Contributions,"6,000.00"
Cambridge City Council,The Highfield Event Group Ltd,10410700,19/04/22,107319,790015,,61710,Hire of Marquees/Staging,"12,750.00"
Cambridge City Council,The Homing Club,10474800,05/04/22,106277,1057,Community Development Voluntary Support,64600,Grants And Contributions,500.00
Cambridge City Council,The Kings Hedges Family Support Project,10260200,05/04/22,106173,1057,Community Development Voluntary Support,64600,Grants And Contributions,"10,000.00"
Cambridge City Council,The Kings Hedges Family Support Project,10260200,05/04/22,106173,1057,Community Development Voluntary Support,64600,Grants And Contributions,500.00
Cambridge City Council,The Kite Trust,10103700,01/04/22,105971,1057,Community Development Voluntary Support,64600,Grants And Contributions,"6,250.00"
Cambridge City Council,The Papworth Trust,10969600,19/04/22,107389,1208,Sustainable City,64600,Grants And Contributions,"5,000.00"
Cambridge City Council,The Red Hen Project,10165200,05/04/22,106414,1057,Community Development Voluntary Support,64600,Grants And Contributions,"5,000.00"
Cambridge City Council,The Richmond Fellowship Ltd,10104900,01/04/22,105987,1057,Community Development Voluntary Support,64600,Grants And Contributions,"7,500.00"
Cambridge City Council,The Riverside Group Ltd - ECHG,10105001,22/04/22,107580,1509,Grants to Housing Agencies (CCC funded),69150,Other Services,"4,722.12"
Cambridge City Council,The Riverside Group Ltd - ECHG,10105001,22/04/22,107572,1502,Homelessness Costs,64402,Hostel Accommodation,"1,497.58"
Cambridge City Council,The Riverside Group Ltd - ECHG,10105001,22/04/22,107578,1502,Homelessness Costs,64402,Hostel Accommodation,512.33
Cambridge City Council,The Riverside Group Ltd - ECHG,10105001,22/04/22,107576,1502,Homelessness Costs,64402,Hostel Accommodation,"1,103.48"
Cambridge City Council,The Technology Forge Ltd,10629800,22/03/22,107115,100243,Property Management software,70023,CAPEX - ICT Software,700.00
Cambridge City Council,The Technology Forge Ltd,10629800,13/04/22,107202,100243,Property Management software,70023,CAPEX - ICT Software,700.00
Cambridge City Council,The Urban Forest Consultancy Ltd,10105700,21/04/22,107447,1876,Arboriculture,62400,Consultancy Fees,"4,000.00"
Cambridge City Council,Thinkproject UK Ltd,10031200,21/04/22,107466,5062,3C ICT,64073,ICT Maintenance and Support,"1,100.00"
Cambridge City Council,Thistle Insurance Services Ltd,10105900,06/04/22,106415,6502,Holding Accounts,69343,Insurance Premium - Other,"1,897.48"
Cambridge City Council,Thomson Reuters Professional UK Ltd T/A Sweet & Maxwell,10106000,01/04/22,106380,8014,3C Legal Practice,62003,"Books, Publications And Resources","26,044.92"
Cambridge City Council,Timber Force Ltd,10145600,05/04/22,106270,6110,City Homes Estate Management,60503,Grounds Maintenance,"2,133.00"
Cambridge City Council,Timber Force Ltd,10145600,22/03/22,106269,100259,Environmental Improvements Programme,70013,CAPEX - Landscaping,859.14
Cambridge City Council,Timber Force Ltd,10145600,05/04/22,106431,100259,Environmental Improvements Programme,70013,CAPEX - Landscaping,"3,164.75"
Cambridge City Council,Total Clean Cambridge,10884600,21/03/22,107892,1065,Akeman Street Community House,60502,Cleaning Contract,685.40
Cambridge City Council,Tructyre Fleet Management Ltd,10364500,31/03/22,105758,1032,Garage- External Work,61703,"Purchase - Equipment, Furniture And Materials","1,452.80"
Cambridge City Council,Trumpington Residents Association c/o Andrew Roberts,,05/04/22,106405,1057,Community Development Voluntary Support,64600,Grants And Contributions,800.00
Cambridge City Council,Trumpington Residents Association c/o Andrew Roberts,,05/04/22,106405,1057,Community Development Voluntary Support,64600,Grants And Contributions,500.00
Cambridge City Council,TSG Building Services PLC,10125300,17/03/22,105666,5024,E_invoicing Suspense Accounts,69100,Expenditure In Holding Account Awaiting Allocation,"518,016.38"
Cambridge City Council,TSG Building Services PLC,10125300,17/03/22,105667,5024,E_invoicing Suspense Accounts,69100,Expenditure In Holding Account Awaiting Allocation,"103,509.23"
Cambridge City Council,TSM Consultants,10931100,21/04/22,108128,6203,Asset Management and Compliance,62400,Consultancy Fees,"4,483.20"
Cambridge City Council,Tudor UK Ltd T/A Tudor Environmental,,27/04/22,107994,1856,Streets & Open Spaces (Operations) - Indirect Costs,61703,"Purchase - Equipment, Furniture And Materials","1,283.00"
Cambridge City Council,Tusk Consulting Ltd,10949900,31/03/22,106888,1217,Our Cambridge Transformation Programme,62400,Consultancy Fees,"7,450.00"
Cambridge City Council,Tusk Consulting Ltd,10949900,31/03/22,106888,1217,Our Cambridge Transformation Programme,62400,Consultancy Fees,750.00
Cambridge City Council,UK Fuels Limited,10192900,27/03/22,105761,5001,City Services Holding Account,69100,Expenditure In Holding Account Awaiting Allocation,"5,576.42"
Cambridge City Council,UK Fuels Limited,10192900,03/04/22,106416,5001,City Services Holding Account,69100,Expenditure In Holding Account Awaiting Allocation,"6,143.67"
Cambridge City Council,UK Fuels Limited,10192900,10/04/22,107156,5001,City Services Holding Account,69100,Expenditure In Holding Account Awaiting Allocation,"4,615.91"
Cambridge City Council,UK Fuels Limited,10192900,24/05/22,107972,5001,City Services Holding Account,69100,Expenditure In Holding Account Awaiting Allocation,"4,118.99"
Cambridge City Council,UK Fuels Limited,10192900,17/04/22,107415,5001,City Services Holding Account,69100,Expenditure In Holding Account Awaiting Allocation,"5,187.13"
Cambridge City Council,University of Cambridge,10110201,01/04/22,105968,1057,Community Development Voluntary Support,64600,Grants And Contributions,"6,000.00"
Cambridge City Council,University of Cambridge,10110201,06/04/22,106417,1057,Community Development Voluntary Support,64600,Grants And Contributions,"7,500.00"
Cambridge City Council,Upkeep Training Ltd,10186500,01/04/22,106099,1504,Housing Advice Service,60115,Staff Development And Training,"1,965.00"
Cambridge City Council,Veolia ES (UK) Limited,10566500,31/03/22,106547,6200,Building Maintenance Response - Direct,64050,Waste Disposal Costs,"1,203.09"
Cambridge City Council,Virido Management Company Limited,10041902,01/03/22,106700,6135,"Virido, Clay Farm Third Party Management",60401,Service Charges,"9,836.44"
Cambridge City Council,Virido Management Company Limited,10041902,01/03/22,106703,6135,"Virido, Clay Farm Third Party Management",60401,Service Charges,"16,688.67"
Cambridge City Council,Virido Management Company Limited,10041902,01/03/22,106707,6135,"Virido, Clay Farm Third Party Management",60401,Service Charges,"3,178.04"
Cambridge City Council,Virido Management Company Limited,10041902,01/03/22,106713,6135,"Virido, Clay Farm Third Party Management",60401,Service Charges,"8,251.95"
Cambridge City Council,Virido Management Company Limited,10041902,01/03/22,106708,6135,"Virido, Clay Farm Third Party Management",60401,Service Charges,537.06
Cambridge City Council,Virido Management Company Limited,10041902,01/03/22,106706,6135,"Virido, Clay Farm Third Party Management",60401,Service Charges,"22,009.46"
Cambridge City Council,Virido Management Company Limited,10041902,01/03/22,106694,6135,"Virido, Clay Farm Third Party Management",60401,Service Charges,"19,167.06"
Cambridge City Council,Volvo Group UK Ltd,10111400,08/04/22,108079,1032,Garage- External Work,61703,"Purchase - Equipment, Furniture And Materials","1,393.83"
Cambridge City Council,Walker Morris LLP,10112000,27/04/22,107969,8006,Accountancy and Support Services,63200,Legal Fees,"1,750.00"
Cambridge City Council,Wesley Media,10112900,31/03/22,107560,1003,Bereavement Services Central Costs,61400,Goods For Resale,600.00
Cambridge City Council,WFL (UK) Ltd t/a Watson Fuels,10113200,29/03/22,105762,1031,Fleet Management - Operational,60306,Heating Oil,658.30
Cambridge City Council,WFL (UK) Ltd t/a Watson Fuels,10113200,12/04/22,107157,1031,Fleet Management - Operational,60306,Heating Oil,"1,081.25"
Cambridge City Council,Wild in Art Ltd,10948400,11/04/22,106986,100324,City centre recovery - Combined Authority grant funding,70010,CAPEX - Other Professional Fees,"24,500.00"
Cambridge City Council,Wintercomfort for the Homeless,10113600,05/04/22,106410,1509,Grants to Housing Agencies (CCC funded),64600,Grants And Contributions,"7,500.00"
Cambridge City Council,Witham Oil & Paint (Soham) Ltd,10113800,05/04/22,106442,1032,Garage- External Work,61703,"Purchase - Equipment, Furniture And Materials",587.87
Cambridge City Council,Witham Oil & Paint (Soham) Ltd,10113800,25/04/22,107964,1032,Garage- External Work,61703,"Purchase - Equipment, Furniture And Materials",587.87
Cambridge City Council,Witham Oil & Paint (Soham) Ltd,10113800,25/04/22,107964,1032,Garage- External Work,61703,"Purchase - Equipment, Furniture And Materials",813.79
Cambridge City Council,Witham Oil & Paint (Soham) Ltd,10113800,25/04/22,107964,1032,Garage- External Work,61703,"Purchase - Equipment, Furniture And Materials",703.63
Cambridge City Council,Wolseley UK Ltd T/A Plumb Center,10114000,12/04/22,107338,6200,Building Maintenance Response - Direct,61703,"Purchase - Equipment, Furniture And Materials","1,425.19"
Cambridge City Council,Wolseley UK Ltd T/A Plumb Center,10114000,25/04/22,108069,9900,General Fund Balance Sheet,11600,Consumable Stores,"2,611.58"
Cambridge City Council,Wood Green Animal Shelters,10114100,31/03/22,106184,1858,Public Realm Enforcement,61800,Contract Charges,"1,416.67"
Cambridge City Council,XIXI International Ltd,10770700,24/04/22,107144,1529,HPG - Support for Vulnerable Renters,64600,Grants And Contributions,"1,850.00"
Cambridge City Council,YMCA Trinity Group,10132200,29/03/22,107893,1509,Grants to Housing Agencies (CCC funded),69150,Other Services,"1,780.68"
Cambridge City Council,Yotta Ltd,10945800,13/04/22,107279,1862,Open Space Asset Management,64073,ICT Maintenance and Support,"1,500.00"
Cambridge City Council,Zunoma Ltd,10095300,31/03/22,106187,1801,Local Taxation,62001,Printing,"1,191.70"
Cambridge City Council,Zunoma Ltd,10095300,31/03/22,106190,1801,Local Taxation,62001,Printing,635.48
Cambridge City Council,Zunoma Ltd,10095300,31/03/22,106434,8023,Business Support - Centralised Overheads,64100,Postage And Courier Services,749.40
Cambridge City Council,Zunoma Ltd,10095300,14/04/22,107139,1801,Local Taxation,62001,Printing,587.36
Cambridge City Council,Zunoma Ltd,10095300,14/04/22,107162,1801,Local Taxation,62001,Printing,929.70
Cambridge City Council,1 Colmore Square,10039100,22/03/22,109124,1651,Grand Arcade Car Park,60303,Electricity,"14,097.91"
Cambridge City Council,1 Colmore Square,10039100,28/04/22,109121,1651,Grand Arcade Car Park,60303,Electricity,"14,461.17"
Cambridge City Council,1 Colmore Square,10039100,31/01/22,109123,1651,Grand Arcade Car Park,60303,Electricity,"14,340.32"
Cambridge City Council,10:AM,10302900,17/05/22,109358,780003,,62400,Consultancy Fees,800.00
Cambridge City Council,2 Ton Productions Ltd,10326600,05/05/22,108752,9900,General Fund Balance Sheet,20118,Receipts In Advance - Other Entities And Individuals,"1,872.00"
Cambridge City Council,2 Ton Productions Ltd,10326600,20/05/22,109566,9900,General Fund Balance Sheet,20118,Receipts In Advance - Other Entities And Individuals,"2,584.00"
Cambridge City Council,2 Ton Productions Ltd,10326600,29/04/22,108265,9900,General Fund Balance Sheet,20118,Receipts In Advance - Other Entities And Individuals,"2,688.00"
Cambridge City Council,2 Ton Productions Ltd,10326600,14/05/22,109286,9900,General Fund Balance Sheet,20118,Receipts In Advance - Other Entities And Individuals,972.00
Cambridge City Council,ABC Food Law Ltd,10001400,28/03/22,108893,1419,Environmental Health Operational Support,60115,Staff Development And Training,"1,170.00"
Cambridge City Council,Absolute Audio Visual Solutions Ltd,10156500,30/04/22,108648,1350,Civic Affairs and Twinning,62900,Events,"2,190.30"
Cambridge City Council,Absolute Audio Visual Solutions Ltd,10156500,21/05/22,109753,1260,Corn Exchange and Guildhalls,61700,Hire - Equipment Furniture And Materials,816.00
Cambridge City Council,Absolute Audio Visual Solutions Ltd,10156500,30/04/22,108638,1260,Corn Exchange and Guildhalls,61700,Hire - Equipment Furniture And Materials,"1,137.60"
Cambridge City Council,Absolute Audio Visual Solutions Ltd,10156500,29/05/22,110137,1260,Corn Exchange and Guildhalls,61700,Hire - Equipment Furniture And Materials,"1,326.00"
Cambridge City Council,Access & Automation Ltd,10115300,04/05/22,108472,300000,Disabled Adaptions,70007,CAPEX - Building Contractor/Works - Major Adaptations (HRA),"2,310.00"
Cambridge City Council,Aeg Presents Ltd,10304000,09/04/22,107461,9900,General Fund Balance Sheet,20118,Receipts In Advance - Other Entities And Individuals,930.82
Cambridge City Council,AFP Health & Safety Consultants Ltd,10003300,29/03/22,108179,6208,Voids,60233,Housing Repairs - Work Given To External Contractors,770.00
Cambridge City Council,Albert Bareham & Son Complete Flooring Services,10841500,11/05/22,109003,6207,Repairs Day to Day,60233,Housing Repairs - Work Given To External Contractors,560.00
Cambridge City Council,Albert Bareham & Son Complete Flooring Services,10841500,04/05/22,108687,6208,Voids,60233,Housing Repairs - Work Given To External Contractors,660.00
Cambridge City Council,Albert Bareham & Son Complete Flooring Services,10841500,11/05/22,109005,6208,Voids,60233,Housing Repairs - Work Given To External Contractors,"1,120.00"
Cambridge City Council,Albion Boxing Academy,10444800,15/04/22,109170,1103,Active Lifestyles - Communities (ex Sports Development),62404,Instructors/Tutors,600.00
Cambridge City Council,Alboro Developments Ltd,10133300,20/04/22,108560,1031,Fleet Management - Operational,60201,Cyclical/Planned Maintenance - Building,"1,650.00"
Cambridge City Council,Alboro Developments Ltd,10133300,30/04/22,108939,1031,Fleet Management - Operational,60303,Electricity,965.29
Cambridge City Council,Alboro Developments Ltd,10133300,30/04/22,108926,1031,Fleet Management - Operational,61102,Transport Recharge,"1,032.11"
Cambridge City Council,Alison Ashley Enterprises Ltd t/a Dandelion Associates,10194600,09/05/22,109152,1073,Community Development - Admin,60115,Staff Development And Training,950.00
Cambridge City Council,All Pump Solutions LLP,10842600,20/05/22,109557,6205,Citywide Schemes,60235,Housing Repairs - Other Premises Related Costs,516.00
Cambridge City Council,All Pump Solutions LLP,10842600,05/05/22,108649,6205,Citywide Schemes,60235,Housing Repairs - Other Premises Related Costs,516.00
Cambridge City Council,All Pump Solutions LLP,10842600,27/04/22,108473,6205,Citywide Schemes,60235,Housing Repairs - Other Premises Related Costs,516.00
Cambridge City Council,All Pump Solutions LLP,10842600,20/04/22,107399,6205,Citywide Schemes,60235,Housing Repairs - Other Premises Related Costs,516.00
Cambridge City Council,All Pump Solutions LLP,10842600,22/04/22,107906,6205,Citywide Schemes,60235,Housing Repairs - Other Premises Related Costs,516.00
Cambridge City Council,All Pump Solutions LLP,10842600,16/05/22,109268,6205,Citywide Schemes,60235,Housing Repairs - Other Premises Related Costs,516.00
Cambridge City Council,All Pump Solutions LLP,10842600,23/05/22,109727,6205,Citywide Schemes,60235,Housing Repairs - Other Premises Related Costs,516.00
Cambridge City Council,Alliance Asbestos Services Ltd,10115400,30/04/22,108378,300007,Asbestos Removal,70003,CAPEX - Building Contractor/Works - Voids & Emergencies,"2,894.00"
Cambridge City Council,Alliance Asbestos Services Ltd,10115400,06/05/22,108739,300007,Asbestos Removal,70003,CAPEX - Building Contractor/Works - Voids & Emergencies,"3,486.00"
Cambridge City Council,Alliance Asbestos Services Ltd,10115400,13/05/22,109153,300007,Asbestos Removal,70003,CAPEX - Building Contractor/Works - Voids & Emergencies,791.00
Cambridge City Council,Alliance Asbestos Services Ltd,10115400,25/04/22,107802,300007,Asbestos Removal,70003,CAPEX - Building Contractor/Works - Voids & Emergencies,"2,057.00"
Cambridge City Council,Alliance Asbestos Services Ltd,10115400,30/04/22,108380,300007,Asbestos Removal,70003,CAPEX - Building Contractor/Works - Voids & Emergencies,"3,172.00"
Cambridge City Council,Alliance Asbestos Services Ltd,10115400,19/05/22,109488,300007,Asbestos Removal,70003,CAPEX - Building Contractor/Works - Voids & Emergencies,"2,185.00"
Cambridge City Council,Amulet (Churchill Security Solutions) Ltd,10220900,30/04/22,108817,5024,E_invoicing Suspense Accounts,69100,Expenditure In Holding Account Awaiting Allocation,"12,553.74"
Cambridge City Council,Amulet (Churchill Security Solutions) Ltd,10220900,30/04/22,108818,5024,E_invoicing Suspense Accounts,69100,Expenditure In Holding Account Awaiting Allocation,"10,203.40"
Cambridge City Council,Amulet (Churchill Security Solutions) Ltd,10220900,11/05/22,109754,5024,E_invoicing Suspense Accounts,69100,Expenditure In Holding Account Awaiting Allocation,648.27
Cambridge City Council,Andertons Music Co,10947600,15/03/22,109147,1261,City Events,61703,"Purchase - Equipment, Furniture And Materials",624.00
Cambridge City Council,Andrew Firebrace Partnership Ltd,10005400,29/03/22,108109,6207,Repairs Day to Day,60233,Housing Repairs - Work Given To External Contractors,770.00
Cambridge City Council,Andrew Firebrace Partnership Ltd,10005400,23/05/22,109972,300038,Wall Structure,70009,CAPEX - Engineers Fees,"2,450.00"
Cambridge City Council,Anglian Water Business (National) Ltd T/A Wave,10006400,24/04/22,108902,1870,Public Toilets,60302,Water And Sewerage,"1,282.25"
Cambridge City Council,Applebys (Removals) Ltd,10979500,29/04/22,108740,1502,Homelessness Costs,63700,Removal Services,"2,410.00"
Cambridge City Council,APT Skidata Ltd,10115700,23/05/22,109890,1654,Grafton Centre East Car Park,61702,"Maintenance - Equipment, Furniture And Materials","1,274.29"
Cambridge City Council,Aran Insulation Limited,10392200,05/04/22,108573,300006,Insulation / Energy Efficiency,70002,CAPEX - Building Contractor/Works,610.63
Cambridge City Council,Aran Insulation Limited,10392200,12/05/22,109333,300006,Insulation / Energy Efficiency,70002,CAPEX - Building Contractor/Works,"1,825.00"
Cambridge City Council,Aran Insulation Limited,10392200,19/05/22,109514,300006,Insulation / Energy Efficiency,70002,CAPEX - Building Contractor/Works,"4,574.14"
Cambridge City Council,Aran Insulation Limited,10392200,12/05/22,109333,300006,Insulation / Energy Efficiency,70002,CAPEX - Building Contractor/Works,738.20
Cambridge City Council,Aran Insulation Limited,10392200,28/05/22,109330,300006,Insulation / Energy Efficiency,70002,CAPEX - Building Contractor/Works,"4,371.47"
Cambridge City Council,Aran Insulation Limited,10392200,28/05/22,109330,300006,Insulation / Energy Efficiency,70002,CAPEX - Building Contractor/Works,"2,371.92"
Cambridge City Council,Ashtons Legal,10147201,27/05/22,110007,9900,General Fund Balance Sheet,20119,Other Creditors - Other Entities And Individuals,517.76
Cambridge City Council,Atalian Servest Food Co Ltd,10940300,30/04/22,109891,6123,Ditchburn Place,61902,Catering Services,"13,674.05"
Cambridge City Council,Atalian Servest Food Co Ltd,10940300,30/04/22,109891,6123,Ditchburn Place,61902,Catering Services,"1,907.95"
Cambridge City Council,Avena Environmental Ltd,10009600,09/05/22,109026,8023,Business Support - Centralised Overheads,63700,Removal Services,523.20
Cambridge City Council,Avison Young (UK) Ltd,10450500,31/03/22,108321,100300,Park Street car park development,70010,CAPEX - Other Professional Fees,"2,600.00"
Cambridge City Council,Avison Young (UK) Ltd,10450500,30/04/22,108323,100300,Park Street car park development,70010,CAPEX - Other Professional Fees,"2,600.00"
Cambridge City Council,B Beach Decorators,10929200,14/05/22,109295,1526,Homelessness Prevention Grant,63900,Miscellaneous Expenses,800.00
Cambridge City Council,Basis Ltd,10954500,17/05/22,109409,1217,Our Cambridge Transformation Programme,62400,Consultancy Fees,"8,500.00"
Cambridge City Council,Basis Ltd,10954500,17/05/22,109409,1217,Our Cambridge Transformation Programme,62400,Consultancy Fees,"8,200.00"
Cambridge City Council,Basis Ltd,10954500,17/05/22,109409,1217,Our Cambridge Transformation Programme,62400,Consultancy Fees,"3,000.00"
Cambridge City Council,Belfor UK Ltd,10614800,09/12/21,109490,6204,Client and Third Party Repairs,60219,Housing Repairs - Insurances,"1,705.29"
Cambridge City Council,Ben Willmott,10975500,29/04/22,108828,1263,Cultural Services and Events - Central,60011,Agency Staff,750.00
Cambridge City Council,Ben Wills,10116100,11/05/22,109141,6204,Client and Third Party Repairs,60235,Housing Repairs - Other Premises Related Costs,549.40
Cambridge City Council,Ben Wills,10116100,11/05/22,109334,6000,Housing Revenue Account - Net Cost of Service,61703,"Purchase - Equipment, Furniture And Materials",665.00
Cambridge City Council,Ben Wills,10116100,24/05/22,109805,6000,Housing Revenue Account - Net Cost of Service,61703,"Purchase - Equipment, Furniture And Materials",541.55
Cambridge City Council,Benson Area Residents Association,10488500,04/05/22,108514,1057,Community Development Voluntary Support,64600,Grants And Contributions,500.00
Cambridge City Council,Bevan Brittan LLP,10012600,21/04/22,108009,300085,New Build - Cromwell Road Redevelopment (HRA),70010,CAPEX - Other Professional Fees,"1,472.50"
Cambridge City Council,BFS Group Ltd t/a Bidfood,10303000,12/05/22,109270,1260,Corn Exchange and Guildhalls,61900,Catering And Vending Supplies,"1,020.19"
Cambridge City Council,BFS Group Ltd t/a Bidfood,10303000,05/05/22,109271,1260,Corn Exchange and Guildhalls,61900,Catering And Vending Supplies,765.28
Cambridge City Council,BFS Group Ltd t/a Bidfood,10303000,17/05/22,109755,1260,Corn Exchange and Guildhalls,61900,Catering And Vending Supplies,673.47
Cambridge City Council,Boishakhi Cultural Association,10344900,24/05/22,109783,1057,Community Development Voluntary Support,64600,Grants And Contributions,800.00
Cambridge City Council,Borley Brothers Engineering,10116600,29/04/22,108563,300088,Estate Investment,70002,CAPEX - Building Contractor/Works,"2,783.00"
Cambridge City Council,Bouygues Energies & Services FM UK Ltd,10126400,15/04/22,109449,100326,BEIS grant for Abbey pool decarbonisation works,70017,CAPEX - Purchase of Plant Machinery & Equipment,"166,695.75"
Cambridge City Council,Bouygues Energies & Services FM UK Ltd,10126400,15/04/22,109895,100325,BEIS grant for Parkside pools decarbonisation works,70017,CAPEX - Purchase of Plant Machinery & Equipment,"306,321.30"
Cambridge City Council,Bouygues Energies & Services FM UK Ltd,10126400,15/04/22,109894,100329,Carbon saving investments within the Leisure portfolio,70024,CAPEX - Other Capital Expenditure,"70,224.16"
Cambridge City Council,Bryan Lecoche Limted,10180100,16/05/22,109250,1862,Open Space Asset Management,63200,Legal Fees,"1,259.85"
Cambridge City Council,Bryan Lecoche Limted,10180100,16/05/22,109249,1862,Open Space Asset Management,63200,Legal Fees,"1,110.30"
Cambridge City Council,Bryan Lecoche Limted,10180100,16/05/22,109252,1862,Open Space Asset Management,63200,Legal Fees,983.60
Cambridge City Council,Bsg Property Services Ltd,10015900,04/11/21,109106,1519,Shared Home Improvement Agency,60266,Rechargeable Repairs,"7,692.50"
Cambridge City Council,Businessclean (Cambridge) Ltd,10016800,29/04/22,108191,6102,Temporary Accommodation,60501,Cleaning Services,628.00
Cambridge City Council,Businessclean (Cambridge) Ltd,10016800,29/04/22,108309,6208,Voids,60220,Housing Repairs - Work To Void Properties,"1,092.00"
Cambridge City Council,Businessclean (Cambridge) Ltd,10016800,29/04/22,108182,6208,Voids,60220,Housing Repairs - Work To Void Properties,"1,344.00"
Cambridge City Council,Businessclean (Cambridge) Ltd,10016800,29/04/22,108186,6102,Temporary Accommodation,60501,Cleaning Services,566.00
Cambridge City Council,Businessclean (Cambridge) Ltd,10016800,29/04/22,108184,6208,Voids,60220,Housing Repairs - Work To Void Properties,"1,194.00"
Cambridge City Council,Businessclean (Cambridge) Ltd,10016800,17/05/22,109491,6208,Voids,60220,Housing Repairs - Work To Void Properties,"1,470.00"
Cambridge City Council,Calfordseaden LLP,10339400,27/04/22,108564,300090,New Build - Meadows and Buchan Street,70010,CAPEX - Other Professional Fees,"1,999.19"
Cambridge City Council,Calfordseaden LLP,10339400,28/04/22,108565,300098,New Build - Histon Road,70010,CAPEX - Other Professional Fees,"1,779.00"
Cambridge City Council,Cambridge Council For Voluntary Service CVS,10018500,13/05/22,109181,1079,Community Vaccine Champions Programme,62900,Events,"26,504.00"
Cambridge City Council,Cambridge Housing Society Ltd,10019600,17/05/22,109438,1057,Community Development Voluntary Support,64600,Grants And Contributions,"1,000.00"
Cambridge City Council,Cambridge Housing Society Ltd,10019600,17/05/22,109438,1526,Homelessness Prevention Grant,64600,Grants And Contributions,"14,750.00"
Cambridge City Council,Cambridge Lifts Ltd,10930700,29/03/22,108352,1102,Leisure Contract Client Costs,60201,Cyclical/Planned Maintenance - Building,"4,130.00"
Cambridge City Council,Cambridge Master Locksmiths,10020000,26/05/22,110059,1063,The Meadows Community Centre,60201,Cyclical/Planned Maintenance - Building,"1,776.16"
Cambridge City Council,Cambridge Online,10154400,20/05/22,109548,1079,Community Vaccine Champions Programme,62900,Events,"6,335.50"
Cambridge City Council,Cambridge United Youth & Community Trust,10170800,03/05/22,108227,1057,Community Development Voluntary Support,64600,Grants And Contributions,"5,000.00"
Cambridge City Council,Cambridge United Youth & Community Trust,10170800,03/05/22,108227,1057,Community Development Voluntary Support,64600,Grants And Contributions,"1,000.00"
Cambridge City Council,Cambridge University Catholic Association,10021900,24/05/22,109802,1353,Elections,60402,Premises Hire - Facilities,600.00
Cambridge City Council,Cambridgeshire Vietnamese Refugee Community,10023000,25/05/22,109888,1057,Community Development Voluntary Support,64600,Grants And Contributions,650.00
Cambridge City Council,Caroline Wright,10190500,20/01/22,108630,100203,S106 To the River - artist in residence,70010,CAPEX - Other Professional Fees,"2,000.00"
Cambridge City Council,Carter Jonas LLP,10141403,04/05/22,108527,1750,Property Services,62400,Consultancy Fees,750.00
Cambridge City Council,CCPM Ltd,10283000,10/04/22,108384,100300,Park Street car park development,70010,CAPEX - Other Professional Fees,"1,650.00"
Cambridge City Council,CCPM Ltd,10283000,10/04/22,108384,1779,Market Square Project,62400,Consultancy Fees,"2,750.00"
Cambridge City Council,CCR Property Services Ltd,10840600,26/04/22,107822,6207,Repairs Day to Day,60233,Housing Repairs - Work Given To External Contractors,"1,086.40"
Cambridge City Council,Cerc - Cambridge Environmental Research Consultants Ltd,10025500,13/04/22,109336,1422,GCP - Air Quality Work,62400,Consultancy Fees,"12,250.00"
Cambridge City Council,CFH Docmail Ltd,10025900,25/05/22,110033,1352,Electoral Registration,62001,Printing,567.58
Cambridge City Council,Chassis Cab Ltd,10027000,16/05/22,109801,1031,Fleet Management - Operational,61703,"Purchase - Equipment, Furniture And Materials",620.00
Cambridge City Council,Chesterton Community Assoc R/C 1139163,10027800,04/05/22,108515,1057,Community Development Voluntary Support,64600,Grants And Contributions,750.00
Cambridge City Council,Childcare Vouchers Limited,10028300,06/05/22,108996,5000,Salary Sacrifice Schemes Holding Account,60106,Childcare Admin Vouchers,"3,418.00"
Cambridge City Council,Chris Finlayson,10225600,20/05/22,109900,1101,Leisure Contract Management Fees,60503,Grounds Maintenance,506.00
Cambridge City Council,Chris Finlayson,10225600,20/05/22,109897,1101,Leisure Contract Management Fees,60503,Grounds Maintenance,506.00
Cambridge City Council,Chris West Consultancy Services Limited,10943700,01/05/22,108228,8006,Accountancy and Support Services,62400,Consultancy Fees,"3,740.00"
Cambridge City Council,Chubb Fire & Security Limited,10029100,13/04/22,107103,6205,Citywide Schemes,60223,Housing Repairs - Door Entry Maintenance,"5,320.50"
Cambridge City Council,Church of The Good Shepherd,10029200,08/05/22,108961,1353,Elections,60402,Premises Hire - Facilities,575.00
Cambridge City Council,Cieh Chartered Institute of Environmental Health,10029400,04/11/21,109069,1419,Environmental Health Operational Support,60115,Staff Development And Training,"1,200.00"
Cambridge City Council,Cieh Chartered Institute of Environmental Health,10029400,20/05/22,109901,1419,Environmental Health Operational Support,60115,Staff Development And Training,"2,670.00"
Cambridge City Council,CIP (Cromwell Road) LLP,10366900,04/05/22,108568,300085,New Build - Cromwell Road Redevelopment (HRA),70002,CAPEX - Building Contractor/Works,"276,300.23"
Cambridge City Council,CIP (Cromwell Road) LLP,10366900,04/05/22,108568,100225,Cromwell Road Redevelopment (GF),70001,CAPEX - Acquisition of Land & Existing Building,"231,764.77"
Cambridge City Council,CIP Orchard Park L2 LLP,10936000,04/05/22,108484,300096,New Build - L2,70002,CAPEX - Building Contractor/Works,"257,579.55"
Cambridge City Council,CIP Orchard Park L2 LLP,10936000,31/03/22,109052,300096,New Build - L2,70002,CAPEX - Building Contractor/Works,"257,579.55"
Cambridge City Council,CIPFA Business Limited,10029700,11/05/22,109061,1801,Local Taxation,64800,Membership And Subscriptions,"1,680.00"
Cambridge City Council,CIPFA Business Limited,10029700,11/05/22,109061,1802,Housing Benefits,64800,Membership And Subscriptions,"1,680.00"
Cambridge City Council,City View Digital Media Ltd,10030200,01/05/22,108382,1862,Open Space Asset Management,62005,"Advertising, Publicity And Marketing","2,500.00"
Cambridge City Council,Clanpress (Kings Lynn) Ltd,10030500,28/04/22,109345,6012,City Homes Expenditure,62001,Printing,628.00
Cambridge City Council,Click Travel Ltd,10933600,30/04/22,108663,5024,E_invoicing Suspense Accounts,69100,Expenditure In Holding Account Awaiting Allocation,942.86
Cambridge City Council,CMP Entertainment Ltd,10309300,16/04/22,107870,9900,General Fund Balance Sheet,20118,Receipts In Advance - Other Entities And Individuals,"19,229.98"
Cambridge City Council,CN Security Ltd,10291400,03/05/22,108286,700368,,63800,Security Services (Excluding Premises),620.00
Cambridge City Council,CN Security Ltd,10291400,23/03/22,108694,700204,,63800,Security Services (Excluding Premises),"1,156.88"
Cambridge City Council,CN Security Ltd,10291400,23/03/22,108696,700205,,63800,Security Services (Excluding Premises),"1,018.75"
Cambridge City Council,CN Security Ltd,10291400,25/04/22,107720,700240,,63800,Security Services (Excluding Premises),"1,020.00"
Cambridge City Council,CN Security Ltd,10291400,23/03/22,108698,700216,,63800,Security Services (Excluding Premises),"1,018.75"
Cambridge City Council,CN Security Ltd,10291400,19/05/22,109849,700188,,63800,Security Services (Excluding Premises),"1,423.00"
Cambridge City Council,CN Security Ltd,10291400,19/05/22,109848,700265,,63800,Security Services (Excluding Premises),"1,040.00"
Cambridge City Council,Comensura Ltd,10031900,04/05/22,108543,5024,E_invoicing Suspense Accounts,69100,Expenditure In Holding Account Awaiting Allocation,"51,896.24"
Cambridge City Council,Comensura Ltd,10031900,06/04/22,108040,1519,Shared Home Improvement Agency,60011,Agency Staff,"2,841.75"
Cambridge City Council,Comensura Ltd,10031900,27/04/22,108539,5024,E_invoicing Suspense Accounts,69100,Expenditure In Holding Account Awaiting Allocation,"40,836.76"
Cambridge City Council,Comensura Ltd,10031900,25/05/22,109836,5024,E_invoicing Suspense Accounts,69100,Expenditure In Holding Account Awaiting Allocation,"51,936.95"
Cambridge City Council,Comensura Ltd,10031900,11/05/22,109833,5024,E_invoicing Suspense Accounts,69100,Expenditure In Holding Account Awaiting Allocation,"41,859.26"
Cambridge City Council,Comensura Ltd,10031900,18/05/22,109834,5024,E_invoicing Suspense Accounts,69100,Expenditure In Holding Account Awaiting Allocation,"49,324.30"
Cambridge City Council,Complete Cleaning Management Ltd,10032300,01/05/22,108197,1031,Fleet Management - Operational,60502,Cleaning Contract,590.00
Cambridge City Council,Compton & Parkinson Ltd,10117700,11/05/22,109065,300008,Central Heating / Boilers,70002,CAPEX - Building Contractor/Works,"2,190.00"
Cambridge City Council,Compton & Parkinson Ltd,10117700,11/05/22,109064,300008,Central Heating / Boilers,70002,CAPEX - Building Contractor/Works,"2,340.00"
Cambridge City Council,Conscious Communications Ltd,10619200,29/04/22,108574,1253,Cambridgeshire and Peterborough Region of Learning,62005,"Advertising, Publicity And Marketing","5,800.00"
Cambridge City Council,Contour Showers Ltd,10208000,10/05/22,109139,9900,General Fund Balance Sheet,11600,Consumable Stores,602.88
Cambridge City Council,Cooks Blinds & Shutters Ltd,10032900,19/05/22,109502,1031,Fleet Management - Operational,60244,Responsive Repairs - Building,565.64
Cambridge City Council,Cooleraid Ltd,10033001,16/05/22,109276,6012,City Homes Expenditure,62004,General Office Expenses,540.96
Cambridge City Council,COPE,10033300,04/05/22,108517,1057,Community Development Voluntary Support,64600,Grants And Contributions,"8,000.00"
Cambridge City Council,COPE,10033300,04/05/22,108517,1057,Community Development Voluntary Support,64600,Grants And Contributions,625.00
Cambridge City Council,Cornerstone (East Anglia) Ltd,10033600,01/05/22,108262,300006,Insulation / Energy Efficiency,70002,CAPEX - Building Contractor/Works,"183,335.72"
Cambridge City Council,Cornerstone (East Anglia) Ltd,10033600,01/05/22,108259,300006,Insulation / Energy Efficiency,70002,CAPEX - Building Contractor/Works,"74,863.70"
Cambridge City Council,Cortina Promotions Ltd,10984200,21/05/22,109591,9900,General Fund Balance Sheet,20118,Receipts In Advance - Other Entities And Individuals,742.00
Cambridge City Council,County Private Client Ltd,10976100,03/05/22,108324,1526,Homelessness Prevention Grant,64600,Grants And Contributions,"2,560.00"
Cambridge City Council,D Carman BSSR Ltd,10118100,18/05/22,109454,1870,Public Toilets,60201,Cyclical/Planned Maintenance - Building,700.00
Cambridge City Council,D Carman BSSR Ltd,10118100,19/04/22,109210,100275,Commercial property repair and maintenance,70002,CAPEX - Building Contractor/Works,"17,658.00"
Cambridge City Council,D Carman BSSR Ltd,10118100,18/05/22,109455,1870,Public Toilets,60201,Cyclical/Planned Maintenance - Building,"3,544.00"
Cambridge City Council,D Carman BSSR Ltd,10118100,20/05/22,109896,1870,Public Toilets,60201,Cyclical/Planned Maintenance - Building,"5,305.00"
Cambridge City Council,D Carman BSSR Ltd,10118100,18/05/22,109453,1870,Public Toilets,60201,Cyclical/Planned Maintenance - Building,"2,320.00"
Cambridge City Council,D Carman BSSR Ltd,10118100,23/05/22,109774,1866,Open Space Asset Maintenance,60503,Grounds Maintenance,995.50
Cambridge City Council,DAD (UK) Ltd,10954300,21/03/22,108296,300088,Estate Investment,70025,CAPEX - Capital VAT: Pending Recovery,585.00
Cambridge City Council,Dalrod,10824600,04/05/22,108703,6207,Repairs Day to Day,60233,Housing Repairs - Work Given To External Contractors,695.00
Cambridge City Council,Dash Information Systems Ltd,10204900,23/05/22,109739,1004,Commemoration,61400,Goods For Resale,"1,389.32"
Cambridge City Council,David Powell t/a D J Kitchens,10137900,05/07/22,108941,1766,Orwell House Offices-Internal,60266,Rechargeable Repairs,580.00
Cambridge City Council,David Powell t/a D J Kitchens,10137900,07/05/22,109220,6208,Voids,60233,Housing Repairs - Work Given To External Contractors,594.37
Cambridge City Council,David Powell t/a D J Kitchens,10137900,07/05/22,109220,6208,Voids,60233,Housing Repairs - Work Given To External Contractors,630.55
Cambridge City Council,David Powell t/a D J Kitchens,10137900,07/05/22,109220,6208,Voids,60233,Housing Repairs - Work Given To External Contractors,"1,633.22"
Cambridge City Council,David Powell t/a D J Kitchens,10137900,07/05/22,109220,6208,Voids,60233,Housing Repairs - Work Given To External Contractors,744.25
Cambridge City Council,David Powell t/a D J Kitchens,10137900,07/05/22,109220,6208,Voids,60233,Housing Repairs - Work Given To External Contractors,764.92
Cambridge City Council,David Powell t/a D J Kitchens,10137900,15/05/22,109227,6208,Voids,60233,Housing Repairs - Work Given To External Contractors,610.00
Cambridge City Council,David Powell t/a D J Kitchens,10137900,15/05/22,109228,6208,Voids,60233,Housing Repairs - Work Given To External Contractors,740.00
Cambridge City Council,David Powell t/a D J Kitchens,10137900,24/04/22,107656,300013,Kitchens,70003,CAPEX - Building Contractor/Works - Voids & Emergencies,"2,600.00"
Cambridge City Council,David Powell t/a D J Kitchens,10137900,01/05/22,108234,6208,Voids,60233,Housing Repairs - Work Given To External Contractors,"1,075.00"
Cambridge City Council,David Powell t/a D J Kitchens,10137900,14/05/22,109221,6207,Repairs Day to Day,60233,Housing Repairs - Work Given To External Contractors,825.00
Cambridge City Council,David Powell t/a D J Kitchens,10137900,14/05/22,109221,6207,Repairs Day to Day,60233,Housing Repairs - Work Given To External Contractors,825.00
Cambridge City Council,David Powell t/a D J Kitchens,10137900,26/04/22,108229,6208,Voids,60233,Housing Repairs - Work Given To External Contractors,577.85
Cambridge City Council,David Powell t/a D J Kitchens,10137900,26/04/22,108229,6208,Voids,60233,Housing Repairs - Work Given To External Contractors,"1,606.71"
Cambridge City Council,David Powell t/a D J Kitchens,10137900,26/04/22,108229,6208,Voids,60233,Housing Repairs - Work Given To External Contractors,"1,515.10"
Cambridge City Council,David Powell t/a D J Kitchens,10137900,01/05/22,108233,6208,Voids,60233,Housing Repairs - Work Given To External Contractors,"1,140.00"
Cambridge City Council,David Powell t/a D J Kitchens,10137900,15/05/22,109504,6208,Voids,60220,Housing Repairs - Work To Void Properties,"3,100.00"
Cambridge City Council,David Powell t/a D J Kitchens,10137900,15/05/22,109223,6208,Voids,60233,Housing Repairs - Work Given To External Contractors,575.00
Cambridge City Council,David Powell t/a D J Kitchens,10137900,15/05/22,109280,6208,Voids,60233,Housing Repairs - Work Given To External Contractors,720.00
Cambridge City Council,David Powell t/a D J Kitchens,10137900,15/05/22,109229,6208,Voids,60233,Housing Repairs - Work Given To External Contractors,"1,580.00"
Cambridge City Council,Dennis Eagle Ltd,10036900,03/05/22,108589,1031,Fleet Management - Operational,61703,"Purchase - Equipment, Furniture And Materials",505.60
Cambridge City Council,Dennis Eagle Ltd,10036900,30/04/22,108589,1031,Fleet Management - Operational,61703,"Purchase - Equipment, Furniture And Materials",531.05
Cambridge City Council,Dennis Eagle Ltd,10036900,10/05/22,109131,1031,Fleet Management - Operational,61703,"Purchase - Equipment, Furniture And Materials",592.09
Cambridge City Council,Dennis Eagle Ltd,10036900,21/04/22,109353,1031,Fleet Management - Operational,61703,"Purchase - Equipment, Furniture And Materials",551.51
Cambridge City Council,Dennis Eagle Ltd,10036900,21/04/22,109353,1031,Fleet Management - Operational,61703,"Purchase - Equipment, Furniture And Materials",617.58
Cambridge City Council,Dennis Eagle Ltd,10036900,21/04/22,109353,1031,Fleet Management - Operational,61703,"Purchase - Equipment, Furniture And Materials",852.45
Cambridge City Council,Direct Healthcare Group Ltd,10199600,14/04/22,109569,200002,Mandatory Disabled Facilities Grants (Owner Occupiers),70015,CAPEX - Grants Paid,"2,020.00"
Cambridge City Council,Driscoll Kingston Solicitors,10983300,17/05/22,109484,6207,Repairs Day to Day,66600,Compensation,"2,000.00"
Cambridge City Council,DSB Engineering Supplies,10039000,05/05/22,109908,1031,Fleet Management - Operational,60907,Other Vehicle Costs,677.92
Cambridge City Council,DWF Law LLP,10519800,31/03/22,108334,9900,General Fund Balance Sheet,11708,Vat Debtor (Input Tax),581.00
Cambridge City Council,East Cambridgeshire District Council,10039800,09/05/22,109910,100364,Sustainable Warmth Grant - Local Authority Delivery Phase 3,70024,CAPEX - Other Capital Expenditure,"30,000.00"
Cambridge City Council,Eastfield Guest House Ltd,10262600,09/05/22,108806,1502,Homelessness Costs,64401,B&B Accommodation,"3,710.00"
Cambridge City Council,Eastfield Guest House Ltd,10262600,16/05/22,109328,1502,Homelessness Costs,64401,B&B Accommodation,"4,060.00"
Cambridge City Council,Eastfield Guest House Ltd,10262600,25/04/22,107725,1502,Homelessness Costs,64401,B&B Accommodation,"3,920.00"
Cambridge City Council,Eastfield Guest House Ltd,10262600,02/05/22,108198,1502,Homelessness Costs,64401,B&B Accommodation,"3,780.00"
Cambridge City Council,Eastfield Guest House Ltd,10262600,18/04/22,107235,1502,Homelessness Costs,64401,B&B Accommodation,"3,640.00"
Cambridge City Council,Eastfield Guest House Ltd,10262600,23/05/22,109859,1532,Bed & Breakfast (B&B) Costs,64401,B&B Accommodation,"4,270.00"
Cambridge City Council,EcoOnline AS Ltd,10517600,21/04/22,107536,1205,Quality/Health & Safety Management - Indirect,62400,Consultancy Fees,"2,695.00"
Cambridge City Council,Eden Tree Specialists Ltd,10858600,13/05/22,109175,1657,Castle Hill Car Park,64040,Tree Works,"3,400.00"
Cambridge City Council,Eden Tree Specialists Ltd,10858600,13/05/22,109173,1876,Arboriculture,64040,Tree Works,"3,480.00"
Cambridge City Council,EDF Energy,10040501,21/03/22,110005,6102,Temporary Accommodation,60303,Electricity,528.96
Cambridge City Council,Edmundson Electrical Ltd,10040600,25/04/22,108312,9900,General Fund Balance Sheet,11600,Consumable Stores,759.23
Cambridge City Council,Edmundson Electrical Ltd,10040600,27/04/22,108590,9900,General Fund Balance Sheet,11600,Consumable Stores,588.83
Cambridge City Council,Edmundson Electrical Ltd,10040600,16/05/22,109436,9900,General Fund Balance Sheet,11600,Consumable Stores,759.23
Cambridge City Council,Edmundson Electrical Ltd,10040600,12/05/22,109436,9900,General Fund Balance Sheet,11600,Consumable Stores,"1,272.39"
Cambridge City Council,Edmundson Electrical Ltd,10040600,10/05/22,109342,9900,General Fund Balance Sheet,11600,Consumable Stores,702.04
Cambridge City Council,EMAP Publishing Ltd,10041200,16/05/22,109297,1200,Corporate Management,64800,Membership And Subscriptions,"1,535.04"
Cambridge City Council,EMS Lifts Ltd,10041800,31/03/22,106472,6205,Citywide Schemes,60227,Housing Repairs - Lift Maintenance (Disabled),576.85
Cambridge City Council,Enchanted Cinema Ltd,10311200,04/05/22,108755,9900,General Fund Balance Sheet,20118,Receipts In Advance - Other Entities And Individuals,"1,043.70"
Cambridge City Council,Enchanted Cinema Ltd,10311200,02/05/22,108754,9900,General Fund Balance Sheet,20118,Receipts In Advance - Other Entities And Individuals,"1,050.00"
Cambridge City Council,Enchanted Cinema Ltd,10311200,03/05/22,108756,9900,General Fund Balance Sheet,20118,Receipts In Advance - Other Entities And Individuals,904.38
Cambridge City Council,Enchanted Cinema Ltd,10311200,14/05/22,109267,9900,General Fund Balance Sheet,20118,Receipts In Advance - Other Entities And Individuals,540.00
Cambridge City Council,Encompass Network,10163100,04/05/22,108518,1057,Community Development Voluntary Support,64600,Grants And Contributions,"9,000.00"
Cambridge City Council,Environmental Waste Management Ltd,10918100,22/04/22,107607,6205,Citywide Schemes,60235,Housing Repairs - Other Premises Related Costs,575.00
Cambridge City Council,Environmental Waste Management Ltd,10918100,29/04/22,108342,6205,Citywide Schemes,60235,Housing Repairs - Other Premises Related Costs,625.00
Cambridge City Council,Ermine Construction Services Ltd,10462100,29/04/22,108867,100308,S106 Chesterton Rec pavilion,70001,CAPEX - Acquisition of Land & Existing Building,"22,046.44"
Cambridge City Council,Ermine Construction Services Ltd,10462100,29/04/22,108867,100308,S106 Chesterton Rec pavilion,70002,CAPEX - Building Contractor/Works,"4,909.24"
Cambridge City Council,ESPO,10043700,18/03/22,109850,6109,City Homes Estate Caretaking,60502,Cleaning Contract,954.00
Cambridge City Council,ESPO,10043700,27/04/22,108503,5024,E_invoicing Suspense Accounts,69100,Expenditure In Holding Account Awaiting Allocation,"31,701.43"
Cambridge City Council,Eurosafe Solutions Ltd,10044600,18/05/22,109386,1102,Leisure Contract Client Costs,60201,Cyclical/Planned Maintenance - Building,555.75
Cambridge City Council,Evolve Guards Ltd,10506900,10/04/22,106820,1526,Homelessness Prevention Grant,63900,Miscellaneous Expenses,765.00
Cambridge City Council,Fane Productions Ltd,10312100,23/04/22,109439,9900,General Fund Balance Sheet,20118,Receipts In Advance - Other Entities And Individuals,"32,946.50"
Cambridge City Council,FCE Ltd,10045500,17/05/22,109365,1759,Gwydir St Workshops/Offices,60266,Rechargeable Repairs,975.00
Cambridge City Council,FCE Ltd,10045500,17/05/22,109366,1752,Dales Brewery,60266,Rechargeable Repairs,650.00
Cambridge City Council,Fenners Chambers,10045600,19/05/22,109505,1050,Community Safety,62400,Consultancy Fees,"1,550.00"
Cambridge City Council,Finance Officer,10268200,12/04/22,109625,1353,Elections,60402,Premises Hire - Facilities,685.00
Cambridge City Council,Form The Future CIC,10543200,14/04/22,109143,1253,Cambridgeshire and Peterborough Region of Learning,69150,Other Services,"18,627.82"
Cambridge City Council,Form The Future CIC,10543200,14/04/22,109143,1253,Cambridgeshire and Peterborough Region of Learning,69150,Other Services,"2,794.22"
Cambridge City Council,Form The Future CIC,10543200,14/04/22,109143,1253,Cambridgeshire and Peterborough Region of Learning,69150,Other Services,"2,855.21"
Cambridge City Council,Form The Future CIC,10543200,14/04/22,109143,1253,Cambridgeshire and Peterborough Region of Learning,69150,Other Services,"2,169.95"
Cambridge City Council,Form The Future CIC,10543200,14/04/22,109143,1253,Cambridgeshire and Peterborough Region of Learning,69150,Other Services,584.14
Cambridge City Council,Form The Future CIC,10543200,12/05/22,109146,1253,Cambridgeshire and Peterborough Region of Learning,69150,Other Services,"18,909.34"
Cambridge City Council,Form The Future CIC,10543200,12/05/22,109146,1253,Cambridgeshire and Peterborough Region of Learning,69150,Other Services,"2,836.40"
Cambridge City Council,Form The Future CIC,10543200,12/05/22,109146,1253,Cambridgeshire and Peterborough Region of Learning,64071,ICT Software,958.32
Cambridge City Council,Form The Future CIC,10543200,12/05/22,109146,1253,Cambridgeshire and Peterborough Region of Learning,61100,Mileage Allowances,739.00
Cambridge City Council,Form The Future CIC,10543200,09/05/22,109074,1253,Cambridgeshire and Peterborough Region of Learning,69150,Other Services,"14,779.50"
Cambridge City Council,Form The Future CIC,10543200,09/05/22,109074,1253,Cambridgeshire and Peterborough Region of Learning,69150,Other Services,"2,216.93"
Cambridge City Council,Form The Future CIC,10543200,09/05/22,109077,1253,Cambridgeshire and Peterborough Region of Learning,69150,Other Services,"3,751.15"
Cambridge City Council,Form The Future CIC,10543200,09/05/22,109077,1253,Cambridgeshire and Peterborough Region of Learning,69150,Other Services,562.70
Cambridge City Council,Foster Property Maintenance Ltd,10046700,28/04/22,108082,6208,Voids,60233,Housing Repairs - Work Given To External Contractors,"31,493.22"
Cambridge City Council,Foster Property Maintenance Ltd,10046700,12/05/22,109166,5024,E_invoicing Suspense Accounts,69100,Expenditure In Holding Account Awaiting Allocation,"421,506.23"
Cambridge City Council,Freeths LLP,10128502,31/03/22,105954,300085,New Build - Cromwell Road Redevelopment (HRA),70010,CAPEX - Other Professional Fees,760.00
Cambridge City Council,Friends of Midsummer Common,10182100,04/05/22,108519,1057,Community Development Voluntary Support,64600,Grants And Contributions,900.00
Cambridge City Council,Frontline Fabrication & Ironwork Co Ltd,10128000,26/04/22,108820,1866,Open Space Asset Maintenance,61702,"Maintenance - Equipment, Furniture And Materials","4,825.00"
Cambridge City Council,Frontline Fabrication & Ironwork Co Ltd,10128000,29/04/22,108577,300088,Estate Investment,70002,CAPEX - Building Contractor/Works,"1,295.00"
Cambridge City Council,Frontline Fabrication & Ironwork Co Ltd,10128000,24/04/22,108819,1871,Allotments,60201,Cyclical/Planned Maintenance - Building,"4,250.00"
Cambridge City Council,Frontline Fabrication & Ironwork Co Ltd,10128000,04/05/22,108821,1866,Open Space Asset Maintenance,61703,"Purchase - Equipment, Furniture And Materials","1,575.00"
Cambridge City Council,G2 Recruitment Solutions,10207400,04/05/22,108530,6014,Voids and Lettings Administration,60011,Agency Staff,"1,125.00"
Cambridge City Council,G2 Recruitment Solutions,10207400,11/05/22,109013,6014,Voids and Lettings Administration,60011,Agency Staff,937.50
Cambridge City Council,G2 Recruitment Solutions,10207400,25/05/22,110041,6014,Voids and Lettings Administration,60011,Agency Staff,"1,125.00"
Cambridge City Council,Glen Reeve,10973600,06/04/22,108311,1504,Housing Advice Service,60115,Staff Development And Training,950.00
Cambridge City Council,Glo-Bell London Ltd,10119000,13/04/22,108532,1071,Clay Farm Community Centre,60271,Security Of Premises,802.40
Cambridge City Council,Glo-Bell London Ltd,10119000,27/04/22,107944,8025,Cowley Road Compound,60201,Cyclical/Planned Maintenance - Building,870.00
Cambridge City Council,Glo-Bell London Ltd,10119000,04/05/22,108533,1065,Akeman Street Community House,60271,Security Of Premises,604.45
Cambridge City Council,Glo-Bell London Ltd,10119000,08/04/22,108822,1260,Corn Exchange and Guildhalls,61703,"Purchase - Equipment, Furniture And Materials",565.00
Cambridge City Council,Goodman Masson Ltd,10967500,25/05/22,109942,6007,Departmental Overheads-Client,63300,Professional Services - General,"1,650.00"
Cambridge City Council,Goodman Masson Ltd,10967500,04/05/22,108896,6007,Departmental Overheads-Client,63300,Professional Services - General,"2,750.00"
Cambridge City Council,Goodman Masson Ltd,10967500,18/05/22,109916,6007,Departmental Overheads-Client,63300,Professional Services - General,"3,300.00"
Cambridge City Council,Goshen Multi-Services Ltd,10793300,01/05/22,109458,5024,E_invoicing Suspense Accounts,69100,Expenditure In Holding Account Awaiting Allocation,"19,874.48"
Cambridge City Council,Goshen Multi-Services Ltd,10793300,01/05/22,109458,5024,E_invoicing Suspense Accounts,69100,Expenditure In Holding Account Awaiting Allocation,"3,974.90"
Cambridge City Council,Goshen Multi-Services Ltd,10793300,01/05/22,109459,1870,Public Toilets,60502,Cleaning Contract,"20,572.11"
Cambridge City Council,Goshen Multi-Services Ltd,10793300,01/05/22,109457,5024,E_invoicing Suspense Accounts,69100,Expenditure In Holding Account Awaiting Allocation,"29,332.33"
Cambridge City Council,Goshen Multi-Services Ltd,10793300,01/05/22,109457,5024,E_invoicing Suspense Accounts,69100,Expenditure In Holding Account Awaiting Allocation,"5,866.47"
Cambridge City Council,Green Mind Promotions Ltd,10313400,14/05/22,109277,9900,General Fund Balance Sheet,20118,Receipts In Advance - Other Entities And Individuals,562.50
Cambridge City Council,Greenwich Leisure Limited (GLL),10051900,25/05/22,109915,1101,Leisure Contract Management Fees,61800,Contract Charges,"42,366.80"
Cambridge City Council,Greenwich Leisure Ltd - Cherry Hinton Village Centre,10051903,11/05/22,109056,1353,Elections,60402,Premises Hire - Facilities,"1,096.00"
Cambridge City Council,Grzegorz Golinski & Monika Golinska,10985600,20/05/22,109703,1526,Homelessness Prevention Grant,64600,Grants And Contributions,"2,700.00"
Cambridge City Council,Hako Machines Ltd,10052800,08/04/22,106953,1850,Grounds Maintenance & Street Cleaning,60904,Vehicle Repairs And Maintenance,795.94
Cambridge City Council,Halls of Cambridge Ltd,10119300,04/05/22,108578,1870,Public Toilets,60201,Cyclical/Planned Maintenance - Building,756.05
Cambridge City Council,Harrison Clark Rickerbys Ltd,10870701,29/03/22,109033,1930,Tourism,63200,Legal Fees,"2,000.00"
Cambridge City Council,Hays Specialist Recruitment Limited,10251500,24/05/22,109918,8006,Accountancy and Support Services,60116,Staff Recruitment Costs,"3,618.37"
Cambridge City Council,Heasell Electromechanical Services Ltd,10119400,17/05/22,109383,1260,Corn Exchange and Guildhalls,60209,R & M Minor Works,772.46
Cambridge City Council,Hill Partnerships Limited,10214300,20/05/22,109585,100258,Meadows Community Hub and Buchan St retail outlet,70001,CAPEX - Acquisition of Land & Existing Building,"282,680.57"
Cambridge City Council,Hill Partnerships Limited,10214300,20/05/22,109584,300090,New Build - Meadows and Buchan Street,70002,CAPEX - Building Contractor/Works,"278,862.07"
Cambridge City Council,Hill Residential Ltd,10054700,17/05/22,109922,300089,New Build - Clerk Maxwell Road,70001,CAPEX - Acquisition of Land & Existing Building,"187,734.56"
Cambridge City Council,Hi-Spec Services Ltd,10793000,30/04/22,109419,5024,E_invoicing Suspense Accounts,69100,Expenditure In Holding Account Awaiting Allocation,"2,474.66"
Cambridge City Council,Hi-Spec Services Ltd,10793000,30/04/22,109417,5024,E_invoicing Suspense Accounts,69100,Expenditure In Holding Account Awaiting Allocation,"2,583.33"
Cambridge City Council,Histon & Impington Park Primary School,10213501,30/04/22,109301,1517,Syrian Resettlement,64600,Grants And Contributions,"1,350.00"
Cambridge City Council,Histon & Impington Park Primary School,10213501,30/04/22,109301,1517,Syrian Resettlement,64600,Grants And Contributions,675.00
Cambridge City Council,Histon & Impington Park Primary School,10213501,30/04/22,109301,1517,Syrian Resettlement,64600,Grants And Contributions,675.00
Cambridge City Council,Homeless Link,10055600,24/03/22,107984,1509,Grants to Housing Agencies (CCC funded),69150,Other Services,"14,873.00"
Cambridge City Council,Homeless Link,10055600,03/05/22,108313,1504,Housing Advice Service,64073,ICT Maintenance and Support,"1,330.00"
Cambridge City Council,Housing Partners Ltd,10268900,28/02/22,109194,6012,City Homes Expenditure,64073,ICT Maintenance and Support,"3,182.00"
Cambridge City Council,Housing Partners Ltd,10268900,29/04/22,109195,6012,City Homes Expenditure,64073,ICT Maintenance and Support,528.00
Cambridge City Council,Howden Joinery Ltd,10056300,27/01/22,109462,6200,Building Maintenance Response - Direct,61703,"Purchase - Equipment, Furniture And Materials",535.80
Cambridge City Council,Howden Joinery Ltd,10056300,27/01/22,109461,6200,Building Maintenance Response - Direct,61703,"Purchase - Equipment, Furniture And Materials",535.80
Cambridge City Council,Huntingdonshire District Council,10056901,29/04/22,108446,100352,Livestream/hybrid meetings at Council Chamber and Committee,70022,CAPEX - ICT Hardware,"1,546.00"
Cambridge City Council,Huntingdonshire District Council,10056901,29/04/22,108453,100283,Replacement telephony system with call centre,70023,CAPEX - ICT Software,"16,236.00"
Cambridge City Council,Huntingdonshire District Council,10056901,29/04/22,108461,100283,Replacement telephony system with call centre,70023,CAPEX - ICT Software,605.29
Cambridge City Council,Huntingdonshire District Council,10056901,29/04/22,108440,1202,Corporate Marketing,64071,ICT Software,"1,419.40"
Cambridge City Council,Huntingdonshire District Council,10056901,29/04/22,108451,100283,Replacement telephony system with call centre,70023,CAPEX - ICT Software,"3,210.00"
Cambridge City Council,Huntingdonshire District Council,10056901,29/04/22,108455,100283,Replacement telephony system with call centre,70023,CAPEX - ICT Software,"1,756.80"
Cambridge City Council,Huntingdonshire District Council,10056901,29/04/22,108450,1519,Shared Home Improvement Agency,64073,ICT Maintenance and Support,"3,607.00"
Cambridge City Council,Huntingdonshire District Council,10056901,29/04/22,108401,6012,City Homes Expenditure,64078,Radio Telephone Licence,639.00
Cambridge City Council,Huntingdonshire District Council,10056901,29/04/22,108439,1519,Shared Home Improvement Agency,64073,ICT Maintenance and Support,"1,000.00"
Cambridge City Council,Huntingdonshire District Council,10056901,29/04/22,108458,100283,Replacement telephony system with call centre,70023,CAPEX - ICT Software,"5,000.00"
Cambridge City Council,Huntingdonshire District Council,10056901,13/05/22,109238,1263,Cultural Services and Events - Central,64070,ICT Hardware,"4,682.93"
Cambridge City Council,Huntingdonshire District Council,10056901,29/04/22,108432,100283,Replacement telephony system with call centre,70010,CAPEX - Other Professional Fees,687.50
Cambridge City Council,Huntingdonshire District Council,10056901,29/04/22,108448,100352,Livestream/hybrid meetings at Council Chamber and Committee,70022,CAPEX - ICT Hardware,"7,793.88"
Cambridge City Council,Huntingdonshire District Council,10056901,29/04/22,108452,100283,Replacement telephony system with call centre,70023,CAPEX - ICT Software,"1,587.50"
Cambridge City Council,Huntingdonshire District Council,10056901,29/04/22,108456,100283,Replacement telephony system with call centre,70023,CAPEX - ICT Software,"1,586.40"
Cambridge City Council,Huntingdonshire District Council,10056901,29/04/22,108459,100283,Replacement telephony system with call centre,70023,CAPEX - ICT Software,"2,490.00"
Cambridge City Council,Huntingdonshire District Council,10056901,29/04/22,108460,100283,Replacement telephony system with call centre,70010,CAPEX - Other Professional Fees,"1,300.00"
Cambridge City Council,Huntingdonshire District Council,10056901,29/04/22,108465,100202,Office optimisation (OAS),70022,CAPEX - ICT Hardware,"19,761.00"
Cambridge City Council,Huntingdonshire District Council,10056901,29/04/22,108374,6004,Leasehold Property Management,64078,Radio Telephone Licence,987.00
Cambridge City Council,Huntingdonshire District Council,10056901,29/04/22,108457,100283,Replacement telephony system with call centre,70023,CAPEX - ICT Software,"1,036.77"
Cambridge City Council,Huntingdonshire District Council,10056901,29/04/22,108462,100283,Replacement telephony system with call centre,70023,CAPEX - ICT Software,"2,530.00"
Cambridge City Council,Huntingdonshire District Council,10056901,29/04/22,108454,100283,Replacement telephony system with call centre,70023,CAPEX - ICT Software,"7,437.50"
Cambridge City Council,Huntingdonshire District Council,10056901,29/04/22,108468,100340,Geographical Information System (GIS) test environment,70023,CAPEX - ICT Software,"13,564.41"
Cambridge City Council,Huntingdonshire District Council,10056901,20/04/22,107443,8000,Human Resources - Business Support,64300,Conference Expenses,"3,994.50"
Cambridge City Council,Huntingdonshire District Council,10056901,20/04/22,107443,8008,Shared Payroll Service,64300,Conference Expenses,"3,994.50"
Cambridge City Council,Huntingdonshire District Council,10056901,29/04/22,108365,1031,Fleet Management - Operational,64070,ICT Hardware,982.77
Cambridge City Council,Huntingdonshire District Council,10056901,29/04/22,108373,1031,Fleet Management - Operational,64070,ICT Hardware,791.20
Cambridge City Council,Huntingdonshire District Council,10056901,29/04/22,108447,100352,Livestream/hybrid meetings at Council Chamber and Committee,70022,CAPEX - ICT Hardware,"7,793.88"
Cambridge City Council,Huntingdonshire District Council,10056901,29/04/22,108463,100283,Replacement telephony system with call centre,70023,CAPEX - ICT Software,"9,920.00"
Cambridge City Council,Huntingdonshire District Council,10056901,29/04/22,108464,100202,Office optimisation (OAS),70010,CAPEX - Other Professional Fees,"10,235.00"
Cambridge City Council,Idox Software Limited,10057600,26/05/22,110044,1353,Elections,64073,ICT Maintenance and Support,"3,422.00"
Cambridge City Council,IHS Global Limited,10057800,13/05/22,109360,6203,Asset Management and Compliance,64800,Membership And Subscriptions,"8,130.00"
Cambridge City Council,Imagine This (Live) Limited,10315200,02/04/22,109441,9900,General Fund Balance Sheet,20118,Receipts In Advance - Other Entities And Individuals,"22,255.83"
Cambridge City Council,Industrial Site Maintenance Ltd,10793100,30/04/22,109841,5024,E_invoicing Suspense Accounts,69100,Expenditure In Holding Account Awaiting Allocation,"18,911.98"
Cambridge City Council,Industrial Site Maintenance Ltd,10793100,30/04/22,109841,5024,E_invoicing Suspense Accounts,69100,Expenditure In Holding Account Awaiting Allocation,"3,782.39"
Cambridge City Council,InterQuest Group (UK) Ltd,10930800,27/04/22,109388,1217,Our Cambridge Transformation Programme,62400,Consultancy Fees,"9,737.50"
Cambridge City Council,InterQuest Group (UK) Ltd,10930800,29/04/22,108550,1217,Our Cambridge Transformation Programme,62400,Consultancy Fees,"10,400.00"
Cambridge City Council,InterQuest Group (UK) Ltd,10930800,29/04/22,109389,1217,Our Cambridge Transformation Programme,62400,Consultancy Fees,"4,037.50"
Cambridge City Council,InterQuest Group (UK) Ltd,10930800,25/05/22,109923,1050,Community Safety,60011,Agency Staff,"1,679.00"
Cambridge City Council,InterQuest Group (UK) Ltd,10930800,29/04/22,109368,1217,Our Cambridge Transformation Programme,62400,Consultancy Fees,"7,800.00"
Cambridge City Council,Jacobs,10060300,16/05/22,109586,9900,General Fund Balance Sheet,11708,Vat Debtor (Input Tax),806.47
Cambridge City Council,Jade Security Services Ltd,10060400,30/04/22,109188,5024,E_invoicing Suspense Accounts,69100,Expenditure In Holding Account Awaiting Allocation,920.50
Cambridge City Council,JAM Removals Ltd,10060500,10/05/22,109000,8018,Admin Building Allocation,61700,Hire - Equipment Furniture And Materials,900.00
Cambridge City Council,Johnsons Workwear,10062300,26/03/22,108750,1031,Fleet Management - Operational,62000,"Clothes, Uniform And Laundry",834.40
Cambridge City Council,Johnsons Workwear,10062300,22/01/22,108748,1031,Fleet Management - Operational,62000,"Clothes, Uniform And Laundry",667.52
Cambridge City Council,Johnsons Workwear,10062300,25/12/21,108747,1031,Fleet Management - Operational,62000,"Clothes, Uniform And Laundry",759.35
Cambridge City Council,Johnsons Workwear,10062300,19/02/22,108749,1031,Fleet Management - Operational,62000,"Clothes, Uniform And Laundry",667.52
Cambridge City Council,Kestrel Fencing,10119900,06/05/22,109017,6214,Estate Investment Scheme,60235,Housing Repairs - Other Premises Related Costs,"4,954.88"
Cambridge City Council,Kings Hedges Educational Federation,10064300,05/05/22,109291,1517,Syrian Resettlement,64600,Grants And Contributions,"1,800.00"
Cambridge City Council,Kings Hedges Educational Federation,10064300,05/05/22,109291,1517,Syrian Resettlement,64600,Grants And Contributions,"1,800.00"
Cambridge City Council,Lanpro Services Ltd,10890900,30/04/22,108868,100358,Depot Relocation programme to create Operational Hub,70008,CAPEX - Architects Fees,"11,485.00"
Cambridge City Council,Lanpro Services Ltd,10890900,30/04/22,108869,100358,Depot Relocation programme to create Operational Hub,70010,CAPEX - Other Professional Fees,"2,550.00"
Cambridge City Council,Lanpro Services Ltd,10890900,30/04/22,108858,8030,Depot Relocation Project,62400,Consultancy Fees,"1,150.00"
Cambridge City Council,Lattenbury Services Ltd,10259100,26/04/22,108176,100323,S106 Nine Wells ecological mitigations,70009,CAPEX - Engineers Fees,"17,900.00"
Cambridge City Council,LDA Design Consulting Ltd,10066000,30/04/22,108964,100324,City centre recovery - Combined Authority grant funding,70002,CAPEX - Building Contractor/Works,"2,460.00"
Cambridge City Council,Level Water,10333400,17/05/22,109442,1057,Community Development Voluntary Support,64600,Grants And Contributions,"3,000.00"
Cambridge City Council,Living Sport Cambs and Peterborough Sports Partnership Ltd,10266300,04/05/22,108520,1057,Community Development Voluntary Support,64600,Grants And Contributions,"2,000.00"
Cambridge City Council,Liz Warwick,10316300,21/01/22,109606,1862,Open Space Asset Management,62400,Consultancy Fees,"2,000.00"
Cambridge City Council,LNRS Data Services Ltd,10087300,29/04/22,108353,8001,Human Resources Operations (Staff-General),64073,ICT Maintenance and Support,"6,605.97"
Cambridge City Council,Logistics UK,10046900,03/05/22,108920,1031,Fleet Management - Operational,60115,Staff Development And Training,909.50
Cambridge City Council,M Watson Construction Ltd,10122200,29/04/22,108236,300000,Disabled Adaptions,70002,CAPEX - Building Contractor/Works,"4,534.70"
Cambridge City Council,M Watson Construction Ltd,10122200,29/04/22,108239,300000,Disabled Adaptions,70002,CAPEX - Building Contractor/Works,"2,798.63"
Cambridge City Council,M Watson Construction Ltd,10122200,29/04/22,108237,300000,Disabled Adaptions,70002,CAPEX - Building Contractor/Works,"2,674.20"
Cambridge City Council,"MA Music, Leisure & Travel Ltd",10962600,16/05/22,109608,780003,,62005,"Advertising, Publicity And Marketing",850.00
Cambridge City Council,Mace Ltd,10290900,31/01/22,109749,300038,Wall Structure,70010,CAPEX - Other Professional Fees,"7,639.00"
Cambridge City Council,Mace Ltd,10290900,02/03/22,109751,300038,Wall Structure,70010,CAPEX - Other Professional Fees,"9,940.00"
Cambridge City Council,Mace Ltd,10290900,30/03/22,109752,300038,Wall Structure,70010,CAPEX - Other Professional Fees,"9,940.00"
Cambridge City Council,Madhead Music Media Ltd,10984300,10/03/22,109609,790015,,61910,Artist Fees,"1,375.00"
Cambridge City Council,Madingley Mulch,10068300,22/04/22,109926,1868,Play Maintenance,61703,"Purchase - Equipment, Furniture And Materials","1,575.83"
Cambridge City Council,Maintel Europe Ltd,10009800,19/04/22,108499,5024,E_invoicing Suspense Accounts,69100,Expenditure In Holding Account Awaiting Allocation,"1,963.63"
Cambridge City Council,Manchetts Ltd - Rescue & Recovery,10068801,25/04/22,108322,1858,Public Realm Enforcement,62401,Subcontractors,570.00
Cambridge City Council,Marick Management Ltd,10885500,11/05/22,109375,100300,Park Street car park development,70002,CAPEX - Building Contractor/Works,"363,851.16"
Cambridge City Council,Marlene Sharpe-Westwood,10069400,29/04/22,108584,1104,Sport - Ex Ref,62404,Instructors/Tutors,613.00
Cambridge City Council,Marshall Motor Group Ltd,10069502,06/05/22,108943,1032,Garage- External Work,61703,"Purchase - Equipment, Furniture And Materials",917.44
Cambridge City Council,Marshall Motor Group Ltd,10069502,09/05/22,108943,1032,Garage- External Work,61703,"Purchase - Equipment, Furniture And Materials","1,954.37"
Cambridge City Council,Matt Somerville t/a Bee Kind Hives,10878000,11/05/22,109105,100322,S106 Byron's Pool ecological mitigations,70010,CAPEX - Other Professional Fees,573.50
Cambridge City Council,Matt Somerville t/a Bee Kind Hives,10878000,11/05/22,109105,100323,S106 Nine Wells ecological mitigations,70010,CAPEX - Other Professional Fees,573.50
Cambridge City Council,Maxine Lester Lettings & Property Management Ltd,10979200,06/05/22,108840,1526,Homelessness Prevention Grant,64600,Grants And Contributions,"2,307.70"
Cambridge City Council,Mears Ltd,10121400,14/04/22,107243,6211,Heat and Hot Water Servicing,60225,Housing Repairs - Gas Maintenance Contract,"62,225.74"
Cambridge City Council,Mears Ltd,10121400,14/04/22,107243,6211,Heat and Hot Water Servicing,60225,Housing Repairs - Gas Maintenance Contract,"1,950.87"
Cambridge City Council,Mears Ltd,10121400,14/04/22,107243,300008,Central Heating / Boilers,70003,CAPEX - Building Contractor/Works - Voids & Emergencies,"2,366.45"
Cambridge City Council,Mercer Tree Services Ltd,10071200,02/05/22,108356,1890,2 Seas,64040,Tree Works,500.00
Cambridge City Council,Metric Media Ltd,10401200,29/04/22,108585,1661,Parking Administration,60300,Signs Erecting & Removal,"1,886.00"
Cambridge City Council,Michael Page International Recruitment Ltd,10909500,29/04/22,109546,1202,Corporate Marketing,60011,Agency Staff,"2,878.50"
Cambridge City Council,Michael Page International Recruitment Ltd,10909500,29/04/22,109546,1217,Our Cambridge Transformation Programme,60011,Agency Staff,"2,878.50"
Cambridge City Council,Mill Road Winter Fair,10072000,17/05/22,109346,1057,Community Development Voluntary Support,64600,Grants And Contributions,"2,500.00"
Cambridge City Council,Morgan Lambert Ltd,10620300,28/02/22,108142,6211,Heat and Hot Water Servicing,60225,Housing Repairs - Gas Maintenance Contract,"1,051.20"
Cambridge City Council,Motus Truck and Van,10078700,17/05/22,109801,1032,Garage- External Work,61703,"Purchase - Equipment, Furniture And Materials",571.90
Cambridge City Council,Motus Truck and Van,10078700,23/05/22,109801,1032,Garage- External Work,61703,"Purchase - Equipment, Furniture And Materials",575.00
Cambridge City Council,Motus Truck and Van,10078700,20/05/22,109801,1032,Garage- External Work,61703,"Purchase - Equipment, Furniture And Materials",510.30
Cambridge City Council,Motus Truck and Van,10078700,12/05/22,109353,1032,Garage- External Work,61703,"Purchase - Equipment, Furniture And Materials",717.25
Cambridge City Council,Mr Alexander Greaves,10768700,11/04/22,109373,1876,Arboriculture,63200,Legal Fees,800.00
Cambridge City Council,Museum of Cambridge,10074200,10/05/22,108891,1057,Community Development Voluntary Support,64600,Grants And Contributions,"7,500.00"
Cambridge City Council,NEC Software Solutions UK Ltd,10076700,29/04/22,108331,1801,Local Taxation,64072,ICT Licences,"2,075.00"
Cambridge City Council,NEC Software Solutions UK Ltd,10076700,29/04/22,108274,1803,Revenue Overheads,60011,Agency Staff,"2,320.00"
Cambridge City Council,NEC Software Solutions UK Ltd,10076700,29/04/22,108329,1801,Local Taxation,60011,Agency Staff,"7,200.00"
Cambridge City Council,NEC Software Solutions UK Ltd,10076700,29/04/22,108328,1803,Revenue Overheads,60011,Agency Staff,600.00
Cambridge City Council,NEC Software Solutions UK Ltd,10076700,29/04/22,108328,1803,Revenue Overheads,60011,Agency Staff,760.00
Cambridge City Council,NEC Software Solutions UK Ltd,10076700,09/05/22,108881,1802,Housing Benefits,64072,ICT Licences,"11,057.74"
Cambridge City Council,New International Encounter,10161400,04/05/22,108521,1057,Community Development Voluntary Support,64600,Grants And Contributions,"3,260.00"
Cambridge City Council,Newlyn PLC,10075600,30/04/22,109292,9900,General Fund Balance Sheet,11708,Vat Debtor (Input Tax),"1,121.05"
Cambridge City Council,NFC Property Maintenance Ltd,10548300,29/04/22,108201,1935,Markets,60202,Cyclical/Planned Maintenance - Fixed Plant,925.00
Cambridge City Council,Nibra Signs Ltd,10970100,05/05/22,108861,1701,3C Building Control,62001,Printing,"2,890.96"
Cambridge City Council,Nomix Enviro Ltd,10076300,26/04/22,109110,1856,Streets & Open Spaces (Operations) - Indirect Costs,61703,"Purchase - Equipment, Furniture And Materials","2,883.00"
Cambridge City Council,Nomix Enviro Ltd,10076300,26/04/22,109109,1856,Streets & Open Spaces (Operations) - Indirect Costs,61703,"Purchase - Equipment, Furniture And Materials","2,883.00"
Cambridge City Council,Norse Commercial Services Ltd t/a N-Able,10130000,30/04/22,108667,300000,Disabled Adaptions,70007,CAPEX - Building Contractor/Works - Major Adaptations (HRA),"4,557.00"
Cambridge City Council,Norse Commercial Services Ltd t/a N-Able,10130000,30/04/22,108668,300000,Disabled Adaptions,70007,CAPEX - Building Contractor/Works - Major Adaptations (HRA),"4,557.00"
Cambridge City Council,North Cambridge Community Partnership,10131301,28/04/22,108161,1059,Community Facilities (formerly St Lukes Community School),64600,Grants And Contributions,"3,500.00"
Cambridge City Council,North Cambridge Community Partnership,10131301,28/04/22,108160,1059,Community Facilities (formerly St Lukes Community School),64600,Grants And Contributions,"3,000.00"
Cambridge City Council,North Cambridge Community Partnership,10131301,04/05/22,108522,1057,Community Development Voluntary Support,64600,Grants And Contributions,500.00
Cambridge City Council,Northgate Vehicle Hire Ltd,10076800,05/05/22,108814,1052,Children & Young People's Service,60909,Vehicle Hire,502.88
Cambridge City Council,NPS Property Consultants Ltd,10370900,29/04/22,109370,100243,Property Management software,70010,CAPEX - Other Professional Fees,"2,175.00"
Cambridge City Council,Nurture Landscapes Ltd,10132000,30/04/22,108226,1774,"Cambridge Road Retail Park, Haverhill",60503,Grounds Maintenance,851.89
Cambridge City Council,Nurture Landscapes Ltd,10132000,31/05/22,110110,1774,"Cambridge Road Retail Park, Haverhill",60503,Grounds Maintenance,851.89
Cambridge City Council,OASIS - Offsite Storage & Integrated Services UK Ltd,10155800,30/04/22,108745,8023,Business Support - Centralised Overheads,63700,Removal Services,562.34
Cambridge City Council,Oblique Arts,10159100,04/05/22,108555,1057,Community Development Voluntary Support,64600,Grants And Contributions,500.00
Cambridge City Council,Ocean Media Group Ltd,10077500,28/04/22,108604,6012,City Homes Expenditure,64300,Conference Expenses,"2,000.00"
Cambridge City Council,One Inch Badge Ltd,10320200,27/04/22,108682,9900,General Fund Balance Sheet,20118,Receipts In Advance - Other Entities And Individuals,"8,430.14"
Cambridge City Council,Only First Aid Ltd,10342800,19/05/22,109930,1064,Neighbourhood Community Development,60115,Staff Development And Training,500.00
Cambridge City Council,Orchard Information Systems Ltd,10078400,31/03/22,108673,300030,Orchard Upgrade,70024,CAPEX - Other Capital Expenditure,857.40
Cambridge City Council,Outspoken Delivery LLP,10078900,30/04/22,108497,1353,Elections,64100,Postage And Courier Services,"1,656.00"
Cambridge City Council,Owen Brown Ltd/Gl Events Uk Ltd,10320400,01/05/22,108579,780003,,61710,Hire of Marquees/Staging,"58,015.00"
Cambridge City Council,Panther Taxis Ltd,10079600,30/04/22,108481,1712,Taxicard Service,63900,Miscellaneous Expenses,"2,044.00"
Cambridge City Council,Park Lane Plumbing and Heating Ltd,10927700,08/04/22,109093,200002,Mandatory Disabled Facilities Grants (Owner Occupiers),70015,CAPEX - Grants Paid,"3,825.00"
Cambridge City Council,Partners&,10849700,01/04/22,108345,8009,Insurance Fund,67302,Insurance Claim,"3,059.00"
Cambridge City Council,Password Productions Ltd,10320800,24/05/22,109814,700145,,61910,Artist Fees,"37,776.69"
Cambridge City Council,Pearce Sound & Lighting Ltd,10321200,03/03/22,106406,1260,Corn Exchange and Guildhalls,60209,R & M Minor Works,"3,421.03"
Cambridge City Council,Penna PLC,10080400,18/05/22,109534,1419,Environmental Health Operational Support,60116,Staff Recruitment Costs,782.00
Cambridge City Council,Penna PLC,10080400,18/05/22,109522,6203,Asset Management and Compliance,60116,Staff Recruitment Costs,808.75
Cambridge City Council,Penna PLC,10080400,18/05/22,109535,1419,Environmental Health Operational Support,60116,Staff Recruitment Costs,"1,530.00"
Cambridge City Council,Pennon Water Services Ltd t/a Source for Business,10080500,03/05/22,108505,5024,E_invoicing Suspense Accounts,69100,Expenditure In Holding Account Awaiting Allocation,"2,479.02"
Cambridge City Council,People Asset Management Ltd,10145100,30/04/22,108479,8001,Human Resources Operations (Staff-General),60111,Occupational Health,"1,467.50"
Cambridge City Council,PG Ashton & Sons (Surveyors) Ltd,10975700,11/04/22,108256,6207,Repairs Day to Day,63200,Legal Fees,705.00
Cambridge City Council,Pollard Thomas Edwards LLP,10166000,29/04/22,108235,1506,Housing Development Agency,62400,Consultancy Fees,919.00
Cambridge City Council,PortalPlanQuest Ltd,10239400,17/05/22,109377,1702,City Development,54102,Planning Applications Income - Minor,"2,100.00"
Cambridge City Council,Potter Raper Partnership,10294300,29/04/22,109079,1506,Housing Development Agency,62400,Consultancy Fees,750.00
Cambridge City Council,Potter Raper Partnership,10294300,29/04/22,108592,300105,New Build - Aylesborough Close,70010,CAPEX - Other Professional Fees,"3,247.90"
Cambridge City Council,PPL PRS Ltd,10274200,29/04/22,108485,1260,Corn Exchange and Guildhalls,60410,Licences,904.63
Cambridge City Council,Priava Services (UK) Ltd,10322300,08/03/22,108730,1260,Corn Exchange and Guildhalls,64800,Membership And Subscriptions,"7,976.00"
Cambridge City Council,Print.UK.Com,10083800,27/04/22,108164,1353,Elections,64100,Postage And Courier Services,"8,668.20"
Cambridge City Council,Print.UK.Com,10083800,23/04/22,107998,1353,Elections,62001,Printing,"9,305.82"
Cambridge City Council,Print.UK.Com,10083800,13/05/22,109242,1353,Elections,64100,Postage And Courier Services,"1,025.27"
Cambridge City Council,Print.UK.Com,10083800,27/04/22,108166,1353,Elections,62001,Printing,"3,535.42"
Cambridge City Council,Print.UK.Com,10083800,17/05/22,109865,1353,Elections,62001,Printing,"1,747.97"
Cambridge City Council,Priority Hire Ltd,10084100,30/04/22,108695,6110,City Homes Estate Management,60909,Vehicle Hire,550.00
Cambridge City Council,Priority Hire Ltd,10084100,16/05/22,109538,1850,Grounds Maintenance & Street Cleaning,60909,Vehicle Hire,550.00
Cambridge City Council,Priority Hire Ltd,10084100,30/04/22,108693,1856,Streets & Open Spaces (Operations) - Indirect Costs,60909,Vehicle Hire,900.00
Cambridge City Council,Priority Hire Ltd,10084100,16/05/22,109530,6110,City Homes Estate Management,60909,Vehicle Hire,550.00
Cambridge City Council,Prompt Glazing Ltd,10283900,04/05/22,108718,300012,External Doors,70003,CAPEX - Building Contractor/Works - Voids & Emergencies,890.67
Cambridge City Council,Prompt Glazing Ltd,10283900,11/05/22,108971,300012,External Doors,70003,CAPEX - Building Contractor/Works - Voids & Emergencies,654.17
Cambridge City Council,Prompt Glazing Ltd,10283900,29/04/22,108101,300012,External Doors,70003,CAPEX - Building Contractor/Works - Voids & Emergencies,869.00
Cambridge City Council,Prompt Glazing Ltd,10283900,29/04/22,108100,300012,External Doors,70003,CAPEX - Building Contractor/Works - Voids & Emergencies,769.00
Cambridge City Council,Prompt Glazing Ltd,10283900,29/04/22,108100,300012,External Doors,70003,CAPEX - Building Contractor/Works - Voids & Emergencies,712.50
Cambridge City Council,Prompt Glazing Ltd,10283900,29/04/22,108100,300012,External Doors,70003,CAPEX - Building Contractor/Works - Voids & Emergencies,712.50
Cambridge City Council,Prompt Glazing Ltd,10283900,13/05/22,109133,300012,External Doors,70003,CAPEX - Building Contractor/Works - Voids & Emergencies,"1,481.50"
Cambridge City Council,Pro-Serv (Cambridge) Ltd,10622900,13/04/22,108065,1059,Community Facilities (formerly St Lukes Community School),60201,Cyclical/Planned Maintenance - Building,"3,272.55"
Cambridge City Council,Protector Insurance UK,10565800,25/05/22,109886,8009,Insurance Fund,67302,Insurance Claim,"6,832.79"
Cambridge City Council,Quadient UK Ltd,10137600,29/03/22,109662,8023,Business Support - Centralised Overheads,64100,Postage And Courier Services,"1,003.16"
Cambridge City Council,Quartix Ltd,10206900,07/04/22,110072,5001,City Services Holding Account,69100,Expenditure In Holding Account Awaiting Allocation,"6,054.84"
Cambridge City Council,R J Warren Ltd,10123500,16/05/22,109262,1866,Open Space Asset Maintenance,61702,"Maintenance - Equipment, Furniture And Materials","1,285.00"
Cambridge City Council,R J Warren Ltd,10123500,23/05/22,109953,1866,Open Space Asset Maintenance,60503,Grounds Maintenance,"4,990.00"
Cambridge City Council,R J Warren Ltd,10123500,25/05/22,109955,1871,Allotments,60201,Cyclical/Planned Maintenance - Building,750.00
Cambridge City Council,Realife Trust,10086900,20/05/22,109663,1766,Orwell House Offices-Internal,62004,General Office Expenses,"1,520.84"
Cambridge City Council,Ricardo-AEA Limited,10088700,29/04/22,108202,1404,Scientific Team,62400,Consultancy Fees,"2,414.50"
Cambridge City Council,Richards Partington Architects Ltd T/A Studio Partington,10921200,30/04/22,108332,300106,New Build - St Thomas's Road,70010,CAPEX - Other Professional Fees,"5,725.00"
Cambridge City Council,Richards Partington Architects Ltd T/A Studio Partington,10921200,30/04/22,108332,300107,New Build - Paget Road,70010,CAPEX - Other Professional Fees,"5,725.00"
Cambridge City Council,Riggall and Hawksford Ltd,10273500,11/05/22,109012,6208,Voids,60233,Housing Repairs - Work Given To External Contractors,512.35
Cambridge City Council,Rightmove Group Ltd,10089400,20/05/22,109664,1758,Other Commercial Properties,62005,"Advertising, Publicity And Marketing",505.00
Cambridge City Council,RIP Productions Ltd,10969300,04/04/22,108851,9900,General Fund Balance Sheet,20118,Receipts In Advance - Other Entities And Individuals,"4,889.47"
Cambridge City Council,Risk Warden Ltd,10441100,17/05/22,109371,6215,Risk and Compliance,60205,Fire Assessment And Safety,"11,589.60"
Cambridge City Council,RMS Cash Solutions Ltd t/a Pivotal,10893700,10/05/22,108892,9900,General Fund Balance Sheet,10002,Petty Cash,"9,000.00"
Cambridge City Council,Roche Systems Ltd,10983700,27/10/21,110060,100382,S106 Clay Farm community centre improvements,70002,CAPEX - Building Contractor/Works,"3,619.00"
Cambridge City Council,Rock Solid Group Ltd,10883000,24/05/22,109824,700365,,60011,Agency Staff,"1,031.00"
Cambridge City Council,Rock Solid Group Ltd,10883000,24/05/22,109824,700368,,60011,Agency Staff,600.00
Cambridge City Council,Rock Solid Group Ltd,10883000,24/05/22,109824,700338,,60011,Agency Staff,600.00
Cambridge City Council,Rock Solid Group Ltd,10883000,24/05/22,109824,700265,,60011,Agency Staff,"1,389.00"
Cambridge City Council,Rock Solid Group Ltd,10883000,24/05/22,109824,700188,,60011,Agency Staff,"1,396.20"
Cambridge City Council,Royal Mail Group Ltd,10128401,22/04/22,107981,1353,Elections,64100,Postage And Courier Services,"2,867.16"
Cambridge City Council,Royal Mail Group Ltd,10128401,10/05/22,109119,8023,Business Support - Centralised Overheads,64100,Postage And Courier Services,"1,254.56"
Cambridge City Council,Royal Mail Group Ltd,10128401,06/05/22,109829,1353,Elections,64100,Postage And Courier Services,"1,504.44"
Cambridge City Council,Royal Mail Group Ltd,10128401,26/04/22,108266,8023,Business Support - Centralised Overheads,64100,Postage And Courier Services,"1,004.24"
Cambridge City Council,Royal Mail Group Ltd,10128401,29/04/22,109828,1353,Elections,64100,Postage And Courier Services,"1,380.88"
Cambridge City Council,RSA - Royal Society of Arts,10850900,25/04/22,108275,1253,Cambridgeshire and Peterborough Region of Learning,69150,Other Services,"8,717.40"
Cambridge City Council,RSA - Royal Society of Arts,10850900,25/04/22,108275,1253,Cambridgeshire and Peterborough Region of Learning,69150,Other Services,"1,307.58"
Cambridge City Council,RSA - Royal Society of Arts,10850900,25/04/22,108275,1253,Cambridgeshire and Peterborough Region of Learning,62400,Consultancy Fees,"6,000.00"
Cambridge City Council,RSM Risk Assurance Services LLP,10207000,24/05/22,109813,8006,Accountancy and Support Services,64072,ICT Licences,"2,500.00"
Cambridge City Council,S P Landscapes & Tree Contractors Ltd,10124100,25/04/22,109142,1876,Arboriculture,64040,Tree Works,"5,250.00"
Cambridge City Council,S P Landscapes & Tree Contractors Ltd,10124100,17/05/22,109621,1890,2 Seas,64040,Tree Works,"1,625.00"
Cambridge City Council,S P Landscapes & Tree Contractors Ltd,10124100,29/04/22,109213,1876,Arboriculture,64040,Tree Works,995.00
Cambridge City Council,S P Landscapes & Tree Contractors Ltd,10124100,10/05/22,109191,1876,Arboriculture,64040,Tree Works,"1,560.00"
Cambridge City Council,S P Landscapes & Tree Contractors Ltd,10124100,24/05/22,109958,1883,Flood Risk Management,60501,Cleaning Services,850.00
Cambridge City Council,S R Harradine Haulage Ltd,10437700,30/05/22,110141,1856,Streets & Open Spaces (Operations) - Indirect Costs,64050,Waste Disposal Costs,880.00
Cambridge City Council,Safe Partnership Ltd,10890200,25/05/22,110076,6012,City Homes Expenditure,60271,Security Of Premises,"2,025.00"
Cambridge City Council,Sayfa Systems UK Ltd,10092100,30/05/22,110139,8015,Guildhall,60201,Cyclical/Planned Maintenance - Building,890.00
Cambridge City Council,Secure Haven Ltd,10488900,13/04/22,107782,1001,Cambridge Crematorium,53006,Bereavement  - Fees And Charges (E),"1,765.00"
Cambridge City Council,Secure Haven Ltd,10488900,13/04/22,107780,1001,Cambridge Crematorium,53006,Bereavement  - Fees And Charges (E),"2,147.00"
Cambridge City Council,Secure Haven Ltd,10488900,11/05/22,109669,1001,Cambridge Crematorium,53006,Bereavement  - Fees And Charges (E),"1,847.00"
Cambridge City Council,Secure Haven Ltd,10488900,10/05/22,109667,1001,Cambridge Crematorium,53006,Bereavement  - Fees And Charges (E),768.33
Cambridge City Council,Sedgwick International UK,10822100,30/12/21,109545,6204,Client and Third Party Repairs,60219,Housing Repairs - Insurances,"2,575.00"
Cambridge City Council,Sharpe Pritchard LLP,10093300,31/03/22,109190,6007,Departmental Overheads-Client,63300,Professional Services - General,517.00
Cambridge City Council,Sharpe Pritchard LLP,10093300,30/04/22,109080,1661,Parking Administration,62400,Consultancy Fees,"2,138.00"
Cambridge City Council,Sherwin Williams Diversified Brands Ltd,10049100,16/05/22,109436,9900,General Fund Balance Sheet,11600,Consumable Stores,"1,011.84"
Cambridge City Council,Shift Momentum Ltd,10851100,03/05/22,108769,1253,Cambridgeshire and Peterborough Region of Learning,62005,"Advertising, Publicity And Marketing","2,000.00"
Cambridge City Council,Siemens Financial Services Limited,10093900,29/04/22,108207,8018,Admin Building Allocation,64200,Subsistence,527.15
Cambridge City Council,SIN Cru,10768900,18/03/22,109317,1251,Culture and Community,62900,Events,800.00
Cambridge City Council,SJM Concerts Ltd,10324500,14/04/22,108317,9900,General Fund Balance Sheet,20118,Receipts In Advance - Other Entities And Individuals,"6,202.13"
Cambridge City Council,SJM Concerts Ltd,10324500,12/04/22,107462,9900,General Fund Balance Sheet,20118,Receipts In Advance - Other Entities And Individuals,"6,999.10"
Cambridge City Council,SJM Concerts Ltd,10324500,27/04/22,107876,9900,General Fund Balance Sheet,20118,Receipts In Advance - Other Entities And Individuals,"8,398.92"
Cambridge City Council,SJM Concerts Ltd,10324500,08/04/22,109208,9900,General Fund Balance Sheet,20118,Receipts In Advance - Other Entities And Individuals,"13,297.85"
Cambridge City Council,South Cambridgeshire District Council,10096103,27/04/22,107974,1714,Greater Cambridge Planning Service,64060,Shared Service Contribution,"63,600.00"
Cambridge City Council,South Cambridgeshire District Council,10096103,13/05/22,109263,1203,Corporate Policy,60117,Staff Other Expenses,"3,860.42"
Cambridge City Council,South Cambridgeshire District Council,10096103,27/04/22,107975,9900,General Fund Balance Sheet,30001,Gf Earmarked Reserves Balance,"21,611.00"
Cambridge City Council,South Cambridgeshire District Council,10096103,27/05/22,110079,1625,Land Charges and Searches,58400,Income In Holding Account Awaiting Allocation,"4,154.39"
Cambridge City Council,South Cambridgeshire District Council,10096103,27/05/22,110079,1625,Land Charges and Searches,58400,Income In Holding Account Awaiting Allocation,755.50
Cambridge City Council,South Cambridgeshire District Council,10096103,27/05/22,110078,1702,City Development,58400,Income In Holding Account Awaiting Allocation,"47,192.65"
Cambridge City Council,St Augustines Church,10097000,11/05/22,109057,1353,Elections,60402,Premises Hire - Facilities,500.00
Cambridge City Council,St Barnabas Church,10097100,05/05/22,108727,1353,Elections,60402,Premises Hire - Facilities,573.75
Cambridge City Council,St John The Evangelist,10097500,20/05/22,109561,1353,Elections,60402,Premises Hire - Facilities,850.00
Cambridge City Council,Stannah Lift Services,10124300,30/03/22,108280,300000,Disabled Adaptions,70002,CAPEX - Building Contractor/Works,"4,886.00"
Cambridge City Council,Stannah Lift Services,10124300,25/03/22,109178,200002,Mandatory Disabled Facilities Grants (Owner Occupiers),70015,CAPEX - Grants Paid,"15,504.00"
Cambridge City Council,Stannah Lift Services,10124300,28/04/22,108170,300000,Disabled Adaptions,70002,CAPEX - Building Contractor/Works,"2,591.00"
Cambridge City Council,Stannah Lift Services,10124300,10/05/22,108974,300000,Disabled Adaptions,70002,CAPEX - Building Contractor/Works,"2,909.00"
Cambridge City Council,Stannah Lift Services,10124300,17/05/22,109547,300000,Disabled Adaptions,70002,CAPEX - Building Contractor/Works,"2,814.00"
Cambridge City Council,Stannah Lift Services,10124300,22/04/22,109782,200002,Mandatory Disabled Facilities Grants (Owner Occupiers),70015,CAPEX - Grants Paid,"2,591.00"
Cambridge City Council,Stannah Lift Services,10124300,23/05/22,109816,200002,Mandatory Disabled Facilities Grants (Owner Occupiers),70015,CAPEX - Grants Paid,"5,852.00"
Cambridge City Council,Strawberry Fair,10098900,17/05/22,109448,1057,Community Development Voluntary Support,64600,Grants And Contributions,"12,500.00"
Cambridge City Council,Streetspace Ltd,10858200,24/05/22,109959,300088,Estate Investment,70002,CAPEX - Building Contractor/Works,"14,018.25"
Cambridge City Council,Strictly Theatre Co Ltd,10421600,16/05/22,109532,9900,General Fund Balance Sheet,20118,Receipts In Advance - Other Entities And Individuals,"26,867.93"
Cambridge City Council,Studio 24 Ltd,10249400,01/05/22,109117,1263,Cultural Services and Events - Central,61930,Cultural Services and Events Website,642.70
Cambridge City Council,SWWB Ltd T/ACambridge Water,10134700,10/05/22,109004,1850,Grounds Maintenance & Street Cleaning,61700,Hire - Equipment Furniture And Materials,"5,347.25"
Cambridge City Council,Tanner & Hall Roofing & Solar Systems Ltd,10124500,30/04/22,108354,6207,Repairs Day to Day,60233,Housing Repairs - Work Given To External Contractors,"1,250.00"
Cambridge City Council,Tanner & Hall Roofing & Solar Systems Ltd,10124500,28/02/21,108732,6207,Repairs Day to Day,60233,Housing Repairs - Work Given To External Contractors,650.00
Cambridge City Council,Tanner & Hall Roofing & Solar Systems Ltd,10124500,31/03/22,108734,6207,Repairs Day to Day,60233,Housing Repairs - Work Given To External Contractors,"1,750.00"
Cambridge City Council,Tanner & Hall Roofing & Solar Systems Ltd,10124500,10/03/22,108733,6207,Repairs Day to Day,60233,Housing Repairs - Work Given To External Contractors,"1,250.00"
Cambridge City Council,Technology One (UK) Limited,10101100,30/04/22,108232,8006,Accountancy and Support Services,64073,ICT Maintenance and Support,"2,500.00"
Cambridge City Council,Technology One (UK) Limited,10101100,20/02/22,108623,8006,Accountancy and Support Services,64073,ICT Maintenance and Support,"2,500.00"
Cambridge City Council,Terberg Matec UK Ltd,10101500,28/04/22,108320,1031,Fleet Management - Operational,61703,"Purchase - Equipment, Furniture And Materials",555.15
Cambridge City Council,TestReach Ltd,10607300,25/02/22,108999,1420,Public Control - Private Hire Vehicles,61703,"Purchase - Equipment, Furniture And Materials","3,300.00"
Cambridge City Council,TestReach Ltd,10607300,25/02/22,108999,1421,Public Control - Taxis,61703,"Purchase - Equipment, Furniture And Materials","4,950.00"
Cambridge City Council,Thames Laboratories Ltd,,29/04/22,109303,6215,Risk and Compliance,60237,Asbestos Investigation/Surveys,"4,014.32"
Cambridge City Council,The Academy Of Ancient Music,10303300,18/05/22,109590,9900,General Fund Balance Sheet,20118,Receipts In Advance - Other Entities And Individuals,"6,841.90"
Cambridge City Council,The Beck Co Ltd,10101800,05/05/22,108915,9900,General Fund Balance Sheet,11600,Consumable Stores,546.24
Cambridge City Council,The BSS Group PLC t/a PTS Plumbing Trade Supplies,10102000,04/05/22,108915,9900,General Fund Balance Sheet,11600,Consumable Stores,500.40
Cambridge City Council,The BSS Group PLC t/a PTS Plumbing Trade Supplies,10102000,09/05/22,109342,9900,General Fund Balance Sheet,11600,Consumable Stores,619.30
Cambridge City Council,The BSS Group PLC t/a PTS Plumbing Trade Supplies,10102000,09/05/22,109342,9900,General Fund Balance Sheet,11600,Consumable Stores,619.30
Cambridge City Council,The Columbaria Company,10102400,03/05/22,108894,1004,Commemoration,61400,Goods For Resale,614.00
Cambridge City Council,The Headline Factory Ltd t/a Media Moguls,10353700,13/05/22,109212,790015,,61910,Artist Fees,"2,500.00"
Cambridge City Council,The Helping Hand Co (Ledbury) Ltd,10103300,06/05/22,109187,1859,S&OS Community Engagement,61703,"Purchase - Equipment, Furniture And Materials","1,087.00"
Cambridge City Council,The Highfield Event Group Ltd,10410700,17/05/22,109414,790014,,61710,Hire of Marquees/Staging,"2,275.00"
Cambridge City Council,The Housing Ombudsman,10103500,09/05/22,108839,6007,Departmental Overheads-Client,64800,Membership And Subscriptions,"32,637.00"
Cambridge City Council,The Signal Box Centre,10105300,04/05/22,108556,1057,Community Development Voluntary Support,64600,Grants And Contributions,"1,000.00"
Cambridge City Council,The Signal Box Centre,10105300,23/05/22,109760,1353,Elections,60402,Premises Hire - Facilities,600.00
Cambridge City Council,The Technology Forge Ltd,10629800,03/05/22,108298,100243,Property Management software,70023,CAPEX - ICT Software,"12,600.00"
Cambridge City Council,The Urban Forest Consultancy Ltd,10105700,26/05/22,110061,1876,Arboriculture,62400,Consultancy Fees,"4,000.00"
Cambridge City Council,The Wildlife Trust BCN,10105800,18/05/22,109631,1878,Local Nature Reserves,60503,Grounds Maintenance,"5,000.00"
Cambridge City Council,Thinkproject UK Ltd,10031200,21/05/22,109817,5062,3C ICT,64073,ICT Maintenance and Support,"1,100.00"
Cambridge City Council,Thistle Insurance Services Ltd,10105900,04/05/22,108489,6502,Holding Accounts,69343,Insurance Premium - Other,"1,534.87"
Cambridge City Council,Thurlow Nunn Standen Ltd,10106100,29/04/22,108320,1031,Fleet Management - Operational,61703,"Purchase - Equipment, Furniture And Materials",608.71
Cambridge City Council,Thurlow Nunn Standen Ltd,10106100,18/05/22,109387,1850,Grounds Maintenance & Street Cleaning,61703,"Purchase - Equipment, Furniture And Materials",520.00
Cambridge City Council,Tic Tac Skate School Ltd,10976400,10/05/22,109264,1103,Active Lifestyles - Communities (ex Sports Development),61700,Hire - Equipment Furniture And Materials,650.00
Cambridge City Council,Tinotenda Akino,10986200,23/05/22,109723,9900,General Fund Balance Sheet,20119,Other Creditors - Other Entities And Individuals,600.00
Cambridge City Council,Total Clean Cambridge,10884600,16/05/22,109555,1065,Akeman Street Community House,60502,Cleaning Contract,730.77
Cambridge City Council,Total Clean Cambridge,10884600,18/04/22,109554,1065,Akeman Street Community House,60502,Cleaning Contract,755.73
Cambridge City Council,Total Gas & Power Ltd,10134800,30/04/22,109838,5024,E_invoicing Suspense Accounts,69100,Expenditure In Holding Account Awaiting Allocation,"81,713.68"
Cambridge City Council,Trees for Cities,10860300,12/05/22,110090,1890,2 Seas,62400,Consultancy Fees,"2,700.00"
Cambridge City Council,Triple A Entertainment Group Limited,10303100,22/04/22,109967,9900,General Fund Balance Sheet,20118,Receipts In Advance - Other Entities And Individuals,"9,877.01"
Cambridge City Council,Trumpington Residents Association,10108500,28/04/22,108163,1059,Community Facilities (formerly St Lukes Community School),64600,Grants And Contributions,"7,625.00"
Cambridge City Council,TSG Building Services PLC,10125300,19/04/22,108507,5024,E_invoicing Suspense Accounts,69100,Expenditure In Holding Account Awaiting Allocation,"302,655.37"
Cambridge City Council,TSG Building Services PLC,10125300,12/05/22,109726,5024,E_invoicing Suspense Accounts,69100,Expenditure In Holding Account Awaiting Allocation,"71,621.89"
Cambridge City Council,TSG Building Services PLC,10125300,19/04/22,108508,5024,E_invoicing Suspense Accounts,69100,Expenditure In Holding Account Awaiting Allocation,"102,361.55"
Cambridge City Council,TSG Building Services PLC,10125300,12/05/22,109730,5024,E_invoicing Suspense Accounts,69100,Expenditure In Holding Account Awaiting Allocation,"656,768.71"
Cambridge City Council,TSM Consultants,10931100,27/05/22,109966,6203,Asset Management and Compliance,62400,Consultancy Fees,"4,705.20"
Cambridge City Council,Tusk Consulting Ltd,10949900,01/05/22,108598,1217,Our Cambridge Transformation Programme,62400,Consultancy Fees,"8,200.00"
Cambridge City Council,UK Fuels Limited,10192900,01/05/22,108601,5001,City Services Holding Account,69100,Expenditure In Holding Account Awaiting Allocation,"7,534.12"
Cambridge City Council,UK Fuels Limited,10192900,08/05/22,109113,5001,City Services Holding Account,69100,Expenditure In Holding Account Awaiting Allocation,"5,556.47"
Cambridge City Council,UK Fuels Limited,10192900,15/05/22,109763,5001,City Services Holding Account,69100,Expenditure In Holding Account Awaiting Allocation,"6,082.85"
Cambridge City Council,UK Fuels Limited,10192900,22/05/22,110092,5001,City Services Holding Account,69100,Expenditure In Holding Account Awaiting Allocation,"5,451.43"
Cambridge City Council,UK Theatre Shows Ltd,10981000,06/05/22,108947,9900,General Fund Balance Sheet,20118,Receipts In Advance - Other Entities And Individuals,"6,625.00"
Cambridge City Council,University of Cambridge,10110201,15/05/22,109285,9900,General Fund Balance Sheet,20118,Receipts In Advance - Other Entities And Individuals,675.00
Cambridge City Council,University of Cambridge,10110201,25/05/22,110091,1353,Elections,60402,Premises Hire - Facilities,"7,380.00"
Cambridge City Council,Urban Planters Chelmsford,10230500,30/04/22,108889,1300,Customer Access Strategy - Customer Service Centre,61800,Contract Charges,630.00
Cambridge City Council,Vehicles for Change t/a Mobiloo,10468800,12/04/22,106855,790015,,61711,Hire of Toilets,"1,485.00"
Cambridge City Council,Ventro Ltd,10749800,29/04/22,108224,6215,Risk and Compliance,60205,Fire Assessment And Safety,"3,820.50"
Cambridge City Council,Virido Management Company Limited,10041902,21/04/22,108495,6135,"Virido, Clay Farm Third Party Management",60401,Service Charges,"3,975.98"
Cambridge City Council,Volvo Group UK Ltd,10111400,19/05/22,109801,1031,Fleet Management - Operational,61703,"Purchase - Equipment, Furniture And Materials",901.53
Cambridge City Council,VWS (UK) Limited t/a Veolia Water Technologies,10778300,09/05/22,108875,1100,Sport & Recreation Administration,60201,Cyclical/Planned Maintenance - Building,562.45
Cambridge City Council,VWS (UK) Limited t/a Veolia Water Technologies,10778300,09/05/22,108875,6215,Risk and Compliance,60235,Housing Repairs - Other Premises Related Costs,588.17
Cambridge City Council,Warringtonfire,10919600,10/05/22,109060,1935,Markets,60503,Grounds Maintenance,602.00
Cambridge City Council,We are the Fair Ltd,10327700,11/05/22,109629,790015,,62400,Consultancy Fees,"4,050.32"
Cambridge City Council,Wesley Church Cambridge,10112800,12/05/22,109193,1353,Elections,60402,Premises Hire - Facilities,800.00
Cambridge City Council,Wicksteed Leisure Ltd,10125800,29/04/22,108832,1868,Play Maintenance,61703,"Purchase - Equipment, Furniture And Materials","3,254.73"
Cambridge City Council,Wildy & Sons Ltd,10356900,03/05/22,108290,8014,3C Legal Practice,62003,"Books, Publications And Resources",540.00
Cambridge City Council,Wilks Head & Eve LLP,10201400,17/05/22,109693,6007,Departmental Overheads-Client,62400,Consultancy Fees,"5,985.00"
Cambridge City Council,Wine Gums Comedy Nights,10327900,20/05/22,109593,9900,General Fund Balance Sheet,20118,Receipts In Advance - Other Entities And Individuals,"1,725.00"
Cambridge City Council,Wiser Recycling Ltd,10215500,13/05/22,109308,8025,Cowley Road Compound,60500,Refuse Collection /Skips,"1,784.43"
Cambridge City Council,Wiser Recycling Ltd,10215500,20/05/22,109791,6200,Building Maintenance Response - Direct,64050,Waste Disposal Costs,"1,239.80"
Cambridge City Council,Witham Oil & Paint (Soham) Ltd,10113800,13/05/22,109265,1032,Garage- External Work,61703,"Purchase - Equipment, Furniture And Materials",569.30
Cambridge City Council,Witham Oil & Paint (Soham) Ltd,10113800,13/05/22,109265,1032,Garage- External Work,61703,"Purchase - Equipment, Furniture And Materials","1,279.76"
Cambridge City Council,Witham Oil & Paint (Soham) Ltd,10113800,29/04/22,108209,1032,Garage- External Work,61703,"Purchase - Equipment, Furniture And Materials",587.88
Cambridge City Council,Zunoma Ltd,10095300,29/04/22,108346,8023,Business Support - Centralised Overheads,64100,Postage And Courier Services,745.80
Cambridge City Council,Zunoma Ltd,10095300,16/05/22,109313,1801,Local Taxation,62001,Printing,691.97
Cambridge City Council,Zunoma Ltd,10095300,16/05/22,109315,1801,Local Taxation,62001,Printing,797.90
Cambridge City Council,Zurich Insurance PLC,10115100,25/05/22,109887,8009,Insurance Fund,67302,Insurance Claim,"3,261.50"
Cambrigde City Council,1 Colmore Square,10039100,01/07/22,110608,1651,Grand Arcade Car Park,60401,Service Charges,"26,238.25"
Cambrigde City Council,10:AM,10302900,30/05/22,110358,790015,,62800,Design And Photographic Costs,695.00
Cambrigde City Council,10:AM,10302900,20/06/22,111945,780003,,62400,Consultancy Fees,800.00
Cambrigde City Council,A & B Contractors Ltd,10546800,21/06/22,111802,100360,S106 Jubilee Gardens open space improvements,70015,CAPEX - Grants Paid,"35,362.30"
Cambrigde City Council,AA Global Language Services Ltd,10001100,31/03/22,111060,1203,Corporate Policy,62408,Translation Services,573.79
Cambrigde City Council,AA Global Language Services Ltd,10001100,30/04/22,111061,1203,Corporate Policy,62408,Translation Services,"1,774.15"
Cambrigde City Council,AA Global Language Services Ltd,10001100,31/05/22,111579,1203,Corporate Policy,62408,Translation Services,738.46
Cambrigde City Council,Abbey Bowls Club,10001200,10/06/22,110835,1102,Leisure Contract Client Costs,64600,Grants And Contributions,"5,380.00"
Cambrigde City Council,Acacia Tree Surgery Ltd,10001700,10/06/22,111147,6208,Voids,60233,Housing Repairs - Work Given To External Contractors,"1,635.00"
Cambrigde City Council,Access & Automation Ltd,10115300,18/05/22,109486,300000,Disabled Adaptions,70007,CAPEX - Building Contractor/Works - Major Adaptations (HRA),875.00
Cambrigde City Council,Acoem UK Ltd,10356600,07/06/22,111148,1404,Scientific Team,50000,Government Grants Revenue Income - Ringfenced,"3,840.00"
Cambrigde City Council,ADC (East Anglia) Ltd,10002500,21/06/22,111731,1883,Flood Risk Management,60501,Cleaning Services,"1,400.00"
Cambrigde City Council,Albert Bareham & Son Complete Flooring Services,10841500,08/06/22,110703,6207,Repairs Day to Day,60233,Housing Repairs - Work Given To External Contractors,"1,070.00"
Cambrigde City Council,Albert Bareham & Son Complete Flooring Services,10841500,08/06/22,110702,6208,Voids,60233,Housing Repairs - Work Given To External Contractors,"1,380.00"
Cambrigde City Council,Albert Bareham & Son Complete Flooring Services,10841500,08/06/22,110704,6207,Repairs Day to Day,60233,Housing Repairs - Work Given To External Contractors,610.00
Cambrigde City Council,Albert Bareham & Son Complete Flooring Services,10841500,08/06/22,110701,6207,Repairs Day to Day,60233,Housing Repairs - Work Given To External Contractors,780.00
Cambrigde City Council,Albert Bareham & Son Complete Flooring Services,10841500,08/06/22,110699,6207,Repairs Day to Day,60233,Housing Repairs - Work Given To External Contractors,580.00
Cambrigde City Council,Albion Boxing Academy,10444800,28/06/22,112129,1103,Active Lifestyles - Communities (ex Sports Development),62404,Instructors/Tutors,600.00
Cambrigde City Council,Albion Boxing Academy,10444800,16/12/19,112136,1103,Active Lifestyles - Communities (ex Sports Development),62404,Instructors/Tutors,660.00
Cambrigde City Council,Alboro Developments Ltd,10133300,31/05/22,110721,1031,Fleet Management - Operational,60303,Electricity,743.48
Cambrigde City Council,All Pump Solutions LLP,10842600,08/06/22,110916,6205,Citywide Schemes,60235,Housing Repairs - Other Premises Related Costs,516.00
Cambrigde City Council,All Pump Solutions LLP,10842600,20/06/22,111804,6205,Citywide Schemes,60235,Housing Repairs - Other Premises Related Costs,525.00
Cambrigde City Council,Alliance Asbestos Services Ltd,10115400,30/05/22,110171,300007,Asbestos Removal,70003,CAPEX - Building Contractor/Works - Voids & Emergencies,"1,986.00"
Cambrigde City Council,Alliance Asbestos Services Ltd,10115400,16/06/22,111397,300007,Asbestos Removal,70002,CAPEX - Building Contractor/Works,977.00
Cambrigde City Council,Alliance Asbestos Services Ltd,10115400,16/06/22,111395,300007,Asbestos Removal,70002,CAPEX - Building Contractor/Works,"2,375.00"
Cambrigde City Council,Amulet (Churchill Security Solutions) Ltd,10220900,31/05/22,111771,5024,E_invoicing Suspense Accounts,69100,Expenditure In Holding Account Awaiting Allocation,"12,811.09"
Cambrigde City Council,Amulet (Churchill Security Solutions) Ltd,10220900,20/06/22,111851,5024,E_invoicing Suspense Accounts,69100,Expenditure In Holding Account Awaiting Allocation,681.92
Cambrigde City Council,Amulet (Churchill Security Solutions) Ltd,10220900,31/05/22,111846,5024,E_invoicing Suspense Accounts,69100,Expenditure In Holding Account Awaiting Allocation,"10,757.28"
Cambrigde City Council,Andrew Firebrace Partnership Ltd,10005400,29/04/22,110600,6207,Repairs Day to Day,60233,Housing Repairs - Work Given To External Contractors,528.50
Cambrigde City Council,Andrew Firebrace Partnership Ltd,10005400,29/04/22,110598,300075,New Build - Kendal Way,70010,CAPEX - Other Professional Fees,"1,800.00"
Cambrigde City Council,Anglian Water Business (National) Ltd T/A Wave,10006400,24/05/22,110133,1870,Public Toilets,60302,Water And Sewerage,719.18
Cambrigde City Council,"AppExtremes, LLC. dba Conga",10508000,29/03/22,111200,1509,Grants to Housing Agencies (CCC funded),69150,Other Services,"1,406.00"
